Body Name,Organisational Unit,Expenditure Category,Expenditure Code,Paid Date,Trans No,Amount,Capital or Revenue,Supplier ID,Supplier Name
Oxford City Council,Suspense,Property Rents/Income,K9550,03/07/2015,46286478_1,3419.25,Revenue,20000000_46286478,Mobile Fresh Ltd. 
Oxford City Council,Community Services,Grants,D3701,14/07/2015,46286491_1,600.00,Revenue,20000000_46286491,Boogie Bros
Oxford City Council,Direct Services,Reactive Maintenance & Minor Repairs,B1101,14/07/2015,46286500_1,1276.99,Revenue,20000000_46286500,Roy Leach
Oxford City Council,Direct Services,General Contracted Services,D3401,14/07/2015,46286527_1,840.00,Revenue,20000000_46286527,MMI Associates Ltd. 
Oxford City Council,Direct Services,General Contracted Services,D3401,14/07/2015,46286540_1,665.00,Revenue,20000000_46286540,MMI ASSOCIATES LTD
Oxford City Council,Direct Services,Other Licences And Fees,C2203,11/08/2015,46286733_1,25000.00,Revenue,20000000_46286733,VOSA
Oxford City Council,Organisational Development,General Contracted Services,D3401,11/08/2015,46286785_1,668.00,Revenue,20000000_46286785,DAVID BAKER
Oxford City Council,Planning & Regulatory,Provisions,D3101,25/08/2015,46286924_1,1773.90,Revenue,20000000_46286924,BENUGO
Oxford City Council,Housing and Property,Counsel & External Legal Fees,D3417,25/08/2015,46286955_1,13356.67,Revenue,20000000_46286955,JOHN GALLAGHER CLIENT ACCOUNT RE SHELTER LEGAL SERVICES
Oxford City Council,HRA,Repairs & Maintenance Works,B1301,25/08/2015,46286967_1,975.00,Revenue,20000000_46286967,MR B ABBOTT
Oxford City Council,Financial Services,Grants,D3701,02/09/2015,46287029_1,22500.00,Revenue,20000000_46287029,Southend Borough Council
Oxford City Council,Regeneration and Major Projects Team,Main Contractor,Y021,11/08/2015,48021276_1,55862.52,Capital,20000000_48021276,MITIE PROPERTY SERVICES (UK) LTD
Oxford City Council,HRA,Special Events,D3807,07/07/2015,46286440_1,2500.00,Revenue,20000010_46286440,"Redacted, personal data"
Oxford City Council,Housing and Property,Rent Allowance Cheques (Home Choice),F5033,14/07/2015,46286505_1,900.00,Revenue,20000010_46286505,"Redacted, personal data"
Oxford City Council,Housing and Property,Rent Allowance Cheques (Home Choice),F5033,14/07/2015,46286505_2,132.00,Revenue,20000010_46286505,"Redacted, personal data"
Oxford City Council,Housing and Property,Rent Allowance Cheques (Home Choice),F5033,14/07/2015,46286516_1,900.00,Revenue,20000010_46286516,"Redacted, personal data"
Oxford City Council,Housing and Property,Rent Allowance Cheques (Home Choice),F5033,21/07/2015,46286554_1,2000.00,Revenue,20000010_46286554,"Redacted, personal data"
Oxford City Council,Housing and Property,Rent Allowance Cheques (Home Choice),F5033,28/07/2015,46286640_1,1650.00,Revenue,20000010_46286640,"Redacted, personal data"
Oxford City Council,Housing and Property,Rent Allowance Cheques (Home Choice),F5033,28/07/2015,46286659_1,1295.00,Revenue,20000010_46286659,"Redacted, personal data"
Oxford City Council,HRA,Special Events,D3807,04/08/2015,46286663_1,1389.13,Revenue,20000010_46286663,"Redacted, personal data"
Oxford City Council,HRA,Special Events,D3807,04/08/2015,46286677_1,2489.20,Revenue,20000010_46286677,"Redacted, personal data"
Oxford City Council,Housing and Property,Homeless Prevention,D3426,04/08/2015,46286712_1,500.00,Revenue,20000010_46286712,"Redacted, personal data"
Oxford City Council,Housing and Property,Rent Allowance Cheques (Home Choice),F5033,04/08/2015,46286713_1,1100.00,Revenue,20000010_46286713,"Redacted, personal data"
Oxford City Council,Housing and Property,Rent Allowance Cheques (Home Choice),F5033,11/08/2015,46286792_1,810.00,Revenue,20000010_46286792,"Redacted, personal data"
Oxford City Council,Housing and Property,Rent Allowance Cheques (Home Choice),F5033,11/08/2015,46286794_1,1387.50,Revenue,20000010_46286794,"Redacted, personal data"
Oxford City Council,Housing and Property,Rent Allowance Cheques (Home Choice),F5033,11/08/2015,46286796_1,700.00,Revenue,20000010_46286796,"Redacted, personal data"
Oxford City Council,Housing and Property,Rent Allowance Cheques (Home Choice),F5033,18/08/2015,46286834_1,675.24,Revenue,20000010_46286834,"Redacted, personal data"
Oxford City Council,Housing and Property,Rent Allowance Cheques (Home Choice),F5033,18/08/2015,46286878_1,895.00,Revenue,20000010_46286878,"Redacted, personal data"
Oxford City Council,Housing and Property,Rent Allowance Cheques (Home Choice),F5033,18/08/2015,46286879_1,1095.00,Revenue,20000010_46286879,"Redacted, personal data"
Oxford City Council,Housing and Property,Rent,B1701,18/08/2015,46286881_1,650.00,Revenue,20000010_46286881,"Redacted, personal data"
Oxford City Council,Housing and Property,Rent Allowance Cheques (Home Choice),F5033,18/08/2015,46286882_1,2900.00,Revenue,20000010_46286882,"Redacted, personal data"
Oxford City Council,Housing and Property,Rent Allowance Cheques (Home Choice),F5033,25/08/2015,46286946_1,694.40,Revenue,20000010_46286946,"Redacted, personal data"
Oxford City Council,HRA,Special Events,D3807,25/08/2015,46286965_1,1586.88,Revenue,20000010_46286965,"Redacted, personal data"
Oxford City Council,HRA,Special Events,D3807,25/08/2015,46286966_1,2589.74,Revenue,20000010_46286966,"Redacted, personal data"
Oxford City Council,Housing and Property,Rent Allowance Cheques (Home Choice),F5033,08/09/2015,46287032_1,1821.30,Revenue,20000010_46287032,LEE & LINDARS
Oxford City Council,Housing and Property,Rent Allowance Cheques (Home Choice),F5033,08/09/2015,46287033_1,500.00,Revenue,20000010_46287033,LEE & LINDARS
Oxford City Council,Housing and Property,Rent Allowance Cheques (Home Choice),F5033,08/09/2015,46287035_1,3200.00,Revenue,20000010_46287035,LEE & LINDARS
Oxford City Council,Housing and Property,Rent Allowance Cheques (Home Choice),F5033,08/09/2015,46287038_1,545.52,Revenue,20000010_46287038,"Redacted, personal data"
Oxford City Council,Housing and Property,Rent Allowance Cheques (Home Choice),F5033,08/09/2015,46287039_1,500.00,Revenue,20000010_46287039,"Redacted, personal data"
Oxford City Council,Housing and Property,Rent Allowance Cheques (Home Choice),F5033,08/09/2015,46287040_1,766.59,Revenue,20000010_46287040,"Redacted, personal data"
Oxford City Council,Housing and Property,Rent Allowance Cheques (Home Choice),F5033,08/09/2015,46287041_1,600.00,Revenue,20000010_46287041,"Redacted, personal data"
Oxford City Council,Housing and Property,Rent Allowance Cheques (Home Choice),F5033,15/09/2015,46287068_1,791.04,Revenue,20000010_46287068,Feenan & Stewart
Oxford City Council,Housing and Property,Rent Allowance Cheques (Home Choice),F5033,15/09/2015,46287068_2,356.04,Revenue,20000010_46287068,Feenan & Stewart
Oxford City Council,Housing and Property,Rent Allowance Cheques (Home Choice),F5033,15/09/2015,46287079_1,1850.00,Revenue,20000010_46287079,Penny& Sinclair
Oxford City Council,Housing and Property,Rent Allowance Cheques (Home Choice),F5033,15/09/2015,46287079_2,1850.00,Revenue,20000010_46287079,Penny& Sinclair
Oxford City Council,Housing and Property,Rent Allowance Cheques (Home Choice),F5033,15/09/2015,46287081_1,1000.00,Revenue,20000010_46287081,"Redacted, personal data"
Oxford City Council,Housing and Property,Rent,B1701,15/09/2015,46287103_1,725.00,Revenue,20000010_46287103,"Redacted, personal data"
Oxford City Council,Housing and Property,Rent Allowance Cheques (Home Choice),F5033,15/09/2015,46287104_1,1091.04,Revenue,20000010_46287104,"Redacted, personal data"
Oxford City Council,Housing and Property,Rent Allowance Cheques (Home Choice),F5033,15/09/2015,46287109_1,636.44,Revenue,20000010_46287109,"Redacted, personal data"
Oxford City Council,Housing and Property,Rent Allowance Cheques (Home Choice),F5033,15/09/2015,46287110_1,636.44,Revenue,20000010_46287110,"Redacted, personal data"
Oxford City Council,Housing and Property,Rent Allowance Cheques (Home Choice),F5033,22/09/2015,46287189_1,546.00,Revenue,20000010_46287189,"Redacted, personal data"
Oxford City Council,Housing and Property,Rent Allowance Cheques (Home Choice),F5033,22/09/2015,46287190_1,546.00,Revenue,20000010_46287190,"Redacted, personal data"
Oxford City Council,Housing and Property,Rent Allowance Cheques (Home Choice),F5033,29/09/2015,46287239_1,869.52,Revenue,20000010_46287239,Chalk Hill Lettings
Oxford City Council,HRA,Compensation,D3805,29/09/2015,46287245_1,500.00,Revenue,20000010_46287245,"Redacted, personal data"
Oxford City Council,Housing and Property,Rent Allowance Cheques (Home Choice),F5033,29/09/2015,46287257_1,2200.00,Revenue,20000010_46287257,"Redacted, personal data"
Oxford City Council,Housing and Property,Rent Allowance Cheques (Home Choice),F5033,29/09/2015,46287273_1,925.00,Revenue,20000010_46287273,"Redacted, personal data"
Oxford City Council,Housing and Property,Rent Allowance Cheques (Home Choice),F5033,29/09/2015,46287274_1,1000.00,Revenue,20000010_46287274,"Redacted, personal data"
Oxford City Council,Housing and Property,Rent Allowance Cheques (Home Choice),F5033,29/09/2015,46287282_1,1800.00,Revenue,20000010_46287282,"Redacted, personal data"
Oxford City Council,Housing and Property,Rent Allowance Cheques (Home Choice),F5033,29/09/2015,46287283_1,1140.00,Revenue,20000010_46287283,"Redacted, personal data"
Oxford City Council,Housing and Property,Rent Allowance Cheques (Home Choice),F5033,29/09/2015,46287284_1,867.07,Revenue,20000010_46287284,"Redacted, personal data"
Oxford City Council,Housing and Property,Homeless Prevention,D3426,28/07/2015,46286622_1,565.00,Revenue,20000018_46286622,Home Experts Worcester
Oxford City Council,Housing and Property,Homeless Prevention,D3426,28/07/2015,46286639_1,555.00,Revenue,20000018_46286639,Home Experts Worcester
Oxford City Council,Housing and Property,Homeless Prevention,D3426,25/08/2015,46286968_1,478.00,Revenue,20000018_46286968,"Redacted, personal data"
Oxford City Council,Housing and Property,Homeless Prevention,D3426,25/08/2015,46286968_2,102.00,Revenue,20000018_46286968,"Redacted, personal data"
Oxford City Council,Community Services,Instructors & Coaching Fees,D3413,07/07/2015,46286441_1,4185.00,Revenue,20000019_46286441,British Judo Association
Oxford City Council,Community Services,Contributions,D3702,14/07/2015,46286508_1,125.00,Revenue,20000019_46286508,Quarry Rovers
Oxford City Council,Community Services,Contributions,D3702,14/07/2015,46286508_2,125.00,Revenue,20000019_46286508,Quarry Rovers
Oxford City Council,Community Services,Contributions,D3702,14/07/2015,46286508_3,125.00,Revenue,20000019_46286508,Quarry Rovers
Oxford City Council,Community Services,Contributions,D3702,14/07/2015,46286508_4,125.00,Revenue,20000019_46286508,Quarry Rovers
Oxford City Council,Community Services,Contributions,D3702,28/07/2015,46286630_1,500.00,Revenue,20000019_46286630,St Andrews Parochial Church Council
Oxford City Council,Community Services,Contributions,D3702,04/08/2015,46286673_1,500.00,Revenue,20000019_46286673,St Andrews Parochial Church Council
Oxford City Council,Community Services,Grants,D3701,18/08/2015,46286861_1,1000.00,Revenue,20000019_46286861,PHOENIX PERFORMING ARTS TRUST
Oxford City Council,Community Services,Instructors & Coaching Fees,D3413,25/08/2015,46286986_1,2763.00,Revenue,20000019_46286986,THE EYOT CENTRE
Oxford City Council,Direct Services,Furniture & Equipment Purchase,D3001,02/09/2015,46286990_1,1000.00,Revenue,20000019_46286990,Hinksey Park FC
Oxford City Council,Community Services,Grants,D3701,15/09/2015,46287070_1,1000.00,Revenue,20000019_46287070,CARU/Contemporary Arts Research Unit
Oxford City Council,Direct Services,Grants,D3701,29/09/2015,46287242_1,720.00,Revenue,20000019_46287242,East Ward Allotment Association
Oxford City Council,Environmental Development,Grants-Private Persons,Y005,15/09/2015,48021290_1,15000.00,Capital,20000019_48021290,"Redacted, personal data"
Oxford City Council,Direct Services,Temporary Bureau Staffing,A0108,14/07/2015,46286490_1,5608.29,Revenue,20000200,CHAMPION EMPLOYMENT LTD
Oxford City Council,Financial Services,Temporary Bureau Staffing,A0108,14/07/2015,46286490_10,5525.80,Revenue,20000200,CHAMPION EMPLOYMENT LTD
Oxford City Council,Business Improvement,Temporary Bureau Staffing,A0108,14/07/2015,46286490_11,5697.95,Revenue,20000200,CHAMPION EMPLOYMENT LTD
Oxford City Council,Financial Services,Temporary Bureau Staffing,A0108,14/07/2015,46286490_12,1582.32,Revenue,20000200,CHAMPION EMPLOYMENT LTD
Oxford City Council,Business Improvement,Temporary Bureau Staffing,A0108,14/07/2015,46286490_13,2114.30,Revenue,20000200,CHAMPION EMPLOYMENT LTD
Oxford City Council,Direct Services,Temporary Bureau Staffing,A0108,14/07/2015,46286490_14,1965.68,Revenue,20000200,CHAMPION EMPLOYMENT LTD
Oxford City Council,Community Services,Temporary Bureau Staffing,A0108,14/07/2015,46286490_15,1365.99,Revenue,20000200,CHAMPION EMPLOYMENT LTD
Oxford City Council,Planning & Regulatory,Temporary Bureau Staffing,A0108,14/07/2015,46286490_16,1049.19,Revenue,20000200,CHAMPION EMPLOYMENT LTD
Oxford City Council,Planning & Regulatory,Temporary Bureau Staffing,A0108,14/07/2015,46286490_17,3348.03,Revenue,20000200,CHAMPION EMPLOYMENT LTD
Oxford City Council,HRA,Temporary Bureau Staffing,A0108,14/07/2015,46286490_18,2903.79,Revenue,20000200,CHAMPION EMPLOYMENT LTD
Oxford City Council,Assistant Chief Executive,Main Contractor,Y021,14/07/2015,46286490_19,13801.11,Capital,20000200,CHAMPION EMPLOYMENT LTD
Oxford City Council,Community Services,Temporary Bureau Staffing,A0108,14/07/2015,46286490_2,3265.98,Revenue,20000200,CHAMPION EMPLOYMENT LTD
Oxford City Council,Planning & Regulatory,Temporary Bureau Staffing,A0108,14/07/2015,46286490_20,7615.49,Revenue,20000200,CHAMPION EMPLOYMENT LTD
Oxford City Council,Planning & Regulatory,Temporary Bureau Staffing,A0108,14/07/2015,46286490_21,447.60,Revenue,20000200,CHAMPION EMPLOYMENT LTD
Oxford City Council,Planning & Regulatory,Temporary Bureau Staffing,A0108,14/07/2015,46286490_22,4608.00,Revenue,20000200,CHAMPION EMPLOYMENT LTD
Oxford City Council,Planning & Regulatory,Temporary Bureau Staffing,A0108,14/07/2015,46286490_23,7307.66,Revenue,20000200,CHAMPION EMPLOYMENT LTD
Oxford City Council,Community Services,Temporary Bureau Staffing,A0108,14/07/2015,46286490_24,1971.85,Revenue,20000200,CHAMPION EMPLOYMENT LTD
Oxford City Council,Assistant Chief Executive,Temporary Bureau Staffing,A0108,14/07/2015,46286490_25,6341.01,Revenue,20000200,CHAMPION EMPLOYMENT LTD
Oxford City Council,Financial Services,Temporary Bureau Staffing,A0108,14/07/2015,46286490_26,3200.00,Revenue,20000200,CHAMPION EMPLOYMENT LTD
Oxford City Council,Assistant Chief Executive,Temporary Bureau Staffing,A0108,14/07/2015,46286490_27,1409.88,Revenue,20000200,CHAMPION EMPLOYMENT LTD
Oxford City Council,HRA,Temporary Bureau Staffing,A0108,14/07/2015,46286490_28,1200.24,Revenue,20000200,CHAMPION EMPLOYMENT LTD
Oxford City Council,HRA,Main Contractor,Y021,14/07/2015,46286490_29,2860.00,Capital,20000200,CHAMPION EMPLOYMENT LTD
Oxford City Council,Housing and Property,Temporary Bureau Staffing,A0108,14/07/2015,46286490_3,4058.16,Revenue,20000200,CHAMPION EMPLOYMENT LTD
Oxford City Council,HRA,Temporary Bureau Staffing,A0108,14/07/2015,46286490_30,6156.87,Revenue,20000200,CHAMPION EMPLOYMENT LTD
Oxford City Council,Direct Services,Temporary Bureau Staffing,A0108,14/07/2015,46286490_31,2442.82,Revenue,20000200,CHAMPION EMPLOYMENT LTD
Oxford City Council,Housing and Property,Temporary Bureau Staffing,A0108,14/07/2015,46286490_32,1540.68,Revenue,20000200,CHAMPION EMPLOYMENT LTD
Oxford City Council,Direct Services,Temporary Bureau Staffing,A0108,14/07/2015,46286490_33,880.38,Revenue,20000200,CHAMPION EMPLOYMENT LTD
Oxford City Council,Direct Services,Temporary Bureau Staffing,A0108,14/07/2015,46286490_34,6732.11,Revenue,20000200,CHAMPION EMPLOYMENT LTD
Oxford City Council,Direct Services,Temporary Bureau Staffing,A0108,14/07/2015,46286490_35,5746.96,Revenue,20000200,CHAMPION EMPLOYMENT LTD
Oxford City Council,Direct Services,Temporary Bureau Staffing,A0108,14/07/2015,46286490_36,17487.36,Revenue,20000200,CHAMPION EMPLOYMENT LTD
Oxford City Council,Direct Services,Temporary Bureau Staffing,A0108,14/07/2015,46286490_37,3771.04,Revenue,20000200,CHAMPION EMPLOYMENT LTD
Oxford City Council,Direct Services,Temporary Bureau Staffing,A0108,14/07/2015,46286490_38,5768.34,Revenue,20000200,CHAMPION EMPLOYMENT LTD
Oxford City Council,Direct Services,Temporary Bureau Staffing,A0108,14/07/2015,46286490_39,4284.83,Revenue,20000200,CHAMPION EMPLOYMENT LTD
Oxford City Council,Housing and Property,Temporary Bureau Staffing,A0108,14/07/2015,46286490_4,3248.59,Revenue,20000200,CHAMPION EMPLOYMENT LTD
Oxford City Council,Direct Services,Temporary Bureau Staffing,A0108,14/07/2015,46286490_40,5511.58,Revenue,20000200,CHAMPION EMPLOYMENT LTD
Oxford City Council,Direct Services,Temporary Bureau Staffing,A0108,14/07/2015,46286490_41,5811.17,Revenue,20000200,CHAMPION EMPLOYMENT LTD
Oxford City Council,Community Services,Temporary Bureau Staffing,A0108,14/07/2015,46286490_42,3760.93,Revenue,20000200,CHAMPION EMPLOYMENT LTD
Oxford City Council,Community Services,Temporary Bureau Staffing,A0108,14/07/2015,46286490_43,1955.96,Revenue,20000200,CHAMPION EMPLOYMENT LTD
Oxford City Council,Housing and Property,Temporary Bureau Staffing,A0108,14/07/2015,46286490_44,65.00,Revenue,20000200,CHAMPION EMPLOYMENT LTD
Oxford City Council,Planning & Regulatory,Temporary Bureau Staffing,A0108,14/07/2015,46286490_45,2.00,Revenue,20000200,CHAMPION EMPLOYMENT LTD
Oxford City Council,Business Improvement,Temporary Bureau Staffing,A0108,14/07/2015,46286490_5,6127.95,Revenue,20000200,CHAMPION EMPLOYMENT LTD
Oxford City Council,Transformation,Temporary Bureau Staffing,A0108,14/07/2015,46286490_6,1049.90,Revenue,20000200,CHAMPION EMPLOYMENT LTD
Oxford City Council,Transformation,Temporary Bureau Staffing,A0108,14/07/2015,46286490_7,2834.30,Revenue,20000200,CHAMPION EMPLOYMENT LTD
Oxford City Council,Business Improvement,Temporary Bureau Staffing,A0108,14/07/2015,46286490_8,3078.73,Revenue,20000200,CHAMPION EMPLOYMENT LTD
Oxford City Council,Financial Services,Temporary Bureau Staffing,A0108,14/07/2015,46286490_9,2119.00,Revenue,20000200,CHAMPION EMPLOYMENT LTD
Oxford City Council,Community Services,Temporary Bureau Staffing,A0108,25/08/2015,46286918_1,771.12,Revenue,20000200,CHAMPION EMPLOYMENT LTD
Oxford City Council,Financial Services,Temporary Bureau Staffing,A0108,25/08/2015,46286918_10,2933.86,Revenue,20000200,CHAMPION EMPLOYMENT LTD
Oxford City Council,Financial Services,Temporary Bureau Staffing,A0108,25/08/2015,46286918_11,11051.60,Revenue,20000200,CHAMPION EMPLOYMENT LTD
Oxford City Council,Business Improvement,Temporary Bureau Staffing,A0108,25/08/2015,46286918_12,2790.38,Revenue,20000200,CHAMPION EMPLOYMENT LTD
Oxford City Council,Financial Services,Temporary Bureau Staffing,A0108,25/08/2015,46286918_13,2331.84,Revenue,20000200,CHAMPION EMPLOYMENT LTD
Oxford City Council,Business Improvement,Temporary Bureau Staffing,A0108,25/08/2015,46286918_14,1804.04,Revenue,20000200,CHAMPION EMPLOYMENT LTD
Oxford City Council,Direct Services,Temporary Bureau Staffing,A0108,25/08/2015,46286918_15,2360.70,Revenue,20000200,CHAMPION EMPLOYMENT LTD
Oxford City Council,Community Services,Temporary Bureau Staffing,A0108,25/08/2015,46286918_16,1931.49,Revenue,20000200,CHAMPION EMPLOYMENT LTD
Oxford City Council,Planning & Regulatory,Temporary Bureau Staffing,A0108,25/08/2015,46286918_17,2651.08,Revenue,20000200,CHAMPION EMPLOYMENT LTD
Oxford City Council,Planning & Regulatory,Temporary Bureau Staffing,A0108,25/08/2015,46286918_18,5464.62,Revenue,20000200,CHAMPION EMPLOYMENT LTD
Oxford City Council,Housing and Property,Temporary Bureau Staffing,A0108,25/08/2015,46286918_19,477.94,Revenue,20000200,CHAMPION EMPLOYMENT LTD
Oxford City Council,Direct Services,Temporary Bureau Staffing,A0108,25/08/2015,46286918_2,2706.40,Revenue,20000200,CHAMPION EMPLOYMENT LTD
Oxford City Council,HRA,Temporary Bureau Staffing,A0108,25/08/2015,46286918_20,1587.34,Revenue,20000200,CHAMPION EMPLOYMENT LTD
Oxford City Council,Direct Services,Temporary Bureau Staffing,A0108,25/08/2015,46286918_21,941.33,Revenue,20000200,CHAMPION EMPLOYMENT LTD
Oxford City Council,Assistant Chief Executive,Main Contractor,Y021,25/08/2015,46286918_22,8408.86,Capital,20000200,CHAMPION EMPLOYMENT LTD
Oxford City Council,Planning & Regulatory,Temporary Bureau Staffing,A0108,25/08/2015,46286918_23,9617.76,Revenue,20000200,CHAMPION EMPLOYMENT LTD
Oxford City Council,Planning & Regulatory,Temporary Bureau Staffing,A0108,25/08/2015,46286918_24,5472.00,Revenue,20000200,CHAMPION EMPLOYMENT LTD
Oxford City Council,Planning & Regulatory,Temporary Bureau Staffing,A0108,25/08/2015,46286918_25,5211.83,Revenue,20000200,CHAMPION EMPLOYMENT LTD
Oxford City Council,Community Services,Temporary Bureau Staffing,A0108,25/08/2015,46286918_26,1930.39,Revenue,20000200,CHAMPION EMPLOYMENT LTD
Oxford City Council,Assistant Chief Executive,Temporary Bureau Staffing,A0108,25/08/2015,46286918_27,13657.56,Revenue,20000200,CHAMPION EMPLOYMENT LTD
Oxford City Council,Community Services,Temporary Bureau Staffing,A0108,25/08/2015,46286918_28,684.25,Revenue,20000200,CHAMPION EMPLOYMENT LTD
Oxford City Council,Financial Services,Temporary Bureau Staffing,A0108,25/08/2015,46286918_29,10240.00,Revenue,20000200,CHAMPION EMPLOYMENT LTD
Oxford City Council,Community Services,Temporary Bureau Staffing,A0108,25/08/2015,46286918_3,5371.97,Revenue,20000200,CHAMPION EMPLOYMENT LTD
Oxford City Council,Assistant Chief Executive,Temporary Bureau Staffing,A0108,25/08/2015,46286918_30,3009.72,Revenue,20000200,CHAMPION EMPLOYMENT LTD
Oxford City Council,HRA,Main Contractor,Y021,25/08/2015,46286918_31,9540.00,Capital,20000200,CHAMPION EMPLOYMENT LTD
Oxford City Council,HRA,Temporary Bureau Staffing,A0108,25/08/2015,46286918_32,7328.48,Revenue,20000200,CHAMPION EMPLOYMENT LTD
Oxford City Council,Direct Services,Temporary Bureau Staffing,A0108,25/08/2015,46286918_33,4836.74,Revenue,20000200,CHAMPION EMPLOYMENT LTD
Oxford City Council,Direct Services,Temporary Bureau Staffing,A0108,25/08/2015,46286918_34,4806.13,Revenue,20000200,CHAMPION EMPLOYMENT LTD
Oxford City Council,Direct Services,Temporary Bureau Staffing,A0108,25/08/2015,46286918_35,2973.04,Revenue,20000200,CHAMPION EMPLOYMENT LTD
Oxford City Council,Housing and Property,Temporary Bureau Staffing,A0108,25/08/2015,46286918_36,2054.24,Revenue,20000200,CHAMPION EMPLOYMENT LTD
Oxford City Council,Direct Services,Temporary Bureau Staffing,A0108,25/08/2015,46286918_37,1010.16,Revenue,20000200,CHAMPION EMPLOYMENT LTD
Oxford City Council,Direct Services,Temporary Bureau Staffing,A0108,25/08/2015,46286918_38,8514.34,Revenue,20000200,CHAMPION EMPLOYMENT LTD
Oxford City Council,Direct Services,Temporary Bureau Staffing,A0108,25/08/2015,46286918_39,845.34,Revenue,20000200,CHAMPION EMPLOYMENT LTD
Oxford City Council,Housing and Property,Temporary Bureau Staffing,A0108,25/08/2015,46286918_4,6763.60,Revenue,20000200,CHAMPION EMPLOYMENT LTD
Oxford City Council,Direct Services,Temporary Bureau Staffing,A0108,25/08/2015,46286918_40,740.81,Revenue,20000200,CHAMPION EMPLOYMENT LTD
Oxford City Council,Direct Services,Temporary Bureau Staffing,A0108,25/08/2015,46286918_41,4853.28,Revenue,20000200,CHAMPION EMPLOYMENT LTD
Oxford City Council,Direct Services,Temporary Bureau Staffing,A0108,25/08/2015,46286918_42,23589.41,Revenue,20000200,CHAMPION EMPLOYMENT LTD
Oxford City Council,Direct Services,Temporary Bureau Staffing,A0108,25/08/2015,46286918_43,4713.80,Revenue,20000200,CHAMPION EMPLOYMENT LTD
Oxford City Council,Direct Services,Temporary Bureau Staffing,A0108,25/08/2015,46286918_44,4839.16,Revenue,20000200,CHAMPION EMPLOYMENT LTD
Oxford City Council,Direct Services,Temporary Bureau Staffing,A0108,25/08/2015,46286918_45,2744.44,Revenue,20000200,CHAMPION EMPLOYMENT LTD
Oxford City Council,Direct Services,Temporary Bureau Staffing,A0108,25/08/2015,46286918_46,8726.31,Revenue,20000200,CHAMPION EMPLOYMENT LTD
Oxford City Council,Direct Services,Temporary Bureau Staffing,A0108,25/08/2015,46286918_47,9721.39,Revenue,20000200,CHAMPION EMPLOYMENT LTD
Oxford City Council,Direct Services,Temporary Bureau Staffing,A0108,25/08/2015,46286918_48,2389.19,Revenue,20000200,CHAMPION EMPLOYMENT LTD
Oxford City Council,Direct Services,Temporary Bureau Staffing,A0108,25/08/2015,46286918_49,1988.75,Revenue,20000200,CHAMPION EMPLOYMENT LTD
Oxford City Council,Housing and Property,Temporary Bureau Staffing,A0108,25/08/2015,46286918_5,4107.96,Revenue,20000200,CHAMPION EMPLOYMENT LTD
Oxford City Council,Community Services,Temporary Bureau Staffing,A0108,25/08/2015,46286918_50,436.73,Revenue,20000200,CHAMPION EMPLOYMENT LTD
Oxford City Council,Community Services,Temporary Bureau Staffing,A0108,25/08/2015,46286918_51,2735.39,Revenue,20000200,CHAMPION EMPLOYMENT LTD
Oxford City Council,Housing and Property,Temporary Bureau Staffing,A0108,25/08/2015,46286918_52,55.00,Revenue,20000200,CHAMPION EMPLOYMENT LTD
Oxford City Council,Business Improvement,Temporary Bureau Staffing,A0108,25/08/2015,46286918_6,2359.72,Revenue,20000200,CHAMPION EMPLOYMENT LTD
Oxford City Council,Transformation,Temporary Bureau Staffing,A0108,25/08/2015,46286918_7,2781.43,Revenue,20000200,CHAMPION EMPLOYMENT LTD
Oxford City Council,Transformation,Temporary Bureau Staffing,A0108,25/08/2015,46286918_8,3543.12,Revenue,20000200,CHAMPION EMPLOYMENT LTD
Oxford City Council,Business Improvement,Temporary Bureau Staffing,A0108,25/08/2015,46286918_9,3866.44,Revenue,20000200,CHAMPION EMPLOYMENT LTD
Oxford City Council,Community Services,Temporary Bureau Staffing,A0108,22/09/2015,46287230_1,1854.00,Revenue,20000200,CHAMPION EMPLOYMENT LTD
Oxford City Council,Financial Services,Temporary Bureau Staffing,A0108,22/09/2015,46287230_10,142.69,Revenue,20000200,CHAMPION EMPLOYMENT LTD
Oxford City Council,Financial Services,Temporary Bureau Staffing,A0108,22/09/2015,46287230_11,6743.88,Revenue,20000200,CHAMPION EMPLOYMENT LTD
Oxford City Council,Business Improvement,Temporary Bureau Staffing,A0108,22/09/2015,46287230_12,1815.84,Revenue,20000200,CHAMPION EMPLOYMENT LTD
Oxford City Council,Financial Services,Temporary Bureau Staffing,A0108,22/09/2015,46287230_13,1457.40,Revenue,20000200,CHAMPION EMPLOYMENT LTD
Oxford City Council,Business Improvement,Temporary Bureau Staffing,A0108,22/09/2015,46287230_14,1823.18,Revenue,20000200,CHAMPION EMPLOYMENT LTD
Oxford City Council,Direct Services,Temporary Bureau Staffing,A0108,22/09/2015,46287230_15,1421.59,Revenue,20000200,CHAMPION EMPLOYMENT LTD
Oxford City Council,Community Services,Temporary Bureau Staffing,A0108,22/09/2015,46287230_16,1062.16,Revenue,20000200,CHAMPION EMPLOYMENT LTD
Oxford City Council,Planning & Regulatory,Temporary Bureau Staffing,A0108,22/09/2015,46287230_17,2302.40,Revenue,20000200,CHAMPION EMPLOYMENT LTD
Oxford City Council,Planning & Regulatory,Temporary Bureau Staffing,A0108,22/09/2015,46287230_18,4151.84,Revenue,20000200,CHAMPION EMPLOYMENT LTD
Oxford City Council,Housing and Property,Temporary Bureau Staffing,A0108,22/09/2015,46287230_19,775.68,Revenue,20000200,CHAMPION EMPLOYMENT LTD
Oxford City Council,Direct Services,Temporary Bureau Staffing,A0108,22/09/2015,46287230_2,1577.60,Revenue,20000200,CHAMPION EMPLOYMENT LTD
Oxford City Council,HRA,Temporary Bureau Staffing,A0108,22/09/2015,46287230_20,622.58,Revenue,20000200,CHAMPION EMPLOYMENT LTD
Oxford City Council,Direct Services,Temporary Bureau Staffing,A0108,22/09/2015,46287230_21,1625.93,Revenue,20000200,CHAMPION EMPLOYMENT LTD
Oxford City Council,Assistant Chief Executive,Main Contractor,Y021,22/09/2015,46287230_22,3809.37,Capital,20000200,CHAMPION EMPLOYMENT LTD
Oxford City Council,Planning & Regulatory,Temporary Bureau Staffing,A0108,22/09/2015,46287230_23,7974.64,Revenue,20000200,CHAMPION EMPLOYMENT LTD
Oxford City Council,Planning & Regulatory,Temporary Bureau Staffing,A0108,22/09/2015,46287230_24,3168.00,Revenue,20000200,CHAMPION EMPLOYMENT LTD
Oxford City Council,Planning & Regulatory,Temporary Bureau Staffing,A0108,22/09/2015,46287230_25,5966.42,Revenue,20000200,CHAMPION EMPLOYMENT LTD
Oxford City Council,Community Services,Temporary Bureau Staffing,A0108,22/09/2015,46287230_26,1246.96,Revenue,20000200,CHAMPION EMPLOYMENT LTD
Oxford City Council,Assistant Chief Executive,Temporary Bureau Staffing,A0108,22/09/2015,46287230_27,6828.78,Revenue,20000200,CHAMPION EMPLOYMENT LTD
Oxford City Council,Community Services,Temporary Bureau Staffing,A0108,22/09/2015,46287230_28,1560.67,Revenue,20000200,CHAMPION EMPLOYMENT LTD
Oxford City Council,Financial Services,Temporary Bureau Staffing,A0108,22/09/2015,46287230_29,5280.00,Revenue,20000200,CHAMPION EMPLOYMENT LTD
Oxford City Council,Community Services,Temporary Bureau Staffing,A0108,22/09/2015,46287230_3,3462.36,Revenue,20000200,CHAMPION EMPLOYMENT LTD
Oxford City Council,Assistant Chief Executive,Temporary Bureau Staffing,A0108,22/09/2015,46287230_30,1811.94,Revenue,20000200,CHAMPION EMPLOYMENT LTD
Oxford City Council,HRA,Main Contractor,Y021,22/09/2015,46287230_31,4680.00,Capital,20000200,CHAMPION EMPLOYMENT LTD
Oxford City Council,HRA,Temporary Bureau Staffing,A0108,22/09/2015,46287230_32,6196.28,Revenue,20000200,CHAMPION EMPLOYMENT LTD
Oxford City Council,Direct Services,Temporary Bureau Staffing,A0108,22/09/2015,46287230_33,4216.17,Revenue,20000200,CHAMPION EMPLOYMENT LTD
Oxford City Council,Direct Services,Temporary Bureau Staffing,A0108,22/09/2015,46287230_34,3749.15,Revenue,20000200,CHAMPION EMPLOYMENT LTD
Oxford City Council,Direct Services,Temporary Bureau Staffing,A0108,22/09/2015,46287230_35,1501.58,Revenue,20000200,CHAMPION EMPLOYMENT LTD
Oxford City Council,Housing and Property,Temporary Bureau Staffing,A0108,22/09/2015,46287230_36,1957.08,Revenue,20000200,CHAMPION EMPLOYMENT LTD
Oxford City Council,Direct Services,Temporary Bureau Staffing,A0108,22/09/2015,46287230_37,1149.24,Revenue,20000200,CHAMPION EMPLOYMENT LTD
Oxford City Council,Direct Services,Temporary Bureau Staffing,A0108,22/09/2015,46287230_38,12450.11,Revenue,20000200,CHAMPION EMPLOYMENT LTD
Oxford City Council,Direct Services,Temporary Bureau Staffing,A0108,22/09/2015,46287230_39,1626.99,Revenue,20000200,CHAMPION EMPLOYMENT LTD
Oxford City Council,Housing and Property,Temporary Bureau Staffing,A0108,22/09/2015,46287230_4,5410.88,Revenue,20000200,CHAMPION EMPLOYMENT LTD
Oxford City Council,Direct Services,Temporary Bureau Staffing,A0108,22/09/2015,46287230_40,3891.05,Revenue,20000200,CHAMPION EMPLOYMENT LTD
Oxford City Council,Direct Services,Temporary Bureau Staffing,A0108,22/09/2015,46287230_41,20051.91,Revenue,20000200,CHAMPION EMPLOYMENT LTD
Oxford City Council,Direct Services,Temporary Bureau Staffing,A0108,22/09/2015,46287230_42,3782.56,Revenue,20000200,CHAMPION EMPLOYMENT LTD
Oxford City Council,Direct Services,Temporary Bureau Staffing,A0108,22/09/2015,46287230_43,3348.21,Revenue,20000200,CHAMPION EMPLOYMENT LTD
Oxford City Council,Direct Services,Temporary Bureau Staffing,A0108,22/09/2015,46287230_44,6164.89,Revenue,20000200,CHAMPION EMPLOYMENT LTD
Oxford City Council,Direct Services,Temporary Bureau Staffing,A0108,22/09/2015,46287230_45,9831.86,Revenue,20000200,CHAMPION EMPLOYMENT LTD
Oxford City Council,Direct Services,Temporary Bureau Staffing,A0108,22/09/2015,46287230_46,3382.34,Revenue,20000200,CHAMPION EMPLOYMENT LTD
Oxford City Council,Direct Services,Temporary Bureau Staffing,A0108,22/09/2015,46287230_47,3626.55,Revenue,20000200,CHAMPION EMPLOYMENT LTD
Oxford City Council,Business Improvement,Temporary Bureau Staffing,A0108,22/09/2015,46287230_5,2875.00,Revenue,20000200,CHAMPION EMPLOYMENT LTD
Oxford City Council,Business Improvement,Temporary Bureau Staffing,A0108,22/09/2015,46287230_6,2161.06,Revenue,20000200,CHAMPION EMPLOYMENT LTD
Oxford City Council,Transformation,Temporary Bureau Staffing,A0108,22/09/2015,46287230_7,2358.34,Revenue,20000200,CHAMPION EMPLOYMENT LTD
Oxford City Council,Transformation,Temporary Bureau Staffing,A0108,22/09/2015,46287230_8,3387.08,Revenue,20000200,CHAMPION EMPLOYMENT LTD
Oxford City Council,Business Improvement,Temporary Bureau Staffing,A0108,22/09/2015,46287230_9,1765.79,Revenue,20000200,CHAMPION EMPLOYMENT LTD
Oxford City Council,Housing and Property,Services Maintenance (Planned),B1103,04/08/2015,46286689_1,1082.46,Revenue,20000210,BARKER & EVANS LTD
Oxford City Council,Housing and Property,Services Maintenance (Planned),B1103,04/08/2015,46286689_2,122.50,Revenue,20000210,BARKER & EVANS LTD
Oxford City Council,Direct Services,Services Maintenance (Planned),B1103,04/08/2015,46286689_3,507.10,Revenue,20000210,BARKER & EVANS LTD
Oxford City Council,Housing and Property,Services Maintenance (Planned),B1103,04/08/2015,46286689_4,175.00,Revenue,20000210,BARKER & EVANS LTD
Oxford City Council,Direct Services,Services Maintenance (Planned),B1103,04/08/2015,46286689_5,832.82,Revenue,20000210,BARKER & EVANS LTD
Oxford City Council,Housing and Property,Services Maintenance (Planned),B1103,04/08/2015,46286689_6,709.96,Revenue,20000210,BARKER & EVANS LTD
Oxford City Council,Housing and Property,Services Maintenance (Planned),B1103,04/08/2015,46286689_7,855.47,Revenue,20000210,BARKER & EVANS LTD
Oxford City Council,Housing and Property,Services Maintenance (Planned),B1103,22/09/2015,46287202_1,2483.81,Revenue,20000210,BARKER & EVANS LTD
Oxford City Council,Direct Services,Services Maintenance (Planned),B1103,22/09/2015,46287202_2,13431.47,Revenue,20000210,BARKER & EVANS LTD
Oxford City Council,Housing and Property,Services Maintenance (Planned),B1103,22/09/2015,46287202_3,52.50,Revenue,20000210,BARKER & EVANS LTD
Oxford City Council,Direct Services,Services Maintenance (Planned),B1103,22/09/2015,46287202_4,122.50,Revenue,20000210,BARKER & EVANS LTD
Oxford City Council,Housing and Property,Services Maintenance (Planned),B1103,22/09/2015,46287202_5,4021.74,Revenue,20000210,BARKER & EVANS LTD
Oxford City Council,Housing and Property,Services Maintenance (Planned),B1103,22/09/2015,46287202_6,655.19,Revenue,20000210,BARKER & EVANS LTD
Oxford City Council,Housing and Property,Services Maintenance (Planned),B1103,22/09/2015,46287202_7,633.00,Revenue,20000210,BARKER & EVANS LTD
Oxford City Council,Housing and Property,Services Maintenance (Planned),B1103,22/09/2015,46287202_8,70.00,Revenue,20000210,BARKER & EVANS LTD
Oxford City Council,Housing and Property,Services Maintenance (Planned),B1103,22/09/2015,46287203_1,442.06,Revenue,20000210,BARKER & EVANS LTD
Oxford City Council,Direct Services,Services Maintenance (Planned),B1103,22/09/2015,46287203_2,395.00,Revenue,20000210,BARKER & EVANS LTD
Oxford City Council,Housing and Property,Services Maintenance (Planned),B1103,22/09/2015,46287203_3,344.54,Revenue,20000210,BARKER & EVANS LTD
Oxford City Council,Direct Services,Services Maintenance (Planned),B1103,22/09/2015,46287203_4,2642.99,Revenue,20000210,BARKER & EVANS LTD
Oxford City Council,Housing and Property,Services Maintenance (Planned),B1103,22/09/2015,46287203_5,2559.51,Revenue,20000210,BARKER & EVANS LTD
Oxford City Council,Housing and Property,Services Maintenance (Planned),B1103,22/09/2015,46287203_6,1097.94,Revenue,20000210,BARKER & EVANS LTD
Oxford City Council,Housing and Property,Services Maintenance (Planned),B1103,22/09/2015,46287203_7,126.40,Revenue,20000210,BARKER & EVANS LTD
Oxford City Council,Direct Services,Direct Services Sub Contractors,B1111   ,07/07/2015,60040623_1,926.16,Revenue,20000210,BARKER & EVANS LTD
Oxford City Council,Direct Services,Direct Services Sub Contractors,B1111   ,07/07/2015,60040624_0,885.51,Revenue,20000210,BARKER & EVANS LTD
Oxford City Council,Direct Services,Direct Services Sub Contractors,B1111   ,07/07/2015,60040628_0,2449.29,Revenue,20000210,BARKER & EVANS LTD
Oxford City Council,Holding Accounts & Other Funds,C.I.T.Awaiting Payment,Z970590,18/08/2015,60042665_1,611.36,Revenue,20000210,BARKER & EVANS LTD
Oxford City Council,Holding Accounts & Other Funds,C.I.T.Awaiting Payment,Z970590,18/08/2015,60042672_0,629.53,Revenue,20000210,BARKER & EVANS LTD
Oxford City Council,Direct Services,Direct Services Sub Contractors,B1111   ,15/09/2015,60043873_0,757.00,Revenue,20000210,BARKER & EVANS LTD
Oxford City Council,Direct Services,Direct Services Sub Contractors,B1111   ,15/09/2015,60043876_1,562.31,Revenue,20000210,BARKER & EVANS LTD
Oxford City Council,Environmental Development,Grants-Private Persons,Y005,21/07/2015,1018359_1,6066.00,Capital,20000215,CHILTERN INVADEX LTD
Oxford City Council,Direct Services,Direct Services Supplies & Services,D3311   ,11/08/2015,60042007_1,1250.00,Revenue,20000215,CHILTERN INVADEX LTD
Oxford City Council,Direct Services,Services Maintenance (Planned),B1103,21/07/2015,46286588_1,2582.40,Revenue,20000216,CHRISTY LIGHTING LTD
Oxford City Council,General Fund,VAT Pro Forma Invoices,Z110205,21/07/2015,46286588_2,516.48,Revenue,20000216,CHRISTY LIGHTING LTD
Oxford City Council,Direct Services,Services Maintenance (Planned),B1103,08/09/2015,46287059_1,650.00,Revenue,20000216,CHRISTY LIGHTING LTD
Oxford City Council,Direct Services,Direct Services Sub Contractors,B1111,04/08/2015,60041857_0,3197.55,Revenue,20000219,DARNELLS LTD
Oxford City Council,Environmental Development,Grants-Private Persons,Y005,14/07/2015,1017981_1,3684.00,Capital,20000222,ELLIOTT & JORDAN LTD
Oxford City Council,Environmental Development,Grants-Private Persons,Y005,18/08/2015,1018917_1,4186.00,Capital,20000222,ELLIOTT & JORDAN LTD
Oxford City Council,Environmental Development,Grants-Private Persons,Y005,08/09/2015,1020025_1,1358.71,Capital,20000222,ELLIOTT & JORDAN LTD
Oxford City Council,Environmental Development,Grants-Private Persons,Y005,02/09/2015,1020121_1,12725.00,Capital,20000222,ELLIOTT & JORDAN LTD
Oxford City Council,Environmental Development,Grants-Private Persons,Y005,25/08/2015,1020122_1,2610.84,Capital,20000222,ELLIOTT & JORDAN LTD
Oxford City Council,Environmental Development,Grants-Private Persons,Y005,15/09/2015,1020284_1,3725.00,Capital,20000222,ELLIOTT & JORDAN LTD
Oxford City Council,Environmental Development,Grants-Private Persons,Y005,02/09/2015,1020285_1,3571.57,Capital,20000222,ELLIOTT & JORDAN LTD
Oxford City Council,Planning & Regulatory,General Contracted Services,D3401,08/09/2015,1020453_1,500.00,Revenue,20000222,ELLIOTT & JORDAN LTD
Oxford City Council,Planning & Regulatory,General Contracted Services,D3401,08/09/2015,1020455_1,500.00,Revenue,20000222,ELLIOTT & JORDAN LTD
Oxford City Council,HRA,Main Contractor,Y021,15/09/2015,1020850_1,2540.00,Capital,20000233,JONES & REEVES
Oxford City Council,HRA,Main Contractor,Y021,15/09/2015,1020851_1,2540.00,Capital,20000233,JONES & REEVES
Oxford City Council,HRA,Main Contractor,Y021,15/09/2015,1020852_1,2540.00,Capital,20000233,JONES & REEVES
Oxford City Council,Direct Services,Direct Services Supplies & Services,D3311,04/08/2015,60041649_0,2600.00,Revenue,20000233,JONES & REEVES
Oxford City Council,Direct Services,Direct Services Supplies & Services,D3311,04/08/2015,60041666_1,600.00,Revenue,20000233,JONES & REEVES
Oxford City Council,Direct Services,Direct Services Supplies & Services,D3311,04/08/2015,60041667_0,680.00,Revenue,20000233,JONES & REEVES
Oxford City Council,Direct Services,Direct Services Supplies & Services,D3311,04/08/2015,60041668_1,2700.00,Revenue,20000233,JONES & REEVES
Oxford City Council,Direct Services,Direct Services Supplies & Services,D3311,04/08/2015,60041669_0,540.00,Revenue,20000233,JONES & REEVES
Oxford City Council,Direct Services,Direct Services Supplies & Services,D3311,04/08/2015,60041672_1,550.00,Revenue,20000233,JONES & REEVES
Oxford City Council,Direct Services,Direct Services Supplies & Services,D3311,04/08/2015,60041673_0,640.00,Revenue,20000233,JONES & REEVES
Oxford City Council,Direct Services,Direct Services Supplies & Services,D3311,04/08/2015,60041674_1,2600.00,Revenue,20000233,JONES & REEVES
Oxford City Council,Direct Services,Direct Services Supplies & Services,D3311,04/08/2015,60041675_0,1350.00,Revenue,20000233,JONES & REEVES
Oxford City Council,Direct Services,Direct Services Supplies & Services,D3311,04/08/2015,60041676_1,2600.00,Revenue,20000233,JONES & REEVES
Oxford City Council,Direct Services,Direct Services Supplies & Services,D3311,04/08/2015,60041677_0,600.00,Revenue,20000233,JONES & REEVES
Oxford City Council,Direct Services,Direct Services Sub Contractors,B1111,04/08/2015,60041865_0,741.33,Revenue,20000233,JONES & REEVES
Oxford City Council,Holding Accounts & Other Funds,C.I.T.Awaiting Payment,Z970590,18/08/2015,60042713_1,3600.00,Revenue,20000233,JONES & REEVES
Oxford City Council,Holding Accounts & Other Funds,C.I.T.Awaiting Payment,Z970590,18/08/2015,60042714_0,3600.00,Revenue,20000233,JONES & REEVES
Oxford City Council,Holding Accounts & Other Funds,C.I.T.Awaiting Payment,Z970590,18/08/2015,60042715_1,600.00,Revenue,20000233,JONES & REEVES
Oxford City Council,Holding Accounts & Other Funds,C.I.T.Awaiting Payment,Z970590,18/08/2015,60042721_1,550.00,Revenue,20000233,JONES & REEVES
Oxford City Council,Holding Accounts & Other Funds,C.I.T.Awaiting Payment,Z970590,18/08/2015,60042723_1,580.00,Revenue,20000233,JONES & REEVES
Oxford City Council,Holding Accounts & Other Funds,C.I.T.Awaiting Payment,Z970590,18/08/2015,60042724_0,980.00,Revenue,20000233,JONES & REEVES
Oxford City Council,Holding Accounts & Other Funds,C.I.T.Awaiting Payment,Z970590,18/08/2015,60042725_1,3600.00,Revenue,20000233,JONES & REEVES
Oxford City Council,Holding Accounts & Other Funds,C.I.T.Awaiting Payment,Z970590,18/08/2015,60042726_0,3600.00,Revenue,20000233,JONES & REEVES
Oxford City Council,Holding Accounts & Other Funds,C.I.T.Awaiting Payment,Z970590,18/08/2015,60042727_1,3500.00,Revenue,20000233,JONES & REEVES
Oxford City Council,Holding Accounts & Other Funds,C.I.T.Awaiting Payment,Z970590,18/08/2015,60042728_0,3400.00,Revenue,20000233,JONES & REEVES
Oxford City Council,Holding Accounts & Other Funds,C.I.T.Awaiting Payment,Z970590,18/08/2015,60042729_1,3600.00,Revenue,20000233,JONES & REEVES
Oxford City Council,Holding Accounts & Other Funds,C.I.T.Awaiting Payment,Z970590,18/08/2015,60042730_0,3600.00,Revenue,20000233,JONES & REEVES
Oxford City Council,Holding Accounts & Other Funds,C.I.T.Awaiting Payment,Z970590,18/08/2015,60042731_1,3900.00,Revenue,20000233,JONES & REEVES
Oxford City Council,Holding Accounts & Other Funds,C.I.T.Awaiting Payment,Z970590,18/08/2015,60042732_0,1808.85,Revenue,20000233,JONES & REEVES
Oxford City Council,Holding Accounts & Other Funds,C.I.T.Awaiting Payment,Z970590,18/08/2015,60042733_1,786.12,Revenue,20000233,JONES & REEVES
Oxford City Council,HRA,Main Contractor,Y021,28/07/2015,1019055_1,492321.05,Capital,20000236,J B LEADBITTER & CO LTD
Oxford City Council,HRA,Main Contractor,Y021,11/08/2015,1019365_1,921478.84,Capital,20000236,J B LEADBITTER & CO LTD
Oxford City Council,Housing and Property,Services Maintenance (Planned),B1103,22/09/2015,46287180_1,993.55,Revenue,20000244,OXFORD REFRIGERATION LTD
Oxford City Council,Direct Services,Direct Services Sub Contractors,B1111   ,07/07/2015,60040621_1,7811.00,Revenue,20000244,OXFORD REFRIGERATION LTD
Oxford City Council,Direct Services,Reactive Maintenance & Minor Repairs,B1101,18/08/2015,60042342_0,4995.00,Revenue,20000244,OXFORD REFRIGERATION LTD
Oxford City Council,Direct Services,Reactive Maintenance & Minor Repairs,B1101,18/08/2015,60042605_1,543.00,Revenue,20000244,OXFORD REFRIGERATION LTD
Oxford City Council,Direct Services,Reactive Maintenance & Minor Repairs,B1101,25/08/2015,60042763_1,1335.00,Revenue,20000244,OXFORD REFRIGERATION LTD
Oxford City Council,Holding Accounts & Other Funds,C.I.T.Awaiting Payment,Z970590 ,02/09/2015,60043561_0,1025.00,Revenue,20000244,OXFORD REFRIGERATION LTD
Oxford City Council,Direct Services,Direct Services Sub Contractors,B1111   ,15/09/2015,60043925_0,3534.00,Revenue,20000244,OXFORD REFRIGERATION LTD
Oxford City Council,Direct Services,Reactive Maintenance & Minor Repairs,B1101,11/08/2015,1019262_1,2812.03,Revenue,20000249,SSE CONTRACTING LTD
Oxford City Council,Housing and Property,Reactive Maintenance & Minor Repairs,B1101,22/09/2015,46287201_1,567.50,Revenue,20000249,SSE CONTRACTING LTD
Oxford City Council,Direct Services,Services Maintenance (Planned),B1103,22/09/2015,46287201_2,1677.17,Revenue,20000249,SSE CONTRACTING LTD
Oxford City Council,Housing and Property,Services Maintenance (Planned),B1103,22/09/2015,46287201_3,1245.94,Revenue,20000249,SSE CONTRACTING LTD
Oxford City Council,Direct Services,Health & Safety,B1309,22/09/2015,46287201_4,109.00,Revenue,20000249,SSE CONTRACTING LTD
Oxford City Council,Housing and Property,Services Maintenance (Planned),B1103,22/09/2015,46287201_5,385.19,Revenue,20000249,SSE CONTRACTING LTD
Oxford City Council,Housing and Property,Services Maintenance (Planned),B1103,22/09/2015,46287201_6,141.20,Revenue,20000249,SSE CONTRACTING LTD
Oxford City Council,Housing and Property,Services Maintenance (Planned),B1103,22/09/2015,46287201_7,120.78,Revenue,20000249,SSE CONTRACTING LTD
Oxford City Council,Housing and Property,Reactive Maintenance & Minor Repairs,B1101,22/09/2015,46287201_8,146.27,Revenue,20000249,SSE CONTRACTING LTD
Oxford City Council,Holding Accounts & Other Funds,C.I.T.Awaiting Payment,Z970590 ,11/08/2015,60042238_0,1808.85,Revenue,20000258,L A WOOD (OXON) LTD
Oxford City Council,Holding Accounts & Other Funds,C.I.T.Awaiting Payment,Z970590,25/08/2015,60043190_0,749.74,Revenue,20000258,L A WOOD (OXON) LTD
Oxford City Council,Holding Accounts & Other Funds,C.I.T.Awaiting Payment,Z970590,25/08/2015,60043193_1,889.88,Revenue,20000258,L A WOOD (OXON) LTD
Oxford City Council,Holding Accounts & Other Funds,C.I.T.Awaiting Payment,Z970590,25/08/2015,60043194_0,1546.29,Revenue,20000258,L A WOOD (OXON) LTD
Oxford City Council,Direct Services,Direct Services Sub Contractors,B1111   ,08/09/2015,60043633_0,1107.02,Revenue,20000258,L A WOOD (OXON) LTD
Oxford City Council,Direct Services,Direct Services Sub Contractors,B1111   ,08/09/2015,60043635_0,625.66,Revenue,20000258,L A WOOD (OXON) LTD
Oxford City Council,Direct Services,Direct Services Sub Contractors,B1111   ,08/09/2015,60043637_0,1054.80,Revenue,20000258,L A WOOD (OXON) LTD
Oxford City Council,Direct Services,Direct Services Sub Contractors,B1111   ,08/09/2015,60043649_0,910.14,Revenue,20000258,L A WOOD (OXON) LTD
Oxford City Council,Direct Services,Direct Services Sub Contractors,B1111   ,15/09/2015,60043897_0,913.73,Revenue,20000258,L A WOOD (OXON) LTD
Oxford City Council,Direct Services,Direct Services Sub Contractors,B1111   ,15/09/2015,60043904_1,1108.14,Revenue,20000258,L A WOOD (OXON) LTD
Oxford City Council,Direct Services,Direct Services Sub Contractors,B1111   ,15/09/2015,60043906_1,786.12,Revenue,20000258,L A WOOD (OXON) LTD
Oxford City Council,Direct Services,Direct Services Sub Contractors,B1111   ,15/09/2015,60043961_0,906.62,Revenue,20000258,L A WOOD (OXON) LTD
Oxford City Council,Direct Services,Direct Services Sub Contractors,B1111,29/09/2015,60044329_0,564.15,Revenue,20000258,L A WOOD (OXON) LTD
Oxford City Council,Suspense,Other Miscellaneous Expenses,D3811,07/07/2015,1018116_1,4170.00,Revenue,20000263,SHEEHAN HAULAGE & PLANT HIRE LTD
Oxford City Council,Direct Services,Waste Disposal & Skip Hire,D3420,21/07/2015,1018507_1,869.75,Revenue,20000263,SHEEHAN HAULAGE & PLANT HIRE LTD
Oxford City Council,Direct Services,Waste Disposal & Skip Hire,D3420,18/08/2015,1019899_1,893.00,Revenue,20000263,SHEEHAN HAULAGE & PLANT HIRE LTD
Oxford City Council,Direct Services,Waste Disposal & Skip Hire,D3420,15/09/2015,1020706_1,855.80,Revenue,20000263,SHEEHAN HAULAGE & PLANT HIRE LTD
Oxford City Council,Direct Services,Materials,D3021   ,14/07/2015,60040803_0,889.85,Revenue,20000263,SHEEHAN HAULAGE & PLANT HIRE LTD
Oxford City Council,Direct Services,Tipping Charges,D3421   ,14/07/2015,60040837_0,730.00,Revenue,20000263,SHEEHAN HAULAGE & PLANT HIRE LTD
Oxford City Council,Direct Services,Tipping Charges,D3421   ,14/07/2015,60040839_0,652.00,Revenue,20000263,SHEEHAN HAULAGE & PLANT HIRE LTD
Oxford City Council,HRA,Asbestos Work,B1106   ,14/07/2015,60040840_1,1105.00,Revenue,20000263,SHEEHAN HAULAGE & PLANT HIRE LTD
Oxford City Council,Direct Services,Tipping Charges,D3421   ,14/07/2015,60040842_1,674.00,Revenue,20000263,SHEEHAN HAULAGE & PLANT HIRE LTD
Oxford City Council,Direct Services,Materials,D3021   ,14/07/2015,60040844_1,720.00,Revenue,20000263,SHEEHAN HAULAGE & PLANT HIRE LTD
Oxford City Council,Direct Services,Tipping Charges,D3421   ,14/07/2015,60040845_0,540.00,Revenue,20000263,SHEEHAN HAULAGE & PLANT HIRE LTD
Oxford City Council,Direct Services,Materials,D3021   ,21/07/2015,60041163_1,1180.48,Revenue,20000263,SHEEHAN HAULAGE & PLANT HIRE LTD
Oxford City Council,Direct Services,Materials,D3021   ,28/07/2015,60041325_0,577.84,Revenue,20000263,SHEEHAN HAULAGE & PLANT HIRE LTD
Oxford City Council,HRA,Asbestos Work,B1106,04/08/2015,60041802_1,1168.00,Revenue,20000263,SHEEHAN HAULAGE & PLANT HIRE LTD
Oxford City Council,Direct Services,Tipping Charges,D3421,04/08/2015,60041803_0,696.00,Revenue,20000263,SHEEHAN HAULAGE & PLANT HIRE LTD
Oxford City Council,Direct Services,Tipping Charges,D3421,04/08/2015,60041808_1,500.00,Revenue,20000263,SHEEHAN HAULAGE & PLANT HIRE LTD
Oxford City Council,Direct Services,Tipping Charges,D3421,04/08/2015,60041811_0,622.00,Revenue,20000263,SHEEHAN HAULAGE & PLANT HIRE LTD
Oxford City Council,Direct Services,Tipping Charges,D3421,04/08/2015,60041814_1,634.00,Revenue,20000263,SHEEHAN HAULAGE & PLANT HIRE LTD
Oxford City Council,Direct Services,General Contracted Services,D3401   ,11/08/2015,60042193_1,2543.07,Revenue,20000263,SHEEHAN HAULAGE & PLANT HIRE LTD
Oxford City Council,Direct Services,General Contracted Services,D3401   ,11/08/2015,60042194_0,1170.00,Revenue,20000263,SHEEHAN HAULAGE & PLANT HIRE LTD
Oxford City Council,Direct Services,General Contracted Services,D3401   ,11/08/2015,60042195_1,1881.05,Revenue,20000263,SHEEHAN HAULAGE & PLANT HIRE LTD
Oxford City Council,Direct Services,Materials,D3021,18/08/2015,60042423_1,667.10,Revenue,20000263,SHEEHAN HAULAGE & PLANT HIRE LTD
Oxford City Council,Direct Services,Materials,D3021,18/08/2015,60042424_0,674.45,Revenue,20000263,SHEEHAN HAULAGE & PLANT HIRE LTD
Oxford City Council,Direct Services,General Contracted Services,D3401,18/08/2015,60042426_0,1848.00,Revenue,20000263,SHEEHAN HAULAGE & PLANT HIRE LTD
Oxford City Council,Direct Services,General Contracted Services,D3401,18/08/2015,60042427_1,660.00,Revenue,20000263,SHEEHAN HAULAGE & PLANT HIRE LTD
Oxford City Council,Direct Services,General Contracted Services,D3401,18/08/2015,60042549_1,2549.16,Revenue,20000263,SHEEHAN HAULAGE & PLANT HIRE LTD
Oxford City Council,Direct Services,General Contracted Services,D3401,18/08/2015,60042550_0,2575.30,Revenue,20000263,SHEEHAN HAULAGE & PLANT HIRE LTD
Oxford City Council,Direct Services,Waste Disposal & Skip Hire,D3420,25/08/2015,60042930_0,816.00,Revenue,20000263,SHEEHAN HAULAGE & PLANT HIRE LTD
Oxford City Council,Direct Services,Waste Disposal & Skip Hire,D3420,25/08/2015,60042932_0,720.00,Revenue,20000263,SHEEHAN HAULAGE & PLANT HIRE LTD
Oxford City Council,Direct Services,Temporary Bureau Staffing,A0108,25/08/2015,60042934_0,2706.00,Revenue,20000263,SHEEHAN HAULAGE & PLANT HIRE LTD
Oxford City Council,HRA,Asbestos Work,B1106   ,02/09/2015,60043475_0,923.00,Revenue,20000263,SHEEHAN HAULAGE & PLANT HIRE LTD
Oxford City Council,Direct Services,Tipping Charges,D3421   ,02/09/2015,60043476_1,640.00,Revenue,20000263,SHEEHAN HAULAGE & PLANT HIRE LTD
Oxford City Council,Direct Services,Tipping Charges,D3421   ,02/09/2015,60043478_1,728.00,Revenue,20000263,SHEEHAN HAULAGE & PLANT HIRE LTD
Oxford City Council,Direct Services,Tipping Charges,D3421   ,02/09/2015,60043480_1,560.00,Revenue,20000263,SHEEHAN HAULAGE & PLANT HIRE LTD
Oxford City Council,Direct Services,Tipping Charges,D3421   ,02/09/2015,60043481_0,630.00,Revenue,20000263,SHEEHAN HAULAGE & PLANT HIRE LTD
Oxford City Council,Direct Services,General Contracted Services,D3401   ,22/09/2015,60044032_0,2582.47,Revenue,20000263,SHEEHAN HAULAGE & PLANT HIRE LTD
Oxford City Council,Community Services,Reactive Maintenance & Minor Repairs,B1101,14/07/2015,1017900_1,991.86,Revenue,20000270,THE SHIELD GROUP
Oxford City Council,Direct Services,Materials,D3021   ,28/07/2015,60041305_0,13349.50,Revenue,20000284,GORMAN SURFACING LIMITED
Oxford City Council,Direct Services,General Contracted Services,D3401,18/08/2015,60042567_1,4892.62,Revenue,20000284,GORMAN SURFACING LIMITED
Oxford City Council,Housing and Property,Reactive Maintenance & Minor Repairs,B1101,11/08/2015,46286724_1,512.00,Revenue,20000286,D E & H V HUSSEY
Oxford City Council,Housing and Property,Reactive Maintenance & Minor Repairs,B1101,11/08/2015,46286725_1,859.37,Revenue,20000286,D E & H V HUSSEY
Oxford City Council,Housing and Property,Reactive Maintenance & Minor Repairs,B1101,08/09/2015,46287058_1,1995.00,Revenue,20000286,D E & H V HUSSEY
Oxford City Council,Housing and Property,Reactive Maintenance & Minor Repairs,B1101,18/08/2015,60042312_0,1219.00,Revenue,20000286,D E & H V HUSSEY
Oxford City Council,Housing and Property,Reactive Maintenance & Minor Repairs,B1101,18/08/2015,60042313_1,1413.00,Revenue,20000286,D E & H V HUSSEY
Oxford City Council,HRA,Controlled Entry Maintenance,B1243,07/07/2015,46286286_1,1536.18,Revenue,20000293,TUNSTALL TELECOM LIMITED
Oxford City Council,HRA,Controlled Entry Maintenance,B1243,07/07/2015,46286286_2,95.42,Revenue,20000293,TUNSTALL TELECOM LIMITED
Oxford City Council,HRA,Controlled Entry Maintenance,B1243,11/08/2015,46286758_1,1722.98,Revenue,20000293,TUNSTALL TELECOM LIMITED
Oxford City Council,HRA,Controlled Entry Maintenance,B1243,11/08/2015,46286758_2,95.42,Revenue,20000293,TUNSTALL TELECOM LIMITED
Oxford City Council,HRA,Main Contractor,Y021,14/07/2015,1018323_1,3101.86,Capital,20000314,MARK GROUP LTD
Oxford City Council,HRA,Main Contractor,Y021,02/09/2015,1019871_1,1044.30,Capital,20000314,MARK GROUP LTD
Oxford City Council,HRA,Main Contractor,Y021,02/09/2015,1019902_1,21313.18,Capital,20000314,MARK GROUP LTD
Oxford City Council,Housing and Property,Services Maintenance (Planned),B1103,25/08/2015,46286939_1,1095.00,Revenue,20000397,WINDRUSH DOOR & WINDOW SERVICES LTD
Oxford City Council,Direct Services,Direct Services Sub Contractors,B1111   ,03/07/2015,60040435_1,1755.00,Revenue,20000441,1ST CHOICE SCAFFOLDING (OXFORD) LTD
Oxford City Council,Direct Services,Direct Services Sub Contractors,B1111   ,03/07/2015,60040437_1,561.60,Revenue,20000441,1ST CHOICE SCAFFOLDING (OXFORD) LTD
Oxford City Council,Direct Services,Direct Services Sub Contractors,B1111   ,03/07/2015,60040439_1,772.50,Revenue,20000441,1ST CHOICE SCAFFOLDING (OXFORD) LTD
Oxford City Council,Direct Services,Direct Services Sub Contractors,B1111   ,21/07/2015,60041178_0,850.00,Revenue,20000441,1ST CHOICE SCAFFOLDING (OXFORD) LTD
Oxford City Council,Direct Services,Direct Services Sub Contractors,B1111   ,28/07/2015,60041370_1,819.00,Revenue,20000441,1ST CHOICE SCAFFOLDING (OXFORD) LTD
Oxford City Council,Direct Services,Direct Services Sub Contractors,B1111   ,28/07/2015,60041376_1,624.00,Revenue,20000441,1ST CHOICE SCAFFOLDING (OXFORD) LTD
Oxford City Council,Direct Services,Direct Services Sub Contractors,B1111   ,28/07/2015,60041397_0,819.00,Revenue,20000441,1ST CHOICE SCAFFOLDING (OXFORD) LTD
Oxford City Council,Direct Services,Direct Services Sub Contractors,B1111,04/08/2015,60041683_0,561.60,Revenue,20000441,1ST CHOICE SCAFFOLDING (OXFORD) LTD
Oxford City Council,HRA,Laundry Appliances,B1222,11/08/2015,46286755_1,3741.38,Revenue,20002002,AJB ENGINEERING SERVICES LTD
Oxford City Council,HRA,Laundry Appliances,B1222,11/08/2015,46286755_2,727.59,Revenue,20002002,AJB ENGINEERING SERVICES LTD
Oxford City Council,HRA,Laundry Appliances,B1222,11/08/2015,46286756_1,1030.70,Revenue,20002002,AJB ENGINEERING SERVICES LTD
Oxford City Council,HRA,Laundry Appliances,B1222,11/08/2015,46286756_2,169.17,Revenue,20002002,AJB ENGINEERING SERVICES LTD
Oxford City Council,HRA,Laundry Appliances,B1222,11/08/2015,46286757_1,1139.70,Revenue,20002002,AJB ENGINEERING SERVICES LTD
Oxford City Council,HRA,Laundry Appliances,B1222,11/08/2015,46286757_2,169.17,Revenue,20002002,AJB ENGINEERING SERVICES LTD
Oxford City Council,Direct Services,Materials,D3021,28/07/2015,1018502_1,1164.00,Revenue,20002005,HANSON AGGREGATES
Oxford City Council,Direct Services,Materials,D3021   ,14/07/2015,60040807_0,1680.01,Revenue,20002005,HANSON AGGREGATES
Oxford City Council,Direct Services,Materials,D3021   ,14/07/2015,60040808_1,1435.68,Revenue,20002005,HANSON AGGREGATES
Oxford City Council,Direct Services,Materials,D3021   ,14/07/2015,60040818_1,874.80,Revenue,20002005,HANSON AGGREGATES
Oxford City Council,Direct Services,Materials,D3021   ,14/07/2015,60040858_1,1063.71,Revenue,20002005,HANSON AGGREGATES
Oxford City Council,Direct Services,Materials,D3021   ,14/07/2015,60040881_0,842.80,Revenue,20002005,HANSON AGGREGATES
Oxford City Council,Direct Services,Materials,D3021   ,21/07/2015,60041197_1,1184.00,Revenue,20002005,HANSON AGGREGATES
Oxford City Council,Suspense,Materials,D3021   ,21/07/2015,60041198_0,629.37,Revenue,20002005,HANSON AGGREGATES
Oxford City Council,Direct Services,Materials,D3021,04/08/2015,60041690_1,610.47,Revenue,20002005,HANSON AGGREGATES
Oxford City Council,Direct Services,Materials,D3021,04/08/2015,60041704_1,937.14,Revenue,20002005,HANSON AGGREGATES
Oxford City Council,Direct Services,Materials,D3021   ,11/08/2015,60041879_1,602.00,Revenue,20002005,HANSON AGGREGATES
Oxford City Council,Direct Services,Materials,D3021   ,11/08/2015,60041884_0,661.56,Revenue,20002005,HANSON AGGREGATES
Oxford City Council,Direct Services,Materials,D3021   ,11/08/2015,60041890_0,860.00,Revenue,20002005,HANSON AGGREGATES
Oxford City Council,Direct Services,Materials,D3021   ,11/08/2015,60041891_1,529.04,Revenue,20002005,HANSON AGGREGATES
Oxford City Council,Direct Services,Materials,D3021   ,11/08/2015,60041905_1,828.24,Revenue,20002005,HANSON AGGREGATES
Oxford City Council,Direct Services,Materials,D3021   ,11/08/2015,60041906_0,740.00,Revenue,20002005,HANSON AGGREGATES
Oxford City Council,Direct Services,Materials,D3021   ,11/08/2015,60042187_1,688.00,Revenue,20002005,HANSON AGGREGATES
Oxford City Council,Direct Services,Materials,D3021   ,11/08/2015,60042188_0,523.92,Revenue,20002005,HANSON AGGREGATES
Oxford City Council,Direct Services,Materials,D3021,18/08/2015,60042331_1,589.96,Revenue,20002005,HANSON AGGREGATES
Oxford City Council,Direct Services,Materials,D3021,18/08/2015,60042332_0,823.20,Revenue,20002005,HANSON AGGREGATES
Oxford City Council,Direct Services,Materials,D3021,18/08/2015,60042407_1,552.72,Revenue,20002005,HANSON AGGREGATES
Oxford City Council,Direct Services,Materials,D3021,18/08/2015,60042433_1,5323.50,Revenue,20002005,HANSON AGGREGATES
Oxford City Council,Direct Services,Materials,D3021,18/08/2015,60042434_0,14908.50,Revenue,20002005,HANSON AGGREGATES
Oxford City Council,Direct Services,Materials,D3021,18/08/2015,60042435_1,860.00,Revenue,20002005,HANSON AGGREGATES
Oxford City Council,Direct Services,Materials,D3021,18/08/2015,60042436_0,847.96,Revenue,20002005,HANSON AGGREGATES
Oxford City Council,Direct Services,Materials,D3021,18/08/2015,60042437_1,19516.80,Revenue,20002005,HANSON AGGREGATES
Oxford City Council,Suspense,Materials,D3021,18/08/2015,60042527_1,876.04,Revenue,20002005,HANSON AGGREGATES
Oxford City Council,Direct Services,Materials,D3021,25/08/2015,60042789_1,516.00,Revenue,20002005,HANSON AGGREGATES
Oxford City Council,Direct Services,Materials,D3021,25/08/2015,60042790_0,930.60,Revenue,20002005,HANSON AGGREGATES
Oxford City Council,Direct Services,Materials,D3021,25/08/2015,60042921_1,900.00,Revenue,20002005,HANSON AGGREGATES
Oxford City Council,Direct Services,Materials,D3021,25/08/2015,60043000_0,840.00,Revenue,20002005,HANSON AGGREGATES
Oxford City Council,Direct Services,Materials,D3021,25/08/2015,60043002_0,742.50,Revenue,20002005,HANSON AGGREGATES
Oxford City Council,Direct Services,Materials,D3021   ,02/09/2015,60043256_1,667.50,Revenue,20002005,HANSON AGGREGATES
Oxford City Council,Direct Services,Materials,D3021   ,22/09/2015,60043995_2,511.00,Revenue,20002005,HANSON AGGREGATES
Oxford City Council,Direct Services,Materials,D3021   ,22/09/2015,60043999_2,840.00,Revenue,20002005,HANSON AGGREGATES
Oxford City Council,Direct Services,Materials,D3021   ,22/09/2015,60044039_2,774.00,Revenue,20002005,HANSON AGGREGATES
Oxford City Council,Direct Services,Materials,D3021,29/09/2015,60044237_0,940.00,Revenue,20002005,HANSON AGGREGATES
Oxford City Council,Direct Services,Materials,D3021   ,07/07/2015,47980468_1,646.54,Revenue,20002033,TENNANT UK CLEANING SOLUTIONS LTD (FORMERLY APPLIED SWEEPERS LTD)
Oxford City Council,Direct Services,Materials,D3021,04/08/2015,47980867_1,16.30,Revenue,20002033,TENNANT UK CLEANING SOLUTIONS LTD (FORMERLY APPLIED SWEEPERS LTD)
Oxford City Council,Direct Services,Materials,D3021,04/08/2015,47980867_2,695.83,Revenue,20002033,TENNANT UK CLEANING SOLUTIONS LTD (FORMERLY APPLIED SWEEPERS LTD)
Oxford City Council,Direct Services,Materials,D3021,02/09/2015,47981423_0,793.00,Revenue,20002033,TENNANT UK CLEANING SOLUTIONS LTD (FORMERLY APPLIED SWEEPERS LTD)
Oxford City Council,Community Services,Tools,D3023,04/08/2015,1016848_0,1238.04,Revenue,20002034,ARCO LTD
Oxford City Council,Community Services,Uniforms,D3202,25/08/2015,1018702_1,570.50,Revenue,20002034,ARCO LTD
Oxford City Council,Direct Services,Direct Services Supplies & Services,D3311   ,14/07/2015,60040873_0,560.44,Revenue,20002040,SIG TRADING LTD T/A ASPHALTIC ROOFING SUPPS LTD
Oxford City Council,Housing and Property,Reactive Maintenance & Minor Repairs,B1101,02/09/2015,46287005_1,784.81,Revenue,20002056,B & B LOCKSMITHS
Oxford City Council,HRA,Rent,B1701,15/09/2015,1020394_1,1000.00,Revenue,20002099,CANAL & RIVER TRUST
Oxford City Council,Direct Services,Rent,B1701,15/09/2015,1020580_1,1372.13,Revenue,20002099,CANAL & RIVER TRUST
Oxford City Council,Direct Services,Security Services,D3418,28/07/2015,1018725_1,4449.11,Revenue,20002120,OCS GROUP UK LTD T/A CANNON
Oxford City Council,Direct Services,General Contracted Services,D3401,28/07/2015,1018726_1,543.13,Revenue,20002120,OCS GROUP UK LTD T/A CANNON
Oxford City Council,Direct Services,Security Services,D3418,15/09/2015,1020638_1,543.13,Revenue,20002120,OCS GROUP UK LTD T/A CANNON
Oxford City Council,Direct Services,Security Services,D3418,15/09/2015,1020649_1,4449.11,Revenue,20002120,OCS GROUP UK LTD T/A CANNON
Oxford City Council,Community Services,Photocopying/Paper Supplies,D3306,07/07/2015,1017869_1,1706.06,Revenue,20002121,CANON (UK) LTD
Oxford City Council,Community Services,Photocopying/Paper Supplies,D3306,07/07/2015,1017870_1,1965.45,Revenue,20002121,CANON (UK) LTD
Oxford City Council,Community Services,Photocopying/Paper Supplies,D3306,07/07/2015,1017871_1,912.14,Revenue,20002121,CANON (UK) LTD
Oxford City Council,Community Services,Photocopying/Paper Supplies,D3306,28/07/2015,1018742_1,1066.35,Revenue,20002121,CANON (UK) LTD
Oxford City Council,Community Services,Photocopying/Paper Supplies,D3306,28/07/2015,1018743_1,2094.63,Revenue,20002121,CANON (UK) LTD
Oxford City Council,Planning & Regulatory,Photocopying/Paper Supplies,D3306,11/08/2015,1019157_1,962.54,Revenue,20002121,CANON (UK) LTD
Oxford City Council,Direct Services,Photocopying/Paper Supplies,D3306,25/08/2015,1019564_1,2043.62,Revenue,20002121,CANON (UK) LTD
Oxford City Council,Community Services,Photocopying/Paper Supplies,D3306,18/08/2015,1019643_1,586.55,Revenue,20002121,CANON (UK) LTD
Oxford City Council,Planning & Regulatory,Photocopying/Paper Supplies,D3306,22/09/2015,1020626_1,535.50,Revenue,20002121,CANON (UK) LTD
Oxford City Council,Community Services,Photocopying/Paper Supplies,D3306,22/09/2015,1020686_1,1295.05,Revenue,20002121,CANON (UK) LTD
Oxford City Council,Community Services,Photocopying/Paper Supplies,D3306,29/09/2015,1020687_1,1097.13,Revenue,20002121,CANON (UK) LTD
Oxford City Council,Direct Services,Photocopying/Paper Supplies,D3306,22/09/2015,1020688_1,1115.52,Revenue,20002121,CANON (UK) LTD
Oxford City Council,Direct Services,Photocopying/Paper Supplies,D3306,22/09/2015,1020690_1,2071.52,Revenue,20002121,CANON (UK) LTD
Oxford City Council,Direct Services,Photocopying/Paper Supplies,D3306,22/09/2015,1020691_1,1514.00,Revenue,20002121,CANON (UK) LTD
Oxford City Council,Direct Services,Materials,D3021,28/07/2015,47980816_1,165.07,Revenue,20002168,DENNIS EAGLE LTD
Oxford City Council,Direct Services,Materials,D3021,28/07/2015,47980816_2,53.13,Revenue,20002168,DENNIS EAGLE LTD
Oxford City Council,Direct Services,Materials,D3021,28/07/2015,47980816_3,60.17,Revenue,20002168,DENNIS EAGLE LTD
Oxford City Council,Direct Services,Materials,D3021,28/07/2015,47980816_4,260.19,Revenue,20002168,DENNIS EAGLE LTD
Oxford City Council,Direct Services,Materials,D3021,04/08/2015,47980853_1,22.45,Revenue,20002168,DENNIS EAGLE LTD
Oxford City Council,Direct Services,Materials,D3021,04/08/2015,47980853_2,53.13,Revenue,20002168,DENNIS EAGLE LTD
Oxford City Council,Direct Services,Materials,D3021,04/08/2015,47980853_3,60.17,Revenue,20002168,DENNIS EAGLE LTD
Oxford City Council,Direct Services,Materials,D3021,04/08/2015,47980853_4,260.19,Revenue,20002168,DENNIS EAGLE LTD
Oxford City Council,Direct Services,Materials,D3021,04/08/2015,47980853_5,168.28,Revenue,20002168,DENNIS EAGLE LTD
Oxford City Council,Direct Services,Materials,D3021,02/09/2015,47981413_0,168.28,Revenue,20002168,DENNIS EAGLE LTD
Oxford City Council,Direct Services,Materials,D3021,02/09/2015,47981413_1,377.22,Revenue,20002168,DENNIS EAGLE LTD
Oxford City Council,Direct Services,Main Contractor,Y021,08/09/2015,47981426_1,55.00,Capital,20002168,DENNIS EAGLE LTD
Oxford City Council,Direct Services,Main Contractor,Y021,08/09/2015,47981426_2,650.00,Capital,20002168,DENNIS EAGLE LTD
Oxford City Council,Direct Services,Main Contractor,Y021,08/09/2015,47981427_0,55.00,Capital,20002168,DENNIS EAGLE LTD
Oxford City Council,Direct Services,Main Contractor,Y021,08/09/2015,47981427_1,650.00,Capital,20002168,DENNIS EAGLE LTD
Oxford City Council,Direct Services,Materials,D3021,08/09/2015,47981518_1,4720.08,Revenue,20002168,DENNIS EAGLE LTD
Oxford City Council,Direct Services,Materials,D3021,22/09/2015,47981658_1,249.11,Revenue,20002168,DENNIS EAGLE LTD
Oxford City Council,Direct Services,Materials,D3021,22/09/2015,47981658_1,249.11,Revenue,20002168,DENNIS EAGLE LTD
Oxford City Council,Direct Services,Main Contractor,Y021,22/09/2015,47981683_0,178508.00,Capital,20002168,DENNIS EAGLE LTD
Oxford City Council,Direct Services,Materials,D3021,22/09/2015,47981697_1,168.28,Revenue,20002168,DENNIS EAGLE LTD
Oxford City Council,Direct Services,Materials,D3021,22/09/2015,47981697_2,194.25,Revenue,20002168,DENNIS EAGLE LTD
Oxford City Council,Direct Services,Materials,D3021,22/09/2015,47981697_3,31.39,Revenue,20002168,DENNIS EAGLE LTD
Oxford City Council,Direct Services,Materials,D3021,22/09/2015,47981697_4,21.72,Revenue,20002168,DENNIS EAGLE LTD
Oxford City Council,Direct Services,Materials,D3021,22/09/2015,47981697_5,53.13,Revenue,20002168,DENNIS EAGLE LTD
Oxford City Council,Direct Services,Materials,D3021,22/09/2015,47981697_6,60.17,Revenue,20002168,DENNIS EAGLE LTD
Oxford City Council,Direct Services,Materials,D3021,22/09/2015,47981697_7,260.19,Revenue,20002168,DENNIS EAGLE LTD
Oxford City Council,Direct Services,Materials,D3021,29/09/2015,47981750_0,234.73,Revenue,20002168,DENNIS EAGLE LTD
Oxford City Council,Direct Services,Materials,D3021,29/09/2015,47981750_1,234.73,Revenue,20002168,DENNIS EAGLE LTD
Oxford City Council,Direct Services,Materials,D3021,29/09/2015,47981750_2,38.17,Revenue,20002168,DENNIS EAGLE LTD
Oxford City Council,Direct Services,Materials,D3021,29/09/2015,47981750_3,14.84,Revenue,20002168,DENNIS EAGLE LTD
Oxford City Council,Direct Services,Materials,D3021,29/09/2015,47981750_4,646.38,Revenue,20002168,DENNIS EAGLE LTD
Oxford City Council,Direct Services,Materials,D3021,29/09/2015,47981750_5,91.46,Revenue,20002168,DENNIS EAGLE LTD
Oxford City Council,Direct Services,Materials,D3021,29/09/2015,47981750_6,33.72,Revenue,20002168,DENNIS EAGLE LTD
Oxford City Council,Direct Services,Materials,D3021   ,03/07/2015,60040127_1,923.07,Revenue,20002183,EYRE & ELLISTON LTD
Oxford City Council,Direct Services,Materials,D3021   ,03/07/2015,60040129_1,5178.03,Revenue,20002183,EYRE & ELLISTON LTD
Oxford City Council,Direct Services,Materials,D3021   ,03/07/2015,60040132_0,1043.64,Revenue,20002183,EYRE & ELLISTON LTD
Oxford City Council,Direct Services,Direct Services Supplies & Services,D3311   ,03/07/2015,60040159_1,543.09,Revenue,20002183,EYRE & ELLISTON LTD
Oxford City Council,Direct Services,Materials,D3021   ,07/07/2015,60040484_0,593.74,Revenue,20002183,EYRE & ELLISTON LTD
Oxford City Council,Direct Services,Direct Services Supplies & Services,D3311   ,07/07/2015,60040485_1,956.69,Revenue,20002183,EYRE & ELLISTON LTD
Oxford City Council,Direct Services,Materials,D3021   ,07/07/2015,60040531_1,2688.00,Revenue,20002183,EYRE & ELLISTON LTD
Oxford City Council,Direct Services,Materials,D3021   ,07/07/2015,60040535_1,832.76,Revenue,20002183,EYRE & ELLISTON LTD
Oxford City Council,Direct Services,Materials,D3021   ,07/07/2015,60040657_1,3139.58,Revenue,20002183,EYRE & ELLISTON LTD
Oxford City Council,Direct Services,Materials,D3021   ,07/07/2015,60040660_0,3039.44,Revenue,20002183,EYRE & ELLISTON LTD
Oxford City Council,Direct Services,Materials,D3021   ,14/07/2015,60040762_1,2351.94,Revenue,20002183,EYRE & ELLISTON LTD
Oxford City Council,Direct Services,Materials,D3021   ,14/07/2015,60040768_1,605.81,Revenue,20002183,EYRE & ELLISTON LTD
Oxford City Council,Direct Services,Direct Services Supplies & Services,D3311   ,14/07/2015,60040769_0,1100.46,Revenue,20002183,EYRE & ELLISTON LTD
Oxford City Council,Direct Services,Materials,D3021   ,14/07/2015,60040980_1,2106.08,Revenue,20002183,EYRE & ELLISTON LTD
Oxford City Council,Direct Services,Materials,D3021   ,14/07/2015,60040981_0,1523.25,Revenue,20002183,EYRE & ELLISTON LTD
Oxford City Council,Direct Services,Materials,D3021   ,14/07/2015,60040988_1,2703.47,Revenue,20002183,EYRE & ELLISTON LTD
Oxford City Council,Direct Services,Materials,D3021   ,28/07/2015,60041467_0,2220.15,Revenue,20002183,EYRE & ELLISTON LTD
Oxford City Council,Direct Services,Materials,D3021   ,28/07/2015,60041468_1,1014.75,Revenue,20002183,EYRE & ELLISTON LTD
Oxford City Council,Direct Services,Materials,D3021   ,28/07/2015,60041469_0,2019.45,Revenue,20002183,EYRE & ELLISTON LTD
Oxford City Council,Direct Services,Materials,D3021   ,28/07/2015,60041471_0,1834.80,Revenue,20002183,EYRE & ELLISTON LTD
Oxford City Council,Direct Services,Materials,D3021,04/08/2015,60041609_0,4438.32,Revenue,20002183,EYRE & ELLISTON LTD
Oxford City Council,Direct Services,Materials,D3021,04/08/2015,60041610_1,896.00,Revenue,20002183,EYRE & ELLISTON LTD
Oxford City Council,Direct Services,Materials,D3021,04/08/2015,60041613_0,753.60,Revenue,20002183,EYRE & ELLISTON LTD
Oxford City Council,Direct Services,Direct Services Supplies & Services,D3311,04/08/2015,60041621_0,736.36,Revenue,20002183,EYRE & ELLISTON LTD
Oxford City Council,Direct Services,Materials,D3021,04/08/2015,60041622_1,3935.24,Revenue,20002183,EYRE & ELLISTON LTD
Oxford City Council,Direct Services,Materials,D3021,04/08/2015,60041623_0,1532.04,Revenue,20002183,EYRE & ELLISTON LTD
Oxford City Council,Direct Services,Materials,D3021,04/08/2015,60041624_1,1127.96,Revenue,20002183,EYRE & ELLISTON LTD
Oxford City Council,Direct Services,Materials,D3021,04/08/2015,60041625_0,865.74,Revenue,20002183,EYRE & ELLISTON LTD
Oxford City Council,Direct Services,Materials,D3021,04/08/2015,60041779_0,1442.80,Revenue,20002183,EYRE & ELLISTON LTD
Oxford City Council,Direct Services,Materials,D3021   ,11/08/2015,60042012_0,952.75,Revenue,20002183,EYRE & ELLISTON LTD
Oxford City Council,Direct Services,Materials,D3021   ,11/08/2015,60042020_0,908.09,Revenue,20002183,EYRE & ELLISTON LTD
Oxford City Council,Direct Services,Materials,D3021   ,11/08/2015,60042025_1,8766.46,Revenue,20002183,EYRE & ELLISTON LTD
Oxford City Council,Direct Services,Materials,D3021   ,11/08/2015,60042153_1,1195.84,Revenue,20002183,EYRE & ELLISTON LTD
Oxford City Council,Direct Services,Materials,D3021,18/08/2015,60042514_0,1011.76,Revenue,20002183,EYRE & ELLISTON LTD
Oxford City Council,Direct Services,Materials,D3021,25/08/2015,60042871_1,4683.33,Revenue,20002183,EYRE & ELLISTON LTD
Oxford City Council,Direct Services,Materials,D3021,25/08/2015,60042873_1,1680.42,Revenue,20002183,EYRE & ELLISTON LTD
Oxford City Council,Direct Services,Materials,D3021,25/08/2015,60042875_1,2616.84,Revenue,20002183,EYRE & ELLISTON LTD
Oxford City Council,Direct Services,Materials,D3021,25/08/2015,60043049_1,627.28,Revenue,20002183,EYRE & ELLISTON LTD
Oxford City Council,Direct Services,Materials,D3021,25/08/2015,60043095_1,562.60,Revenue,20002183,EYRE & ELLISTON LTD
Oxford City Council,Direct Services,Materials,D3021,25/08/2015,60043127_1,616.26,Revenue,20002183,EYRE & ELLISTON LTD
Oxford City Council,Direct Services,Materials,D3021,25/08/2015,60043129_1,758.27,Revenue,20002183,EYRE & ELLISTON LTD
Oxford City Council,Direct Services,Materials,D3021,25/08/2015,60043130_0,1350.11,Revenue,20002183,EYRE & ELLISTON LTD
Oxford City Council,Direct Services,Materials,D3021   ,02/09/2015,60043325_0,1328.05,Revenue,20002183,EYRE & ELLISTON LTD
Oxford City Council,Direct Services,Materials,D3021   ,02/09/2015,60043326_1,2430.62,Revenue,20002183,EYRE & ELLISTON LTD
Oxford City Council,Direct Services,Materials,D3021   ,02/09/2015,60043330_1,1875.22,Revenue,20002183,EYRE & ELLISTON LTD
Oxford City Council,Direct Services,Direct Services Supplies & Services,D3311   ,02/09/2015,60043457_0,511.66,Revenue,20002183,EYRE & ELLISTON LTD
Oxford City Council,Direct Services,Materials,D3021   ,08/09/2015,60043657_0,896.00,Revenue,20002183,EYRE & ELLISTON LTD
Oxford City Council,Direct Services,Materials,D3021   ,08/09/2015,60043662_1,3563.68,Revenue,20002183,EYRE & ELLISTON LTD
Oxford City Council,Direct Services,Materials,D3021   ,15/09/2015,60043804_1,1104.00,Revenue,20002183,EYRE & ELLISTON LTD
Oxford City Council,Direct Services,Direct Services Supplies & Services,D3311   ,15/09/2015,60043820_1,1962.68,Revenue,20002183,EYRE & ELLISTON LTD
Oxford City Council,Direct Services,Materials,D3021   ,15/09/2015,60043851_0,630.60,Revenue,20002183,EYRE & ELLISTON LTD
Oxford City Council,Direct Services,Materials,D3021   ,22/09/2015,60044101_1,5060.27,Revenue,20002183,EYRE & ELLISTON LTD
Oxford City Council,Direct Services,Materials,D3021   ,22/09/2015,60044103_1,506.70,Revenue,20002183,EYRE & ELLISTON LTD
Oxford City Council,Direct Services,Materials,D3021,29/09/2015,60044255_0,1532.60,Revenue,20002183,EYRE & ELLISTON LTD
Oxford City Council,Direct Services,Materials,D3021,15/09/2015,47981608_0,2450.00,Revenue,20002198,FRENCO SERVICE REPLACMNTS LTD
Oxford City Council,Direct Services,Materials,D3021,15/09/2015,47981608_1,355.25,Revenue,20002198,FRENCO SERVICE REPLACMNTS LTD
Oxford City Council,Direct Services,Materials,D3021,15/09/2015,47981608_2,980.00,Revenue,20002198,FRENCO SERVICE REPLACMNTS LTD
Oxford City Council,Direct Services,Waste Disposal & Skip Hire,D3420,18/08/2015,1019407_1,1553.76,Revenue,20002222,GRUNDON WASTE MANAGEMENT LTD
Oxford City Council,Direct Services,Waste Disposal & Skip Hire,D3420,25/08/2015,1019883_1,2053.68,Revenue,20002222,GRUNDON WASTE MANAGEMENT LTD
Oxford City Council,Direct Services,Materials,D3021,21/07/2015,47980790_1,590.00,Revenue,20002241,HURLEY INDUSTRIAL CLEANING EQU
Oxford City Council,Direct Services,Reactive Maintenance & Minor Repairs,B1101   ,14/07/2015,60040854_1,590.00,Revenue,20002241,HURLEY INDUSTRIAL CLEANING EQU
Oxford City Council,Suspense,Materials,D3021,18/08/2015,60042336_0,2399.04,Revenue,20002249,INSTARMAC LTD
Oxford City Council,Suspense,Materials,D3021,18/08/2015,60042409_1,633.92,Revenue,20002249,INSTARMAC LTD
Oxford City Council,Suspense,Materials,D3021   ,02/09/2015,60043212_1,848.40,Revenue,20002249,INSTARMAC LTD
Oxford City Council,Suspense,Materials,D3021   ,22/09/2015,60043994_0,848.40,Revenue,20002249,INSTARMAC LTD
Oxford City Council,Direct Services,Reactive Maintenance & Minor Repairs,B1101,25/08/2015,1019276_1,602.00,Revenue,20002254,GRAFTON MERCHANTING GB LTD
Oxford City Council,Suspense,Other Miscellaneous Expenses,D3811,18/08/2015,1019575_1,654.58,Revenue,20002254,GRAFTON MERCHANTING GB LTD
Oxford City Council,Suspense,Other Miscellaneous Expenses,D3811,18/08/2015,1019599_1,2773.58,Revenue,20002254,GRAFTON MERCHANTING GB LTD
Oxford City Council,Suspense,Other Miscellaneous Expenses,D3811,18/08/2015,1019762_1,3361.77,Revenue,20002254,GRAFTON MERCHANTING GB LTD
Oxford City Council,Suspense,Other Miscellaneous Expenses,D3811,25/08/2015,46286952_1,3361.77,Revenue,20002254,GRAFTON MERCHANTING GB LTD
Oxford City Council,Direct Services,Direct Services Supplies & Services,D3311   ,03/07/2015,60039958_0,578.26,Revenue,20002254,GRAFTON MERCHANTING GB LTD
Oxford City Council,Direct Services,Direct Services Supplies & Services,D3311   ,03/07/2015,60039997_1,593.11,Revenue,20002254,GRAFTON MERCHANTING GB LTD
Oxford City Council,Direct Services,Materials,D3021   ,03/07/2015,60040089_1,520.17,Revenue,20002254,GRAFTON MERCHANTING GB LTD
Oxford City Council,Direct Services,Direct Services Supplies & Services,D3311   ,03/07/2015,60040090_0,644.46,Revenue,20002254,GRAFTON MERCHANTING GB LTD
Oxford City Council,Direct Services,Direct Services Supplies & Services,D3311   ,03/07/2015,60040091_1,1064.69,Revenue,20002254,GRAFTON MERCHANTING GB LTD
Oxford City Council,Direct Services,Direct Services Supplies & Services,D3311   ,03/07/2015,60040094_0,693.24,Revenue,20002254,GRAFTON MERCHANTING GB LTD
Oxford City Council,Direct Services,Direct Services Supplies & Services,D3311   ,03/07/2015,60040095_1,578.26,Revenue,20002254,GRAFTON MERCHANTING GB LTD
Oxford City Council,Direct Services,Direct Services Supplies & Services,D3311   ,03/07/2015,60040096_0,578.26,Revenue,20002254,GRAFTON MERCHANTING GB LTD
Oxford City Council,Direct Services,Direct Services Supplies & Services,D3311   ,03/07/2015,60040097_1,693.24,Revenue,20002254,GRAFTON MERCHANTING GB LTD
Oxford City Council,Direct Services,Materials,D3021   ,03/07/2015,60040099_1,4262.97,Revenue,20002254,GRAFTON MERCHANTING GB LTD
Oxford City Council,Direct Services,Materials,D3021   ,03/07/2015,60040101_1,1111.11,Revenue,20002254,GRAFTON MERCHANTING GB LTD
Oxford City Council,Direct Services,Direct Services Supplies & Services,D3311   ,03/07/2015,60040102_0,599.47,Revenue,20002254,GRAFTON MERCHANTING GB LTD
Oxford City Council,Direct Services,Direct Services Supplies & Services,D3311   ,03/07/2015,60040103_1,693.24,Revenue,20002254,GRAFTON MERCHANTING GB LTD
Oxford City Council,Direct Services,Materials,D3021   ,03/07/2015,60040106_0,4626.48,Revenue,20002254,GRAFTON MERCHANTING GB LTD
Oxford City Council,Direct Services,Direct Services Supplies & Services,D3311   ,03/07/2015,60040110_0,725.00,Revenue,20002254,GRAFTON MERCHANTING GB LTD
Oxford City Council,Direct Services,Materials,D3021   ,03/07/2015,60040118_0,907.89,Revenue,20002254,GRAFTON MERCHANTING GB LTD
Oxford City Council,Direct Services,Materials,D3021   ,03/07/2015,60040121_1,844.21,Revenue,20002254,GRAFTON MERCHANTING GB LTD
Oxford City Council,Direct Services,Materials,D3021   ,03/07/2015,60040339_1,1565.89,Revenue,20002254,GRAFTON MERCHANTING GB LTD
Oxford City Council,Direct Services,Direct Services Supplies & Services,D3311   ,03/07/2015,60040340_0,899.74,Revenue,20002254,GRAFTON MERCHANTING GB LTD
Oxford City Council,Direct Services,Direct Services Supplies & Services,D3311   ,03/07/2015,60040341_1,716.06,Revenue,20002254,GRAFTON MERCHANTING GB LTD
Oxford City Council,Direct Services,Direct Services Supplies & Services,D3311   ,03/07/2015,60040343_1,509.25,Revenue,20002254,GRAFTON MERCHANTING GB LTD
Oxford City Council,Direct Services,Direct Services Supplies & Services,D3311   ,03/07/2015,60040344_0,638.71,Revenue,20002254,GRAFTON MERCHANTING GB LTD
Oxford City Council,Direct Services,Direct Services Supplies & Services,D3311   ,03/07/2015,60040347_1,590.22,Revenue,20002254,GRAFTON MERCHANTING GB LTD
Oxford City Council,Direct Services,Materials,D3021   ,03/07/2015,60040351_1,650.33,Revenue,20002254,GRAFTON MERCHANTING GB LTD
Oxford City Council,Direct Services,Materials,D3021   ,03/07/2015,60040352_0,645.65,Revenue,20002254,GRAFTON MERCHANTING GB LTD
Oxford City Council,Direct Services,Materials,D3021   ,03/07/2015,60040354_0,707.76,Revenue,20002254,GRAFTON MERCHANTING GB LTD
Oxford City Council,Direct Services,Materials,D3021   ,03/07/2015,60040356_0,1009.95,Revenue,20002254,GRAFTON MERCHANTING GB LTD
Oxford City Council,Direct Services,Materials,D3021   ,07/07/2015,60040450_0,2834.76,Revenue,20002254,GRAFTON MERCHANTING GB LTD
Oxford City Council,Direct Services,Direct Services Supplies & Services,D3311   ,07/07/2015,60040451_1,578.26,Revenue,20002254,GRAFTON MERCHANTING GB LTD
Oxford City Council,Direct Services,Direct Services Supplies & Services,D3311   ,07/07/2015,60040452_0,731.92,Revenue,20002254,GRAFTON MERCHANTING GB LTD
Oxford City Council,Direct Services,Direct Services Supplies & Services,D3311   ,07/07/2015,60040453_1,601.01,Revenue,20002254,GRAFTON MERCHANTING GB LTD
Oxford City Council,Direct Services,Direct Services Supplies & Services,D3311   ,07/07/2015,60040454_0,753.67,Revenue,20002254,GRAFTON MERCHANTING GB LTD
Oxford City Council,Direct Services,Materials,D3021   ,07/07/2015,60040455_1,762.33,Revenue,20002254,GRAFTON MERCHANTING GB LTD
Oxford City Council,Direct Services,Direct Services Supplies & Services,D3311   ,07/07/2015,60040457_1,588.16,Revenue,20002254,GRAFTON MERCHANTING GB LTD
Oxford City Council,Direct Services,Materials,D3021   ,07/07/2015,60040463_1,770.11,Revenue,20002254,GRAFTON MERCHANTING GB LTD
Oxford City Council,Direct Services,Materials,D3021   ,07/07/2015,60040464_0,3222.15,Revenue,20002254,GRAFTON MERCHANTING GB LTD
Oxford City Council,Direct Services,Materials,D3021   ,07/07/2015,60040481_1,1712.98,Revenue,20002254,GRAFTON MERCHANTING GB LTD
Oxford City Council,Direct Services,Materials,D3021   ,07/07/2015,60040482_0,1319.19,Revenue,20002254,GRAFTON MERCHANTING GB LTD
Oxford City Council,Direct Services,Materials,D3021   ,07/07/2015,60040495_1,2674.25,Revenue,20002254,GRAFTON MERCHANTING GB LTD
Oxford City Council,Direct Services,Direct Services Supplies & Services,D3311   ,07/07/2015,60040634_0,1147.92,Revenue,20002254,GRAFTON MERCHANTING GB LTD
Oxford City Council,Direct Services,Materials,D3021   ,07/07/2015,60040637_1,2343.44,Revenue,20002254,GRAFTON MERCHANTING GB LTD
Oxford City Council,Direct Services,Direct Services Supplies & Services,D3311   ,07/07/2015,60040640_0,921.38,Revenue,20002254,GRAFTON MERCHANTING GB LTD
Oxford City Council,Direct Services,Direct Services Supplies & Services,D3311   ,07/07/2015,60040642_0,3962.93,Revenue,20002254,GRAFTON MERCHANTING GB LTD
Oxford City Council,Direct Services,Direct Services Supplies & Services,D3311   ,07/07/2015,60040647_1,1277.36,Revenue,20002254,GRAFTON MERCHANTING GB LTD
Oxford City Council,Direct Services,Materials,D3021   ,07/07/2015,60040651_1,1650.36,Revenue,20002254,GRAFTON MERCHANTING GB LTD
Oxford City Council,Direct Services,Direct Services Supplies & Services,D3311   ,07/07/2015,60040694_0,644.46,Revenue,20002254,GRAFTON MERCHANTING GB LTD
Oxford City Council,Direct Services,Direct Services Supplies & Services,D3311   ,07/07/2015,60040695_1,638.10,Revenue,20002254,GRAFTON MERCHANTING GB LTD
Oxford City Council,Direct Services,Direct Services Supplies & Services,D3311   ,07/07/2015,60040696_0,659.31,Revenue,20002254,GRAFTON MERCHANTING GB LTD
Oxford City Council,Direct Services,Direct Services Supplies & Services,D3311   ,07/07/2015,60040700_0,631.63,Revenue,20002254,GRAFTON MERCHANTING GB LTD
Oxford City Council,Direct Services,Direct Services Supplies & Services,D3311   ,07/07/2015,60040706_0,531.50,Revenue,20002254,GRAFTON MERCHANTING GB LTD
Oxford City Council,Direct Services,Direct Services Supplies & Services,D3311   ,07/07/2015,60040709_1,997.82,Revenue,20002254,GRAFTON MERCHANTING GB LTD
Oxford City Council,Direct Services,Materials,D3021   ,07/07/2015,60040710_0,1966.79,Revenue,20002254,GRAFTON MERCHANTING GB LTD
Oxford City Council,Direct Services,Direct Services Supplies & Services,D3311   ,07/07/2015,60040711_1,730.00,Revenue,20002254,GRAFTON MERCHANTING GB LTD
Oxford City Council,Direct Services,Direct Services Supplies & Services,D3311   ,07/07/2015,60040713_1,634.22,Revenue,20002254,GRAFTON MERCHANTING GB LTD
Oxford City Council,Direct Services,Materials,D3021   ,07/07/2015,60040715_1,626.23,Revenue,20002254,GRAFTON MERCHANTING GB LTD
Oxford City Council,Direct Services,Direct Services Supplies & Services,D3311   ,07/07/2015,60040717_1,635.71,Revenue,20002254,GRAFTON MERCHANTING GB LTD
Oxford City Council,Direct Services,Direct Services Supplies & Services,D3311   ,07/07/2015,60040718_0,624.12,Revenue,20002254,GRAFTON MERCHANTING GB LTD
Oxford City Council,Direct Services,Materials,D3021   ,07/07/2015,60040721_1,511.93,Revenue,20002254,GRAFTON MERCHANTING GB LTD
Oxford City Council,Direct Services,Direct Services Supplies & Services,D3311   ,14/07/2015,60040868_1,794.78,Revenue,20002254,GRAFTON MERCHANTING GB LTD
Oxford City Council,Direct Services,Materials,D3021   ,14/07/2015,60040938_1,5105.25,Revenue,20002254,GRAFTON MERCHANTING GB LTD
Oxford City Council,Direct Services,Materials,D3021   ,14/07/2015,60040939_0,2121.23,Revenue,20002254,GRAFTON MERCHANTING GB LTD
Oxford City Council,Direct Services,Materials,D3021   ,14/07/2015,60040942_1,1190.20,Revenue,20002254,GRAFTON MERCHANTING GB LTD
Oxford City Council,Direct Services,Materials,D3021   ,14/07/2015,60040943_0,598.63,Revenue,20002254,GRAFTON MERCHANTING GB LTD
Oxford City Council,Direct Services,Direct Services Supplies & Services,D3311   ,14/07/2015,60040944_1,578.26,Revenue,20002254,GRAFTON MERCHANTING GB LTD
Oxford City Council,Direct Services,Direct Services Supplies & Services,D3311   ,14/07/2015,60040945_0,753.67,Revenue,20002254,GRAFTON MERCHANTING GB LTD
Oxford City Council,Direct Services,Direct Services Supplies & Services,D3311   ,14/07/2015,60040946_1,578.26,Revenue,20002254,GRAFTON MERCHANTING GB LTD
Oxford City Council,Direct Services,Direct Services Supplies & Services,D3311   ,14/07/2015,60040948_1,593.11,Revenue,20002254,GRAFTON MERCHANTING GB LTD
Oxford City Council,Direct Services,Direct Services Supplies & Services,D3311   ,14/07/2015,60040949_0,593.11,Revenue,20002254,GRAFTON MERCHANTING GB LTD
Oxford City Council,Direct Services,Direct Services Supplies & Services,D3311   ,14/07/2015,60040950_1,678.39,Revenue,20002254,GRAFTON MERCHANTING GB LTD
Oxford City Council,Direct Services,Direct Services Supplies & Services,D3311   ,14/07/2015,60040952_1,593.11,Revenue,20002254,GRAFTON MERCHANTING GB LTD
Oxford City Council,Direct Services,Direct Services Supplies & Services,D3311   ,14/07/2015,60040954_1,745.18,Revenue,20002254,GRAFTON MERCHANTING GB LTD
Oxford City Council,Direct Services,Direct Services Supplies & Services,D3311   ,14/07/2015,60040955_0,1274.34,Revenue,20002254,GRAFTON MERCHANTING GB LTD
Oxford City Council,Direct Services,Direct Services Supplies & Services,D3311   ,14/07/2015,60040956_1,1246.46,Revenue,20002254,GRAFTON MERCHANTING GB LTD
Oxford City Council,Direct Services,Direct Services Supplies & Services,D3311   ,14/07/2015,60040957_0,578.26,Revenue,20002254,GRAFTON MERCHANTING GB LTD
Oxford City Council,Direct Services,Direct Services Supplies & Services,D3311   ,14/07/2015,60040958_1,644.46,Revenue,20002254,GRAFTON MERCHANTING GB LTD
Oxford City Council,Direct Services,Direct Services Supplies & Services,D3311   ,14/07/2015,60040959_0,578.26,Revenue,20002254,GRAFTON MERCHANTING GB LTD
Oxford City Council,Direct Services,Direct Services Supplies & Services,D3311   ,14/07/2015,60040960_1,1126.14,Revenue,20002254,GRAFTON MERCHANTING GB LTD
Oxford City Council,Direct Services,Materials,D3021   ,14/07/2015,60040965_0,854.90,Revenue,20002254,GRAFTON MERCHANTING GB LTD
Oxford City Council,Direct Services,Materials,D3021   ,14/07/2015,60040968_1,651.40,Revenue,20002254,GRAFTON MERCHANTING GB LTD
Oxford City Council,Direct Services,Materials,D3021   ,14/07/2015,60040970_1,1066.06,Revenue,20002254,GRAFTON MERCHANTING GB LTD
Oxford City Council,Direct Services,Direct Services Supplies & Services,D3311   ,14/07/2015,60040972_1,545.48,Revenue,20002254,GRAFTON MERCHANTING GB LTD
Oxford City Council,Direct Services,Materials,D3021   ,14/07/2015,60040974_1,1235.89,Revenue,20002254,GRAFTON MERCHANTING GB LTD
Oxford City Council,Direct Services,Materials,D3021   ,14/07/2015,60040983_0,528.48,Revenue,20002254,GRAFTON MERCHANTING GB LTD
Oxford City Council,Direct Services,Direct Services Supplies & Services,D3311   ,14/07/2015,60040984_1,678.39,Revenue,20002254,GRAFTON MERCHANTING GB LTD
Oxford City Council,Direct Services,Materials,D3021   ,21/07/2015,60041012_0,4666.36,Revenue,20002254,GRAFTON MERCHANTING GB LTD
Oxford City Council,Direct Services,Direct Services Supplies & Services,D3311   ,21/07/2015,60041013_1,753.67,Revenue,20002254,GRAFTON MERCHANTING GB LTD
Oxford City Council,Direct Services,Direct Services Supplies & Services,D3311   ,21/07/2015,60041014_0,753.67,Revenue,20002254,GRAFTON MERCHANTING GB LTD
Oxford City Council,Direct Services,Direct Services Supplies & Services,D3311   ,21/07/2015,60041015_1,753.67,Revenue,20002254,GRAFTON MERCHANTING GB LTD
Oxford City Council,Direct Services,Materials,D3021   ,21/07/2015,60041019_1,598.37,Revenue,20002254,GRAFTON MERCHANTING GB LTD
Oxford City Council,Direct Services,Materials,D3021   ,21/07/2015,60041021_1,747.67,Revenue,20002254,GRAFTON MERCHANTING GB LTD
Oxford City Council,Direct Services,Materials,D3021   ,21/07/2015,60041022_0,2257.50,Revenue,20002254,GRAFTON MERCHANTING GB LTD
Oxford City Council,Direct Services,Materials,D3021   ,21/07/2015,60041069_1,539.99,Revenue,20002254,GRAFTON MERCHANTING GB LTD
Oxford City Council,Direct Services,Materials,D3021   ,21/07/2015,60041070_0,501.33,Revenue,20002254,GRAFTON MERCHANTING GB LTD
Oxford City Council,Direct Services,Materials,D3021   ,21/07/2015,60041072_0,512.45,Revenue,20002254,GRAFTON MERCHANTING GB LTD
Oxford City Council,Direct Services,Materials,D3021   ,21/07/2015,60041073_1,972.99,Revenue,20002254,GRAFTON MERCHANTING GB LTD
Oxford City Council,Direct Services,Direct Services Supplies & Services,D3311   ,21/07/2015,60041074_0,549.53,Revenue,20002254,GRAFTON MERCHANTING GB LTD
Oxford City Council,Direct Services,Direct Services Supplies & Services,D3311   ,21/07/2015,60041076_0,548.71,Revenue,20002254,GRAFTON MERCHANTING GB LTD
Oxford City Council,Direct Services,Direct Services Supplies & Services,D3311   ,21/07/2015,60041077_1,549.91,Revenue,20002254,GRAFTON MERCHANTING GB LTD
Oxford City Council,Direct Services,Direct Services Supplies & Services,D3311   ,21/07/2015,60041079_1,617.70,Revenue,20002254,GRAFTON MERCHANTING GB LTD
Oxford City Council,Direct Services,Direct Services Supplies & Services,D3311   ,21/07/2015,60041080_0,518.90,Revenue,20002254,GRAFTON MERCHANTING GB LTD
Oxford City Council,Direct Services,Direct Services Supplies & Services,D3311   ,21/07/2015,60041081_1,516.65,Revenue,20002254,GRAFTON MERCHANTING GB LTD
Oxford City Council,Direct Services,Direct Services Supplies & Services,D3311   ,21/07/2015,60041088_0,590.00,Revenue,20002254,GRAFTON MERCHANTING GB LTD
Oxford City Council,Direct Services,Direct Services Supplies & Services,D3311   ,21/07/2015,60041091_1,734.35,Revenue,20002254,GRAFTON MERCHANTING GB LTD
Oxford City Council,Direct Services,Direct Services Supplies & Services,D3311   ,21/07/2015,60041092_0,593.11,Revenue,20002254,GRAFTON MERCHANTING GB LTD
Oxford City Council,Direct Services,Direct Services Supplies & Services,D3311   ,21/07/2015,60041093_1,657.70,Revenue,20002254,GRAFTON MERCHANTING GB LTD
Oxford City Council,Direct Services,Direct Services Supplies & Services,D3311   ,21/07/2015,60041095_1,638.10,Revenue,20002254,GRAFTON MERCHANTING GB LTD
Oxford City Council,Direct Services,Materials,D3021   ,21/07/2015,60041096_0,1548.26,Revenue,20002254,GRAFTON MERCHANTING GB LTD
Oxford City Council,Direct Services,Direct Services Supplies & Services,D3311   ,21/07/2015,60041098_0,1168.10,Revenue,20002254,GRAFTON MERCHANTING GB LTD
Oxford City Council,Direct Services,Direct Services Supplies & Services,D3311   ,21/07/2015,60041099_1,647.56,Revenue,20002254,GRAFTON MERCHANTING GB LTD
Oxford City Council,Direct Services,Direct Services Supplies & Services,D3311   ,21/07/2015,60041100_0,593.11,Revenue,20002254,GRAFTON MERCHANTING GB LTD
Oxford City Council,Direct Services,Direct Services Supplies & Services,D3311   ,21/07/2015,60041101_1,638.69,Revenue,20002254,GRAFTON MERCHANTING GB LTD
Oxford City Council,Direct Services,Direct Services Supplies & Services,D3311   ,21/07/2015,60041102_0,1228.71,Revenue,20002254,GRAFTON MERCHANTING GB LTD
Oxford City Council,Direct Services,Direct Services Supplies & Services,D3311   ,21/07/2015,60041103_1,578.26,Revenue,20002254,GRAFTON MERCHANTING GB LTD
Oxford City Council,Direct Services,Materials,D3021   ,21/07/2015,60041207_1,2683.94,Revenue,20002254,GRAFTON MERCHANTING GB LTD
Oxford City Council,Direct Services,Direct Services Supplies & Services,D3311   ,21/07/2015,60041208_0,801.42,Revenue,20002254,GRAFTON MERCHANTING GB LTD
Oxford City Council,Direct Services,Direct Services Supplies & Services,D3311   ,21/07/2015,60041209_1,778.29,Revenue,20002254,GRAFTON MERCHANTING GB LTD
Oxford City Council,Direct Services,Direct Services Supplies & Services,D3311   ,21/07/2015,60041210_0,631.16,Revenue,20002254,GRAFTON MERCHANTING GB LTD
Oxford City Council,Direct Services,Direct Services Supplies & Services,D3311   ,21/07/2015,60041211_1,602.88,Revenue,20002254,GRAFTON MERCHANTING GB LTD
Oxford City Council,Direct Services,Materials,D3021   ,28/07/2015,60041244_1,1113.46,Revenue,20002254,GRAFTON MERCHANTING GB LTD
Oxford City Council,Direct Services,Materials,D3021   ,28/07/2015,60041245_0,3860.86,Revenue,20002254,GRAFTON MERCHANTING GB LTD
Oxford City Council,Direct Services,Direct Services Supplies & Services,D3311   ,28/07/2015,60041246_1,619.57,Revenue,20002254,GRAFTON MERCHANTING GB LTD
Oxford City Council,Direct Services,Direct Services Supplies & Services,D3311   ,28/07/2015,60041247_0,578.26,Revenue,20002254,GRAFTON MERCHANTING GB LTD
Oxford City Council,Direct Services,Direct Services Supplies & Services,D3311   ,28/07/2015,60041248_1,593.11,Revenue,20002254,GRAFTON MERCHANTING GB LTD
Oxford City Council,Direct Services,Materials,D3021   ,28/07/2015,60041249_0,3052.31,Revenue,20002254,GRAFTON MERCHANTING GB LTD
Oxford City Council,Direct Services,Materials,D3021   ,28/07/2015,60041250_1,5350.30,Revenue,20002254,GRAFTON MERCHANTING GB LTD
Oxford City Council,Direct Services,Direct Services Supplies & Services,D3311   ,28/07/2015,60041251_0,593.11,Revenue,20002254,GRAFTON MERCHANTING GB LTD
Oxford City Council,Direct Services,Direct Services Supplies & Services,D3311   ,28/07/2015,60041252_1,1023.74,Revenue,20002254,GRAFTON MERCHANTING GB LTD
Oxford City Council,Direct Services,Direct Services Supplies & Services,D3311   ,28/07/2015,60041253_0,616.50,Revenue,20002254,GRAFTON MERCHANTING GB LTD
Oxford City Council,Direct Services,Direct Services Supplies & Services,D3311   ,28/07/2015,60041254_1,616.89,Revenue,20002254,GRAFTON MERCHANTING GB LTD
Oxford City Council,Direct Services,Direct Services Supplies & Services,D3311   ,28/07/2015,60041261_0,870.00,Revenue,20002254,GRAFTON MERCHANTING GB LTD
Oxford City Council,Direct Services,Materials,D3021   ,28/07/2015,60041328_1,5804.70,Revenue,20002254,GRAFTON MERCHANTING GB LTD
Oxford City Council,Direct Services,Direct Services Supplies & Services,D3311   ,28/07/2015,60041329_0,593.11,Revenue,20002254,GRAFTON MERCHANTING GB LTD
Oxford City Council,Direct Services,Direct Services Supplies & Services,D3311   ,28/07/2015,60041330_1,593.11,Revenue,20002254,GRAFTON MERCHANTING GB LTD
Oxford City Council,Direct Services,Direct Services Supplies & Services,D3311   ,28/07/2015,60041332_1,1188.04,Revenue,20002254,GRAFTON MERCHANTING GB LTD
Oxford City Council,Direct Services,Direct Services Supplies & Services,D3311   ,28/07/2015,60041333_0,1164.85,Revenue,20002254,GRAFTON MERCHANTING GB LTD
Oxford City Council,Direct Services,Materials,D3021   ,28/07/2015,60041335_0,2768.24,Revenue,20002254,GRAFTON MERCHANTING GB LTD
Oxford City Council,Direct Services,Materials,D3021   ,28/07/2015,60041338_1,1397.50,Revenue,20002254,GRAFTON MERCHANTING GB LTD
Oxford City Council,Direct Services,Direct Services Supplies & Services,D3311   ,28/07/2015,60041457_0,760.89,Revenue,20002254,GRAFTON MERCHANTING GB LTD
Oxford City Council,Direct Services,Direct Services Supplies & Services,D3311   ,28/07/2015,60041458_1,645.55,Revenue,20002254,GRAFTON MERCHANTING GB LTD
Oxford City Council,Direct Services,Direct Services Supplies & Services,D3311   ,28/07/2015,60041459_0,620.93,Revenue,20002254,GRAFTON MERCHANTING GB LTD
Oxford City Council,Direct Services,Materials,D3021   ,28/07/2015,60041462_1,902.67,Revenue,20002254,GRAFTON MERCHANTING GB LTD
Oxford City Council,Direct Services,Direct Services Supplies & Services,D3311,04/08/2015,60041565_0,641.24,Revenue,20002254,GRAFTON MERCHANTING GB LTD
Oxford City Council,Direct Services,Direct Services Supplies & Services,D3311,04/08/2015,60041566_1,593.11,Revenue,20002254,GRAFTON MERCHANTING GB LTD
Oxford City Council,Direct Services,Direct Services Supplies & Services,D3311,04/08/2015,60041572_1,593.11,Revenue,20002254,GRAFTON MERCHANTING GB LTD
Oxford City Council,Direct Services,Materials,D3021,04/08/2015,60041574_1,1684.79,Revenue,20002254,GRAFTON MERCHANTING GB LTD
Oxford City Council,Direct Services,Materials,D3021,04/08/2015,60041575_0,5201.63,Revenue,20002254,GRAFTON MERCHANTING GB LTD
Oxford City Council,Direct Services,Materials,D3021,04/08/2015,60041576_1,1104.43,Revenue,20002254,GRAFTON MERCHANTING GB LTD
Oxford City Council,Direct Services,Direct Services Supplies & Services,D3311,04/08/2015,60041577_0,602.04,Revenue,20002254,GRAFTON MERCHANTING GB LTD
Oxford City Council,Direct Services,Direct Services Supplies & Services,D3311,04/08/2015,60041578_1,593.11,Revenue,20002254,GRAFTON MERCHANTING GB LTD
Oxford City Council,Direct Services,Direct Services Supplies & Services,D3311,04/08/2015,60041579_0,671.97,Revenue,20002254,GRAFTON MERCHANTING GB LTD
Oxford City Council,Direct Services,Direct Services Supplies & Services,D3311,04/08/2015,60041580_1,1040.13,Revenue,20002254,GRAFTON MERCHANTING GB LTD
Oxford City Council,Direct Services,Direct Services Supplies & Services,D3311,04/08/2015,60041583_0,840.13,Revenue,20002254,GRAFTON MERCHANTING GB LTD
Oxford City Council,Direct Services,Direct Services Supplies & Services,D3311,04/08/2015,60041584_1,774.97,Revenue,20002254,GRAFTON MERCHANTING GB LTD
Oxford City Council,Direct Services,Direct Services Supplies & Services,D3311,04/08/2015,60041585_0,638.42,Revenue,20002254,GRAFTON MERCHANTING GB LTD
Oxford City Council,Direct Services,Direct Services Supplies & Services,D3311,04/08/2015,60041587_0,741.40,Revenue,20002254,GRAFTON MERCHANTING GB LTD
Oxford City Council,Direct Services,Direct Services Supplies & Services,D3311,04/08/2015,60041594_1,3053.25,Revenue,20002254,GRAFTON MERCHANTING GB LTD
Oxford City Council,Direct Services,Direct Services Supplies & Services,D3311,04/08/2015,60041598_1,1200.00,Revenue,20002254,GRAFTON MERCHANTING GB LTD
Oxford City Council,Direct Services,Materials,D3021,04/08/2015,60041739_0,1717.74,Revenue,20002254,GRAFTON MERCHANTING GB LTD
Oxford City Council,Direct Services,Direct Services Supplies & Services,D3311,04/08/2015,60041741_0,593.11,Revenue,20002254,GRAFTON MERCHANTING GB LTD
Oxford City Council,Direct Services,Materials,D3021   ,11/08/2015,60041968_0,1397.22,Revenue,20002254,GRAFTON MERCHANTING GB LTD
Oxford City Council,Direct Services,Direct Services Supplies & Services,D3311   ,11/08/2015,60041969_1,578.26,Revenue,20002254,GRAFTON MERCHANTING GB LTD
Oxford City Council,Direct Services,Direct Services Supplies & Services,D3311   ,11/08/2015,60041970_0,593.11,Revenue,20002254,GRAFTON MERCHANTING GB LTD
Oxford City Council,Direct Services,Direct Services Supplies & Services,D3311   ,11/08/2015,60041971_1,593.11,Revenue,20002254,GRAFTON MERCHANTING GB LTD
Oxford City Council,Direct Services,Materials,D3021   ,11/08/2015,60041972_0,3265.22,Revenue,20002254,GRAFTON MERCHANTING GB LTD
Oxford City Council,Direct Services,Direct Services Supplies & Services,D3311   ,11/08/2015,60041974_0,578.26,Revenue,20002254,GRAFTON MERCHANTING GB LTD
Oxford City Council,Direct Services,Direct Services Supplies & Services,D3311   ,11/08/2015,60041975_1,593.11,Revenue,20002254,GRAFTON MERCHANTING GB LTD
Oxford City Council,Direct Services,Direct Services Supplies & Services,D3311   ,11/08/2015,60041976_0,531.50,Revenue,20002254,GRAFTON MERCHANTING GB LTD
Oxford City Council,Direct Services,Direct Services Supplies & Services,D3311   ,11/08/2015,60041978_0,4554.00,Revenue,20002254,GRAFTON MERCHANTING GB LTD
Oxford City Council,Direct Services,Direct Services Supplies & Services,D3311   ,11/08/2015,60041983_1,612.63,Revenue,20002254,GRAFTON MERCHANTING GB LTD
Oxford City Council,Direct Services,Direct Services Supplies & Services,D3311   ,11/08/2015,60041985_1,665.98,Revenue,20002254,GRAFTON MERCHANTING GB LTD
Oxford City Council,Direct Services,Direct Services Supplies & Services,D3311   ,11/08/2015,60041988_0,648.48,Revenue,20002254,GRAFTON MERCHANTING GB LTD
Oxford City Council,Direct Services,Direct Services Supplies & Services,D3311   ,11/08/2015,60041989_1,517.39,Revenue,20002254,GRAFTON MERCHANTING GB LTD
Oxford City Council,Direct Services,Direct Services Supplies & Services,D3311   ,11/08/2015,60041990_0,526.45,Revenue,20002254,GRAFTON MERCHANTING GB LTD
Oxford City Council,Direct Services,Materials,D3021   ,11/08/2015,60041995_1,701.97,Revenue,20002254,GRAFTON MERCHANTING GB LTD
Oxford City Council,Direct Services,Materials,D3021   ,11/08/2015,60041997_1,737.25,Revenue,20002254,GRAFTON MERCHANTING GB LTD
Oxford City Council,Direct Services,Materials,D3021   ,11/08/2015,60041999_1,730.10,Revenue,20002254,GRAFTON MERCHANTING GB LTD
Oxford City Council,Direct Services,Materials,D3021   ,11/08/2015,60042000_0,596.30,Revenue,20002254,GRAFTON MERCHANTING GB LTD
Oxford City Council,Direct Services,Materials,D3021   ,11/08/2015,60042002_0,1397.50,Revenue,20002254,GRAFTON MERCHANTING GB LTD
Oxford City Council,Direct Services,Direct Services Supplies & Services,D3311   ,11/08/2015,60042085_1,822.96,Revenue,20002254,GRAFTON MERCHANTING GB LTD
Oxford City Council,Direct Services,Direct Services Supplies & Services,D3311   ,11/08/2015,60042088_0,1114.74,Revenue,20002254,GRAFTON MERCHANTING GB LTD
Oxford City Council,Direct Services,Direct Services Supplies & Services,D3311   ,11/08/2015,60042090_0,578.26,Revenue,20002254,GRAFTON MERCHANTING GB LTD
Oxford City Council,Direct Services,Direct Services Supplies & Services,D3311   ,11/08/2015,60042092_0,700.49,Revenue,20002254,GRAFTON MERCHANTING GB LTD
Oxford City Council,Direct Services,Direct Services Supplies & Services,D3311   ,11/08/2015,60042095_1,718.79,Revenue,20002254,GRAFTON MERCHANTING GB LTD
Oxford City Council,Direct Services,Materials,D3021   ,11/08/2015,60042097_1,1194.69,Revenue,20002254,GRAFTON MERCHANTING GB LTD
Oxford City Council,Direct Services,Materials,D3021   ,11/08/2015,60042099_1,3224.10,Revenue,20002254,GRAFTON MERCHANTING GB LTD
Oxford City Council,Direct Services,Materials,D3021   ,11/08/2015,60042101_1,1708.60,Revenue,20002254,GRAFTON MERCHANTING GB LTD
Oxford City Council,Direct Services,Materials,D3021   ,11/08/2015,60042103_1,1441.38,Revenue,20002254,GRAFTON MERCHANTING GB LTD
Oxford City Council,Direct Services,Direct Services Supplies & Services,D3311   ,11/08/2015,60042105_1,653.54,Revenue,20002254,GRAFTON MERCHANTING GB LTD
Oxford City Council,Direct Services,Direct Services Supplies & Services,D3311   ,11/08/2015,60042107_1,694.65,Revenue,20002254,GRAFTON MERCHANTING GB LTD
Oxford City Council,Direct Services,Direct Services Supplies & Services,D3311   ,11/08/2015,60042110_0,726.28,Revenue,20002254,GRAFTON MERCHANTING GB LTD
Oxford City Council,Direct Services,Direct Services Supplies & Services,D3311   ,11/08/2015,60042112_0,676.93,Revenue,20002254,GRAFTON MERCHANTING GB LTD
Oxford City Council,Direct Services,Direct Services Supplies & Services,D3311   ,11/08/2015,60042114_0,983.25,Revenue,20002254,GRAFTON MERCHANTING GB LTD
Oxford City Council,Direct Services,Direct Services Supplies & Services,D3311   ,11/08/2015,60042121_1,770.20,Revenue,20002254,GRAFTON MERCHANTING GB LTD
Oxford City Council,Direct Services,Direct Services Supplies & Services,D3311   ,11/08/2015,60042122_0,997.53,Revenue,20002254,GRAFTON MERCHANTING GB LTD
Oxford City Council,Direct Services,Materials,D3021   ,11/08/2015,60042123_1,2763.68,Revenue,20002254,GRAFTON MERCHANTING GB LTD
Oxford City Council,Direct Services,Direct Services Supplies & Services,D3311   ,11/08/2015,60042125_1,612.74,Revenue,20002254,GRAFTON MERCHANTING GB LTD
Oxford City Council,Direct Services,Materials,D3021   ,11/08/2015,60042133_1,1172.68,Revenue,20002254,GRAFTON MERCHANTING GB LTD
Oxford City Council,Direct Services,Materials,D3021   ,11/08/2015,60042134_0,1171.39,Revenue,20002254,GRAFTON MERCHANTING GB LTD
Oxford City Council,Direct Services,Materials,D3021   ,11/08/2015,60042136_0,893.89,Revenue,20002254,GRAFTON MERCHANTING GB LTD
Oxford City Council,Direct Services,Materials,D3021   ,11/08/2015,60042137_1,511.73,Revenue,20002254,GRAFTON MERCHANTING GB LTD
Oxford City Council,Direct Services,Direct Services Supplies & Services,D3311   ,11/08/2015,60042268_0,593.11,Revenue,20002254,GRAFTON MERCHANTING GB LTD
Oxford City Council,Direct Services,Direct Services Supplies & Services,D3311   ,11/08/2015,60042272_0,871.55,Revenue,20002254,GRAFTON MERCHANTING GB LTD
Oxford City Council,Direct Services,Materials,D3021   ,11/08/2015,60042274_0,3092.76,Revenue,20002254,GRAFTON MERCHANTING GB LTD
Oxford City Council,Direct Services,Direct Services Supplies & Services,D3311,18/08/2015,60042569_1,1105.53,Revenue,20002254,GRAFTON MERCHANTING GB LTD
Oxford City Council,Direct Services,Direct Services Supplies & Services,D3311,18/08/2015,60042570_0,653.54,Revenue,20002254,GRAFTON MERCHANTING GB LTD
Oxford City Council,Direct Services,Direct Services Supplies & Services,D3311,18/08/2015,60042571_1,593.11,Revenue,20002254,GRAFTON MERCHANTING GB LTD
Oxford City Council,Direct Services,Direct Services Supplies & Services,D3311,18/08/2015,60042572_0,693.24,Revenue,20002254,GRAFTON MERCHANTING GB LTD
Oxford City Council,Direct Services,Direct Services Supplies & Services,D3311,18/08/2015,60042573_1,602.88,Revenue,20002254,GRAFTON MERCHANTING GB LTD
Oxford City Council,Direct Services,Direct Services Supplies & Services,D3311,18/08/2015,60042574_0,556.25,Revenue,20002254,GRAFTON MERCHANTING GB LTD
Oxford City Council,Direct Services,Direct Services Supplies & Services,D3311,25/08/2015,60042811_1,593.11,Revenue,20002254,GRAFTON MERCHANTING GB LTD
Oxford City Council,Direct Services,Direct Services Supplies & Services,D3311,25/08/2015,60042812_0,1029.54,Revenue,20002254,GRAFTON MERCHANTING GB LTD
Oxford City Council,Direct Services,Materials,D3021,25/08/2015,60042813_1,2154.32,Revenue,20002254,GRAFTON MERCHANTING GB LTD
Oxford City Council,Direct Services,Direct Services Supplies & Services,D3311,25/08/2015,60042814_0,1237.27,Revenue,20002254,GRAFTON MERCHANTING GB LTD
Oxford City Council,Direct Services,Materials,D3021,25/08/2015,60042815_1,2649.00,Revenue,20002254,GRAFTON MERCHANTING GB LTD
Oxford City Council,Direct Services,Direct Services Supplies & Services,D3311,25/08/2015,60042818_0,607.67,Revenue,20002254,GRAFTON MERCHANTING GB LTD
Oxford City Council,Direct Services,Direct Services Supplies & Services,D3311,25/08/2015,60042819_1,593.11,Revenue,20002254,GRAFTON MERCHANTING GB LTD
Oxford City Council,Direct Services,Materials,D3021,25/08/2015,60042820_0,1193.98,Revenue,20002254,GRAFTON MERCHANTING GB LTD
Oxford City Council,Direct Services,Direct Services Supplies & Services,D3311,25/08/2015,60042821_1,593.11,Revenue,20002254,GRAFTON MERCHANTING GB LTD
Oxford City Council,Direct Services,Materials,D3021,25/08/2015,60042823_1,3215.08,Revenue,20002254,GRAFTON MERCHANTING GB LTD
Oxford City Council,Direct Services,Direct Services Supplies & Services,D3311,25/08/2015,60042824_0,737.27,Revenue,20002254,GRAFTON MERCHANTING GB LTD
Oxford City Council,Direct Services,Direct Services Supplies & Services,D3311,25/08/2015,60042825_1,680.75,Revenue,20002254,GRAFTON MERCHANTING GB LTD
Oxford City Council,Direct Services,Direct Services Supplies & Services,D3311,25/08/2015,60042829_1,619.37,Revenue,20002254,GRAFTON MERCHANTING GB LTD
Oxford City Council,Direct Services,Materials,D3021,25/08/2015,60042833_1,1631.63,Revenue,20002254,GRAFTON MERCHANTING GB LTD
Oxford City Council,Direct Services,Materials,D3021,25/08/2015,60042834_0,741.11,Revenue,20002254,GRAFTON MERCHANTING GB LTD
Oxford City Council,Direct Services,Materials,D3021,25/08/2015,60042836_0,774.51,Revenue,20002254,GRAFTON MERCHANTING GB LTD
Oxford City Council,Direct Services,Materials,D3021,25/08/2015,60042839_1,604.15,Revenue,20002254,GRAFTON MERCHANTING GB LTD
Oxford City Council,Direct Services,Materials,D3021,25/08/2015,60043037_1,896.23,Revenue,20002254,GRAFTON MERCHANTING GB LTD
Oxford City Council,Direct Services,Direct Services Supplies & Services,D3311,25/08/2015,60043083_1,1284.25,Revenue,20002254,GRAFTON MERCHANTING GB LTD
Oxford City Council,Direct Services,Direct Services Supplies & Services,D3311,25/08/2015,60043084_0,653.54,Revenue,20002254,GRAFTON MERCHANTING GB LTD
Oxford City Council,Direct Services,Direct Services Supplies & Services,D3311,25/08/2015,60043085_1,711.88,Revenue,20002254,GRAFTON MERCHANTING GB LTD
Oxford City Council,Direct Services,Materials,D3021,25/08/2015,60043111_1,1959.17,Revenue,20002254,GRAFTON MERCHANTING GB LTD
Oxford City Council,Direct Services,Direct Services Supplies & Services,D3311,25/08/2015,60043112_0,787.16,Revenue,20002254,GRAFTON MERCHANTING GB LTD
Oxford City Council,Direct Services,Direct Services Supplies & Services,D3311,25/08/2015,60043113_1,1349.34,Revenue,20002254,GRAFTON MERCHANTING GB LTD
Oxford City Council,Direct Services,Direct Services Supplies & Services,D3311,25/08/2015,60043119_1,507.94,Revenue,20002254,GRAFTON MERCHANTING GB LTD
Oxford City Council,Direct Services,Materials,D3021,25/08/2015,60043123_1,1506.26,Revenue,20002254,GRAFTON MERCHANTING GB LTD
Oxford City Council,Direct Services,Materials,D3021,25/08/2015,60043125_1,695.87,Revenue,20002254,GRAFTON MERCHANTING GB LTD
Oxford City Council,Direct Services,Direct Services Supplies & Services,D3311   ,02/09/2015,60043295_0,599.96,Revenue,20002254,GRAFTON MERCHANTING GB LTD
Oxford City Council,Direct Services,Materials,D3021   ,02/09/2015,60043298_1,1074.28,Revenue,20002254,GRAFTON MERCHANTING GB LTD
Oxford City Council,Direct Services,Materials,D3021   ,02/09/2015,60043299_0,2870.50,Revenue,20002254,GRAFTON MERCHANTING GB LTD
Oxford City Council,Direct Services,Direct Services Supplies & Services,D3311   ,02/09/2015,60043300_1,653.54,Revenue,20002254,GRAFTON MERCHANTING GB LTD
Oxford City Council,Direct Services,Direct Services Supplies & Services,D3311   ,02/09/2015,60043301_0,928.85,Revenue,20002254,GRAFTON MERCHANTING GB LTD
Oxford City Council,Direct Services,Materials,D3021   ,02/09/2015,60043302_1,933.10,Revenue,20002254,GRAFTON MERCHANTING GB LTD
Oxford City Council,Direct Services,Direct Services Supplies & Services,D3311   ,02/09/2015,60043306_1,638.69,Revenue,20002254,GRAFTON MERCHANTING GB LTD
Oxford City Council,Direct Services,Direct Services Supplies & Services,D3311   ,02/09/2015,60043367_0,638.69,Revenue,20002254,GRAFTON MERCHANTING GB LTD
Oxford City Council,Direct Services,Direct Services Supplies & Services,D3311   ,02/09/2015,60043369_0,941.24,Revenue,20002254,GRAFTON MERCHANTING GB LTD
Oxford City Council,Direct Services,Direct Services Supplies & Services,D3311   ,02/09/2015,60043371_0,653.54,Revenue,20002254,GRAFTON MERCHANTING GB LTD
Oxford City Council,Direct Services,Materials,D3021   ,02/09/2015,60043374_1,1504.04,Revenue,20002254,GRAFTON MERCHANTING GB LTD
Oxford City Council,Direct Services,Materials,D3021   ,02/09/2015,60043378_1,1829.14,Revenue,20002254,GRAFTON MERCHANTING GB LTD
Oxford City Council,Direct Services,Materials,D3021   ,02/09/2015,60043399_0,3068.92,Revenue,20002254,GRAFTON MERCHANTING GB LTD
Oxford City Council,Direct Services,Materials,D3021   ,02/09/2015,60043402_1,1111.35,Revenue,20002254,GRAFTON MERCHANTING GB LTD
Oxford City Council,Direct Services,Direct Services Supplies & Services,D3311   ,02/09/2015,60043405_0,571.77,Revenue,20002254,GRAFTON MERCHANTING GB LTD
Oxford City Council,Direct Services,Direct Services Supplies & Services,D3311   ,02/09/2015,60043406_1,595.23,Revenue,20002254,GRAFTON MERCHANTING GB LTD
Oxford City Council,Direct Services,Materials,D3021   ,02/09/2015,60043408_1,874.70,Revenue,20002254,GRAFTON MERCHANTING GB LTD
Oxford City Council,Direct Services,Materials,D3021   ,02/09/2015,60043412_1,1522.29,Revenue,20002254,GRAFTON MERCHANTING GB LTD
Oxford City Council,Direct Services,Materials,D3021   ,02/09/2015,60043415_0,1283.52,Revenue,20002254,GRAFTON MERCHANTING GB LTD
Oxford City Council,Direct Services,Direct Services Supplies & Services,D3311   ,02/09/2015,60043418_1,1080.62,Revenue,20002254,GRAFTON MERCHANTING GB LTD
Oxford City Council,Direct Services,Materials,D3021   ,02/09/2015,60043419_0,624.92,Revenue,20002254,GRAFTON MERCHANTING GB LTD
Oxford City Council,Direct Services,Direct Services Supplies & Services,D3311   ,02/09/2015,60043421_0,869.34,Revenue,20002254,GRAFTON MERCHANTING GB LTD
Oxford City Council,Direct Services,Direct Services Supplies & Services,D3311   ,02/09/2015,60043422_1,593.11,Revenue,20002254,GRAFTON MERCHANTING GB LTD
Oxford City Council,Direct Services,Direct Services Supplies & Services,D3311   ,02/09/2015,60043423_0,907.61,Revenue,20002254,GRAFTON MERCHANTING GB LTD
Oxford City Council,Direct Services,Direct Services Supplies & Services,D3311   ,02/09/2015,60043424_1,602.88,Revenue,20002254,GRAFTON MERCHANTING GB LTD
Oxford City Council,Direct Services,Direct Services Supplies & Services,D3311   ,02/09/2015,60043428_1,613.35,Revenue,20002254,GRAFTON MERCHANTING GB LTD
Oxford City Council,Direct Services,Direct Services Supplies & Services,D3311   ,02/09/2015,60043429_0,957.43,Revenue,20002254,GRAFTON MERCHANTING GB LTD
Oxford City Council,Direct Services,Materials,D3021   ,02/09/2015,60043430_1,8237.63,Revenue,20002254,GRAFTON MERCHANTING GB LTD
Oxford City Council,Direct Services,Materials,D3021   ,02/09/2015,60043431_0,3589.04,Revenue,20002254,GRAFTON MERCHANTING GB LTD
Oxford City Council,Direct Services,Direct Services Supplies & Services,D3311   ,02/09/2015,60043434_1,593.11,Revenue,20002254,GRAFTON MERCHANTING GB LTD
Oxford City Council,Direct Services,Direct Services Supplies & Services,D3311   ,02/09/2015,60043435_0,1249.86,Revenue,20002254,GRAFTON MERCHANTING GB LTD
Oxford City Council,Direct Services,Materials,D3021   ,02/09/2015,60043436_1,2014.18,Revenue,20002254,GRAFTON MERCHANTING GB LTD
Oxford City Council,Direct Services,Direct Services Supplies & Services,D3311   ,02/09/2015,60043517_0,578.26,Revenue,20002254,GRAFTON MERCHANTING GB LTD
Oxford City Council,Direct Services,Direct Services Supplies & Services,D3311   ,08/09/2015,60043642_1,578.26,Revenue,20002254,GRAFTON MERCHANTING GB LTD
Oxford City Council,Direct Services,Direct Services Supplies & Services,D3311   ,08/09/2015,60043643_0,1118.82,Revenue,20002254,GRAFTON MERCHANTING GB LTD
Oxford City Council,Direct Services,Direct Services Supplies & Services,D3311   ,08/09/2015,60043647_0,601.01,Revenue,20002254,GRAFTON MERCHANTING GB LTD
Oxford City Council,Direct Services,Direct Services Supplies & Services,D3311   ,08/09/2015,60043648_1,653.54,Revenue,20002254,GRAFTON MERCHANTING GB LTD
Oxford City Council,Direct Services,Direct Services Supplies & Services,D3311   ,08/09/2015,60043650_1,589.31,Revenue,20002254,GRAFTON MERCHANTING GB LTD
Oxford City Council,Direct Services,Direct Services Supplies & Services,D3311   ,15/09/2015,60043724_1,673.00,Revenue,20002254,GRAFTON MERCHANTING GB LTD
Oxford City Council,Direct Services,Direct Services Supplies & Services,D3311   ,15/09/2015,60043757_0,594.90,Revenue,20002254,GRAFTON MERCHANTING GB LTD
Oxford City Council,Direct Services,Materials,D3021   ,15/09/2015,60043761_0,1128.75,Revenue,20002254,GRAFTON MERCHANTING GB LTD
Oxford City Council,Direct Services,Materials,D3021   ,15/09/2015,60043764_1,848.48,Revenue,20002254,GRAFTON MERCHANTING GB LTD
Oxford City Council,Direct Services,Direct Services Supplies & Services,D3311   ,15/09/2015,60043779_0,1182.28,Revenue,20002254,GRAFTON MERCHANTING GB LTD
Oxford City Council,Direct Services,Direct Services Supplies & Services,D3311   ,15/09/2015,60043781_0,634.22,Revenue,20002254,GRAFTON MERCHANTING GB LTD
Oxford City Council,Direct Services,Materials,D3021   ,15/09/2015,60043784_1,4776.69,Revenue,20002254,GRAFTON MERCHANTING GB LTD
Oxford City Council,Direct Services,Materials,D3021   ,15/09/2015,60043785_0,1922.73,Revenue,20002254,GRAFTON MERCHANTING GB LTD
Oxford City Council,Direct Services,Direct Services Supplies & Services,D3311   ,15/09/2015,60043787_0,653.54,Revenue,20002254,GRAFTON MERCHANTING GB LTD
Oxford City Council,Direct Services,Direct Services Supplies & Services,D3311   ,15/09/2015,60043789_0,569.91,Revenue,20002254,GRAFTON MERCHANTING GB LTD
Oxford City Council,Direct Services,Materials,D3021   ,15/09/2015,60043790_1,638.73,Revenue,20002254,GRAFTON MERCHANTING GB LTD
Oxford City Council,Direct Services,Materials,D3021   ,15/09/2015,60043791_0,1035.81,Revenue,20002254,GRAFTON MERCHANTING GB LTD
Oxford City Council,Direct Services,Materials,D3021   ,15/09/2015,60043812_1,2425.69,Revenue,20002254,GRAFTON MERCHANTING GB LTD
Oxford City Council,Direct Services,Materials,D3021   ,15/09/2015,60043814_1,4151.21,Revenue,20002254,GRAFTON MERCHANTING GB LTD
Oxford City Council,Direct Services,Materials,D3021   ,15/09/2015,60043840_1,601.13,Revenue,20002254,GRAFTON MERCHANTING GB LTD
Oxford City Council,Direct Services,Direct Services Supplies & Services,D3311   ,15/09/2015,60043842_1,593.11,Revenue,20002254,GRAFTON MERCHANTING GB LTD
Oxford City Council,Direct Services,Direct Services Supplies & Services,D3311   ,15/09/2015,60043843_0,638.10,Revenue,20002254,GRAFTON MERCHANTING GB LTD
Oxford City Council,Direct Services,Materials,D3021   ,15/09/2015,60043844_1,1223.65,Revenue,20002254,GRAFTON MERCHANTING GB LTD
Oxford City Council,Direct Services,Direct Services Supplies & Services,D3311   ,22/09/2015,60044077_1,593.11,Revenue,20002254,GRAFTON MERCHANTING GB LTD
Oxford City Council,Direct Services,Direct Services Supplies & Services,D3311   ,22/09/2015,60044078_1,593.11,Revenue,20002254,GRAFTON MERCHANTING GB LTD
Oxford City Council,Direct Services,Direct Services Supplies & Services,D3311   ,22/09/2015,60044079_1,615.86,Revenue,20002254,GRAFTON MERCHANTING GB LTD
Oxford City Council,Direct Services,Direct Services Supplies & Services,D3311   ,22/09/2015,60044081_1,578.26,Revenue,20002254,GRAFTON MERCHANTING GB LTD
Oxford City Council,Direct Services,Direct Services Supplies & Services,D3311   ,22/09/2015,60044082_1,610.00,Revenue,20002254,GRAFTON MERCHANTING GB LTD
Oxford City Council,Direct Services,Direct Services Supplies & Services,D3311   ,22/09/2015,60044083_1,593.11,Revenue,20002254,GRAFTON MERCHANTING GB LTD
Oxford City Council,Direct Services,Direct Services Supplies & Services,D3311   ,22/09/2015,60044112_1,593.11,Revenue,20002254,GRAFTON MERCHANTING GB LTD
Oxford City Council,Direct Services,Direct Services Supplies & Services,D3311   ,22/09/2015,60044113_1,578.26,Revenue,20002254,GRAFTON MERCHANTING GB LTD
Oxford City Council,Direct Services,Direct Services Supplies & Services,D3311,29/09/2015,60044134_1,1034.73,Revenue,20002254,GRAFTON MERCHANTING GB LTD
Oxford City Council,Direct Services,Direct Services Supplies & Services,D3311,29/09/2015,60044135_0,974.08,Revenue,20002254,GRAFTON MERCHANTING GB LTD
Oxford City Council,Direct Services,Direct Services Supplies & Services,D3311,29/09/2015,60044136_1,546.35,Revenue,20002254,GRAFTON MERCHANTING GB LTD
Oxford City Council,Direct Services,Direct Services Supplies & Services,D3311,29/09/2015,60044137_0,593.11,Revenue,20002254,GRAFTON MERCHANTING GB LTD
Oxford City Council,Direct Services,Direct Services Supplies & Services,D3311,29/09/2015,60044138_1,593.11,Revenue,20002254,GRAFTON MERCHANTING GB LTD
Oxford City Council,Direct Services,Direct Services Supplies & Services,D3311,29/09/2015,60044139_0,651.51,Revenue,20002254,GRAFTON MERCHANTING GB LTD
Oxford City Council,Direct Services,Direct Services Supplies & Services,D3311,29/09/2015,60044140_1,952.69,Revenue,20002254,GRAFTON MERCHANTING GB LTD
Oxford City Council,Direct Services,Materials,D3021,29/09/2015,60044141_0,2611.27,Revenue,20002254,GRAFTON MERCHANTING GB LTD
Oxford City Council,Direct Services,Materials,D3021,29/09/2015,60044142_1,1158.48,Revenue,20002254,GRAFTON MERCHANTING GB LTD
Oxford City Council,Direct Services,Materials,D3021,29/09/2015,60044144_1,1265.24,Revenue,20002254,GRAFTON MERCHANTING GB LTD
Oxford City Council,Direct Services,Materials,D3021,29/09/2015,60044146_1,1091.13,Revenue,20002254,GRAFTON MERCHANTING GB LTD
Oxford City Council,Direct Services,Direct Services Supplies & Services,D3311,29/09/2015,60044148_1,558.47,Revenue,20002254,GRAFTON MERCHANTING GB LTD
Oxford City Council,Direct Services,Direct Services Supplies & Services,D3311,29/09/2015,60044149_0,555.46,Revenue,20002254,GRAFTON MERCHANTING GB LTD
Oxford City Council,Direct Services,Direct Services Supplies & Services,D3311,29/09/2015,60044152_1,509.24,Revenue,20002254,GRAFTON MERCHANTING GB LTD
Oxford City Council,Direct Services,Direct Services Supplies & Services,D3311,29/09/2015,60044153_0,558.92,Revenue,20002254,GRAFTON MERCHANTING GB LTD
Oxford City Council,Direct Services,Direct Services Supplies & Services,D3311,29/09/2015,60044155_0,643.42,Revenue,20002254,GRAFTON MERCHANTING GB LTD
Oxford City Council,Direct Services,Direct Services Supplies & Services,D3311,29/09/2015,60044158_1,645.99,Revenue,20002254,GRAFTON MERCHANTING GB LTD
Oxford City Council,Direct Services,Direct Services Supplies & Services,D3311,29/09/2015,60044159_0,652.62,Revenue,20002254,GRAFTON MERCHANTING GB LTD
Oxford City Council,Direct Services,Materials,D3021,29/09/2015,60044167_0,990.80,Revenue,20002254,GRAFTON MERCHANTING GB LTD
Oxford City Council,Direct Services,Materials,D3021,29/09/2015,60044309_0,2144.33,Revenue,20002254,GRAFTON MERCHANTING GB LTD
Oxford City Council,Direct Services,Direct Services Supplies & Services,D3311,29/09/2015,60044310_1,593.11,Revenue,20002254,GRAFTON MERCHANTING GB LTD
Oxford City Council,Direct Services,Direct Services Supplies & Services,D3311,29/09/2015,60044314_1,593.11,Revenue,20002254,GRAFTON MERCHANTING GB LTD
Oxford City Council,Direct Services,Materials,D3021,29/09/2015,60044321_0,1397.50,Revenue,20002254,GRAFTON MERCHANTING GB LTD
Oxford City Council,Direct Services,Materials,D3021,29/09/2015,60044322_1,1615.39,Revenue,20002254,GRAFTON MERCHANTING GB LTD
Oxford City Council,Direct Services,Materials,D3021   ,11/08/2015,60042189_1,507.08,Revenue,20002278,MF HYDRAULICS LTD
Oxford City Council,Direct Services,Tools,D3023   ,14/07/2015,60040882_1,1025.00,Revenue,20002282,M&J ENGINEERS LTD
Oxford City Council,Direct Services,Engineering Services Supplies and Services,D3319,18/08/2015,60042542_0,615.00,Revenue,20002282,M&J ENGINEERS LTD
Oxford City Council,Direct Services,Engineering Services Supplies and Services,D3319,18/08/2015,60042542_1,6.60,Revenue,20002282,M&J ENGINEERS LTD
Oxford City Council,Direct Services,Reactive Maintenance & Minor Repairs,B1101,21/07/2015,1018241_1,4695.94,Revenue,20002296,METRIC GROUP LIMITED
Oxford City Council,Regeneration and Major Projects Team,Direct Services,Y237,15/09/2015,1020131_1,5254.80,Capital,20002296,METRIC GROUP LIMITED
Oxford City Council,Direct Services,Materials,D3021   ,07/07/2015,60039943_1,524.64,Revenue,20002299,C BREWER & SONS LTD
Oxford City Council,Direct Services,Materials,D3021   ,21/07/2015,60041006_0,634.38,Revenue,20002299,C BREWER & SONS LTD
Oxford City Council,Direct Services,Materials,D3021   ,28/07/2015,60041224_1,844.28,Revenue,20002299,C BREWER & SONS LTD
Oxford City Council,Direct Services,Materials,D3021,18/08/2015,60042588_0,791.09,Revenue,20002299,C BREWER & SONS LTD
Oxford City Council,Direct Services,Materials,D3021,25/08/2015,60042852_0,540.70,Revenue,20002299,C BREWER & SONS LTD
Oxford City Council,Direct Services,Materials,D3021   ,02/09/2015,60043281_0,742.00,Revenue,20002299,C BREWER & SONS LTD
Oxford City Council,Direct Services,Materials,D3021   ,22/09/2015,60044055_1,864.14,Revenue,20002299,C BREWER & SONS LTD
Oxford City Council,Direct Services,Materials,D3021,29/09/2015,60044180_1,1007.03,Revenue,20002299,C BREWER & SONS LTD
Oxford City Council,Direct Services,Materials,D3021,29/09/2015,60044181_0,577.07,Revenue,20002299,C BREWER & SONS LTD
Oxford City Council,Business Improvement,Hardware Purchase,D3520,28/07/2015,1017655_1,1201.96,Revenue,20002302,MISCO
Oxford City Council,Business Improvement,Hardware Purchase,D3520,21/07/2015,1018397_1,1872.00,Revenue,20002302,MISCO
Oxford City Council,Direct Services,Direct Services Supplies & Services,D3311,04/08/2015,60041645_0,574.65,Revenue,20002323,JOHN NICHOLLS (TRADING) LTD
Oxford City Council,Community Services,General Contracted Services,D3401,02/09/2015,1019422_1,500.00,Revenue,20002331,OXFORD BROOKES UNIVERSITY
Oxford City Council,Welfare Reform Team,CPD (Continuous Professional Development),A0634,21/07/2015,1018266_1,700.00,Revenue,20002333,ACTIVATE LEARNING
Oxford City Council,Direct Services,Materials,D3021,25/08/2015,1019395_1,716.60,Revenue,20002335,OXFORD FENCING SUPPLIES
Oxford City Council,Direct Services,Materials,D3021,22/09/2015,1020543_1,812.74,Revenue,20002335,OXFORD FENCING SUPPLIES
Oxford City Council,Direct Services,Sign Shop Materials,D3018,18/08/2015,60042417_1,772.80,Revenue,20002347,REXEL UK LIMITED
Oxford City Council,Direct Services,Services Maintenance (Planned),B1103,14/07/2015,1017957_1,586.25,Revenue,20002351,PHS GROUP PLC
Oxford City Council,Direct Services,Services Maintenance (Planned),B1103,14/07/2015,1018152_1,7574.76,Revenue,20002351,PHS GROUP PLC
Oxford City Council,Direct Services,Services Maintenance (Planned),B1103,21/07/2015,1018560_1,1768.75,Revenue,20002351,PHS GROUP PLC
Oxford City Council,Direct Services,Services Maintenance (Planned),B1103,21/07/2015,1018561_1,988.37,Revenue,20002351,PHS GROUP PLC
Oxford City Council,Direct Services,Services Maintenance (Planned),B1103,04/08/2015,1019033_1,1768.75,Revenue,20002351,PHS GROUP PLC
Oxford City Council,Direct Services,Services Maintenance (Planned),B1103,15/09/2015,1020275_1,535.00,Revenue,20002351,PHS GROUP PLC
Oxford City Council,Direct Services,Services Maintenance (Planned),B1103,15/09/2015,1020276_1,4724.59,Revenue,20002351,PHS GROUP PLC
Oxford City Council,Direct Services,Services Maintenance (Planned),B1103,15/09/2015,1020365_1,1527.29,Revenue,20002351,PHS GROUP PLC
Oxford City Council,Direct Services,Tools,D3023   ,02/09/2015,60043473_0,665.56,Revenue,20002363,RS COMPONENTS LTD
Oxford City Council,Regeneration and Major Projects Team,Main Contractor,Y021,18/08/2015,1019515_1,9975.00,Capital,20002369,RIDGE & PARTNERS LLP
Oxford City Council,Direct Services,Materials,D3021,04/08/2015,47980858_0,11.75,Revenue,20002387,AEBI SCHMIDT UK LTD
Oxford City Council,Direct Services,Materials,D3021,04/08/2015,47980858_1,4.66,Revenue,20002387,AEBI SCHMIDT UK LTD
Oxford City Council,Direct Services,Materials,D3021,04/08/2015,47980858_2,783.39,Revenue,20002387,AEBI SCHMIDT UK LTD
Oxford City Council,Direct Services,Materials,D3021,11/08/2015,47980891_1,625.25,Revenue,20002387,AEBI SCHMIDT UK LTD
Oxford City Council,Direct Services,Materials,D3021,11/08/2015,47980891_2,3.53,Revenue,20002387,AEBI SCHMIDT UK LTD
Oxford City Council,Direct Services,Materials,D3021,11/08/2015,47980891_3,3.92,Revenue,20002387,AEBI SCHMIDT UK LTD
Oxford City Council,Direct Services,Materials,D3021,11/08/2015,47980891_4,10.00,Revenue,20002387,AEBI SCHMIDT UK LTD
Oxford City Council,Direct Services,Materials,D3021,18/08/2015,47981137_0,142.38,Revenue,20002387,AEBI SCHMIDT UK LTD
Oxford City Council,Direct Services,Materials,D3021,18/08/2015,47981137_1,108.80,Revenue,20002387,AEBI SCHMIDT UK LTD
Oxford City Council,Direct Services,Materials,D3021,18/08/2015,47981137_2,10.08,Revenue,20002387,AEBI SCHMIDT UK LTD
Oxford City Council,Direct Services,Materials,D3021,18/08/2015,47981137_3,1.64,Revenue,20002387,AEBI SCHMIDT UK LTD
Oxford City Council,Direct Services,Materials,D3021,18/08/2015,47981137_4,1.64,Revenue,20002387,AEBI SCHMIDT UK LTD
Oxford City Council,Direct Services,Materials,D3021,18/08/2015,47981137_5,50.48,Revenue,20002387,AEBI SCHMIDT UK LTD
Oxford City Council,Direct Services,Materials,D3021,18/08/2015,47981137_6,524.32,Revenue,20002387,AEBI SCHMIDT UK LTD
Oxford City Council,Direct Services,Materials,D3021,18/08/2015,47981137_7,10.00,Revenue,20002387,AEBI SCHMIDT UK LTD
Oxford City Council,Direct Services,Materials,D3021,08/09/2015,47981491_0,67690.00,Revenue,20002387,AEBI SCHMIDT UK LTD
Oxford City Council,Law and Governance,General Stationery Supplies,D3301,28/07/2015,1019041_1,1168.75,Revenue,20002389,SHAW & SONS LTD
Oxford City Council,Direct Services,Materials,D3021   ,15/09/2015,60043954_1,768.00,Revenue,20002395,SMITH & LOW LTD.
Oxford City Council,Community Services,Grants,D3701,02/09/2015,46287026_1,10000.00,Revenue,20002401,SOUTH OXFORDSHIRE DISTRICT COUNCIL
Oxford City Council,Direct Services,Electricity,B1501,14/07/2015,1017860_1,849.36,Revenue,20002402,SOUTHERN ELECTRIC PLC
Oxford City Council,Direct Services,Electricity,B1501,21/07/2015,1017865_1,1673.08,Revenue,20002402,SOUTHERN ELECTRIC PLC
Oxford City Council,Direct Services,Electricity,B1501,14/07/2015,1017867_1,1639.71,Revenue,20002402,SOUTHERN ELECTRIC PLC
Oxford City Council,Housing and Property,Electricity,B1501,07/07/2015,1018095_1,693.11,Revenue,20002402,SOUTHERN ELECTRIC PLC
Oxford City Council,Community Services,Electricity,B1501,21/07/2015,1018521_1,566.18,Revenue,20002402,SOUTHERN ELECTRIC PLC
Oxford City Council,Direct Services,Electricity,B1501,21/07/2015,1018547_1,1363.62,Revenue,20002402,SOUTHERN ELECTRIC PLC
Oxford City Council,Direct Services,Electricity,B1501,28/07/2015,1018729_1,1639.25,Revenue,20002402,SOUTHERN ELECTRIC PLC
Oxford City Council,Direct Services,Electricity,B1501,11/08/2015,1019260_1,1408.92,Revenue,20002402,SOUTHERN ELECTRIC PLC
Oxford City Council,Housing and Property,Electricity,B1501,25/08/2015,1019907_1,1005.61,Revenue,20002402,SOUTHERN ELECTRIC PLC
Oxford City Council,Housing and Property,Electricity,B1501,08/09/2015,1019910_1,1180.69,Revenue,20002402,SOUTHERN ELECTRIC PLC
Oxford City Council,Direct Services,Electricity,B1501,25/08/2015,1019927_1,2183.35,Revenue,20002402,SOUTHERN ELECTRIC PLC
Oxford City Council,Direct Services,Electricity,B1501,25/08/2015,1019938_1,3038.32,Revenue,20002402,SOUTHERN ELECTRIC PLC
Oxford City Council,Direct Services,Electricity,B1501,02/09/2015,1019939_1,2251.41,Revenue,20002402,SOUTHERN ELECTRIC PLC
Oxford City Council,Direct Services,Electricity,B1501,25/08/2015,1019950_1,1497.29,Revenue,20002402,SOUTHERN ELECTRIC PLC
Oxford City Council,Community Services,Electricity,B1501,25/08/2015,1019953_1,1737.30,Revenue,20002402,SOUTHERN ELECTRIC PLC
Oxford City Council,Direct Services,Electricity,B1501,25/08/2015,1019956_1,529.51,Revenue,20002402,SOUTHERN ELECTRIC PLC
Oxford City Council,Direct Services,Electricity,B1501,25/08/2015,1019957_1,848.18,Revenue,20002402,SOUTHERN ELECTRIC PLC
Oxford City Council,Direct Services,Electricity,B1501,25/08/2015,1019963_1,641.90,Revenue,20002402,SOUTHERN ELECTRIC PLC
Oxford City Council,Business Improvement,Electricity,B1501,02/09/2015,1020030_1,1249.11,Revenue,20002402,SOUTHERN ELECTRIC PLC
Oxford City Council,Housing and Property,Electricity,B1501,25/08/2015,1020031_1,1051.97,Revenue,20002402,SOUTHERN ELECTRIC PLC
Oxford City Council,Housing and Property,Electricity,B1501,25/08/2015,1020033_1,524.05,Revenue,20002402,SOUTHERN ELECTRIC PLC
Oxford City Council,Direct Services,Electricity,B1501,22/09/2015,1020618_1,1307.89,Revenue,20002402,SOUTHERN ELECTRIC PLC
Oxford City Council,Direct Services,Electricity,B1501,22/09/2015,1020959_1,2593.13,Revenue,20002402,SOUTHERN ELECTRIC PLC
Oxford City Council,Housing and Property,Electricity,B1501,28/07/2015,46286620_1,3206.05,Revenue,20002402,SOUTHERN ELECTRIC PLC
Oxford City Council,Housing and Property,Electricity,B1501,28/07/2015,46286621_1,3540.96,Revenue,20002402,SOUTHERN ELECTRIC PLC
Oxford City Council,Housing and Property,Electricity,B1501,11/08/2015,46286752_1,5562.21,Revenue,20002402,SOUTHERN ELECTRIC PLC
Oxford City Council,HRA,Electricity,B1501,18/08/2015,46286822_1,894.30,Revenue,20002402,SOUTHERN ELECTRIC PLC
Oxford City Council,HRA,Electricity,B1501,18/08/2015,46286822_10,994.41,Revenue,20002402,SOUTHERN ELECTRIC PLC
Oxford City Council,HRA,Electricity,B1501,18/08/2015,46286822_11,897.45,Revenue,20002402,SOUTHERN ELECTRIC PLC
Oxford City Council,HRA,Electricity,B1501,18/08/2015,46286822_12,500.36,Revenue,20002402,SOUTHERN ELECTRIC PLC
Oxford City Council,HRA,Electricity,B1501,18/08/2015,46286822_13,-472.13,Revenue,20002402,SOUTHERN ELECTRIC PLC
Oxford City Council,HRA,Electricity,B1501,18/08/2015,46286822_14,612.41,Revenue,20002402,SOUTHERN ELECTRIC PLC
Oxford City Council,HRA,Electricity,B1501,18/08/2015,46286822_15,1493.36,Revenue,20002402,SOUTHERN ELECTRIC PLC
Oxford City Council,HRA,Electricity,B1501,18/08/2015,46286822_2,1258.52,Revenue,20002402,SOUTHERN ELECTRIC PLC
Oxford City Council,HRA,Electricity,B1501,18/08/2015,46286822_3,215.51,Revenue,20002402,SOUTHERN ELECTRIC PLC
Oxford City Council,HRA,Electricity,B1501,18/08/2015,46286822_4,248.69,Revenue,20002402,SOUTHERN ELECTRIC PLC
Oxford City Council,HRA,Electricity,B1501,18/08/2015,46286822_5,-77.18,Revenue,20002402,SOUTHERN ELECTRIC PLC
Oxford City Council,HRA,Electricity,B1501,18/08/2015,46286822_6,4741.70,Revenue,20002402,SOUTHERN ELECTRIC PLC
Oxford City Council,HRA,Electricity,B1501,18/08/2015,46286822_7,1956.16,Revenue,20002402,SOUTHERN ELECTRIC PLC
Oxford City Council,HRA,Electricity,B1501,18/08/2015,46286822_8,19026.73,Revenue,20002402,SOUTHERN ELECTRIC PLC
Oxford City Council,HRA,Electricity,B1501,18/08/2015,46286822_9,1079.71,Revenue,20002402,SOUTHERN ELECTRIC PLC
Oxford City Council,Housing and Property,Electricity,B1501,02/09/2015,46287002_1,8376.44,Revenue,20002402,SOUTHERN ELECTRIC PLC
Oxford City Council,Environmental Sustainability,Gas,B1502,02/09/2015,46287031_1,1552.00,Revenue,20002402,SOUTHERN ELECTRIC PLC
Oxford City Council,HRA,Electricity,B1501,08/09/2015,46287047_1,1340.29,Revenue,20002402,SOUTHERN ELECTRIC PLC
Oxford City Council,HRA,Electricity,B1501,08/09/2015,46287047_2,2226.89,Revenue,20002402,SOUTHERN ELECTRIC PLC
Oxford City Council,HRA,Electricity,B1501,08/09/2015,46287047_3,297.81,Revenue,20002402,SOUTHERN ELECTRIC PLC
Oxford City Council,HRA,Electricity,B1501,08/09/2015,46287047_4,722.98,Revenue,20002402,SOUTHERN ELECTRIC PLC
Oxford City Council,Direct Services,Water & Sewerage Charges,B1830,07/07/2015,1018122_1,1293.36,Revenue,20002423,THAMES WATER UTILITIES LTD
Oxford City Council,Direct Services,Water & Sewerage Charges,B1830,07/07/2015,1018125_1,1050.79,Revenue,20002423,THAMES WATER UTILITIES LTD
Oxford City Council,Direct Services,Water & Sewerage Charges,B1830,07/07/2015,1018128_1,634.83,Revenue,20002423,THAMES WATER UTILITIES LTD
Oxford City Council,Direct Services,Services Maintenance (Planned),B1103,14/07/2015,1018289_1,790.63,Revenue,20002423,THAMES WATER UTILITIES LTD
Oxford City Council,Housing and Property,Water & Sewerage Charges,B1830,14/07/2015,1018303_1,606.11,Revenue,20002423,THAMES WATER UTILITIES LTD
Oxford City Council,HRA,Water & Sewerage Charges,B1830,11/08/2015,1019151_1,1159.23,Revenue,20002423,THAMES WATER UTILITIES LTD
Oxford City Council,HRA,Water & Sewerage Charges,B1830,11/08/2015,1019181_1,926.68,Revenue,20002423,THAMES WATER UTILITIES LTD
Oxford City Council,Direct Services,Water & Sewerage Charges,B1830,04/08/2015,1019189_1,2922.40,Revenue,20002423,THAMES WATER UTILITIES LTD
Oxford City Council,Housing and Property,Water & Sewerage Charges,B1830,02/09/2015,1019784_1,1229.91,Revenue,20002423,THAMES WATER UTILITIES LTD
Oxford City Council,Direct Services,Water & Sewerage Charges,B1830,25/08/2015,1019787_1,3138.13,Revenue,20002423,THAMES WATER UTILITIES LTD
Oxford City Council,Direct Services,Water & Sewerage Charges,B1830,25/08/2015,1019789_1,871.25,Revenue,20002423,THAMES WATER UTILITIES LTD
Oxford City Council,Direct Services,Water & Sewerage Charges,B1830,25/08/2015,1020012_1,680.49,Revenue,20002423,THAMES WATER UTILITIES LTD
Oxford City Council,HRA,Water & Sewerage Charges,B1830,25/08/2015,1020013_1,903.26,Revenue,20002423,THAMES WATER UTILITIES LTD
Oxford City Council,Direct Services,Water & Sewerage Charges,B1830,02/09/2015,1020027_1,882.38,Revenue,20002423,THAMES WATER UTILITIES LTD
Oxford City Council,HRA,Water & Sewerage Charges,B1830,08/09/2015,1020397_1,797.99,Revenue,20002423,THAMES WATER UTILITIES LTD
Oxford City Council,Direct Services,Water & Sewerage Charges,B1830,29/09/2015,1021090_1,767.33,Revenue,20002423,THAMES WATER UTILITIES LTD
Oxford City Council,Direct Services,Water & Sewerage Charges,B1830,29/09/2015,1021140_1,505.03,Revenue,20002423,THAMES WATER UTILITIES LTD
Oxford City Council,Law and Governance,Books & Publications,D3302,15/09/2015,1020496_1,700.45,Revenue,20002433,LEXISNEXIS BUTTERWORTHS
Oxford City Council,Financial Services,Subscriptions,D3703,18/08/2015,46286823_1,1655.00,Revenue,20002433,LEXISNEXIS BUTTERWORTHS
Oxford City Council,Suspense,Other Miscellaneous Expenses,D3811,07/07/2015,1018110_1,6100.00,Revenue,20002434,TOOLMASTER (OXFORD) LTD
Oxford City Council,Direct Services,Materials,D3021,02/09/2015,1019681_1,691.12,Revenue,20002434,TOOLMASTER (OXFORD) LTD
Oxford City Council,Direct Services,Materials,D3021   ,07/07/2015,60040632_0,517.23,Revenue,20002434,TOOLMASTER (OXFORD) LTD
Oxford City Council,Direct Services,Materials,D3021,18/08/2015,60042619_1,994.50,Revenue,20002434,TOOLMASTER (OXFORD) LTD
Oxford City Council,Direct Services,Tools,D3023   ,02/09/2015,60043349_0,710.00,Revenue,20002434,TOOLMASTER (OXFORD) LTD
Oxford City Council,Direct Services,Materials,D3021,04/08/2015,47980863_1,15.00,Revenue,20002435,P A TURNEY LTD
Oxford City Council,Direct Services,Materials,D3021,04/08/2015,47980863_2,2.93,Revenue,20002435,P A TURNEY LTD
Oxford City Council,Direct Services,Materials,D3021,04/08/2015,47980863_3,759.24,Revenue,20002435,P A TURNEY LTD
Oxford City Council,Direct Services,Protective Clothing,D3201,22/09/2015,47981658_0,327.97,Revenue,20002435,P A TURNEY LTD
Oxford City Council,Direct Services,Protective Clothing,D3201,22/09/2015,47981658_0,327.97,Revenue,20002435,P A TURNEY LTD
Oxford City Council,Direct Services,Protective Clothing,d3201,22/09/2015,47981680_2,526.33,Revenue,20002435,P A TURNEY LTD
Oxford City Council,Direct Services,Plant Purchase,C2002,22/09/2015,47981692_1,360.30,Revenue,20002435,P A TURNEY LTD
Oxford City Council,Direct Services,Plant Purchase,C2002,22/09/2015,47981692_2,299.00,Revenue,20002435,P A TURNEY LTD
Oxford City Council,Direct Services,Plant Purchase,C2002,22/09/2015,47981692_3,120.00,Revenue,20002435,P A TURNEY LTD
Oxford City Council,Direct Services,Plant Purchase,C2002,22/09/2015,47981692_4,32.00,Revenue,20002435,P A TURNEY LTD
Oxford City Council,Direct Services,Plant Purchase,C2002,22/09/2015,47981692_5,28.00,Revenue,20002435,P A TURNEY LTD
Oxford City Council,Direct Services,Plant Purchase,C2002,22/09/2015,47981692_6,315.00,Revenue,20002435,P A TURNEY LTD
Oxford City Council,Direct Services,Plant Purchase,C2002,22/09/2015,47981692_7,169.00,Revenue,20002435,P A TURNEY LTD
Oxford City Council,Direct Services,Tools,D3023,04/08/2015,60041656_1,615.00,Revenue,20002443,UNIVERSAL ACCESS & POWER PLAN
Oxford City Council,Direct Services,Materials,D3021,18/08/2015,60042621_1,1350.00,Revenue,20002443,UNIVERSAL ACCESS & POWER PLAN
Oxford City Council,Direct Services,Tools,D3023   ,22/09/2015,60044114_1,1383.00,Revenue,20002443,UNIVERSAL ACCESS & POWER PLAN
Oxford City Council,Direct Services,Materials,D3021   ,22/09/2015,60044118_1,1457.64,Revenue,20002443,UNIVERSAL ACCESS & POWER PLAN
Oxford City Council,Direct Services,Protective Clothing,D3201,29/09/2015,60044285_0,535.50,Revenue,20002443,UNIVERSAL ACCESS & POWER PLAN
Oxford City Council,Direct Services,Materials,D3021,21/07/2015,47980758_1,635.00,Revenue,20002444,UNIVERSAL TRUCK&TRAILER PARTS
Oxford City Council,Direct Services,Materials,D3021,22/09/2015,47981668_0,9.10,Revenue,20002444,UNIVERSAL TRUCK&TRAILER PARTS
Oxford City Council,Direct Services,Materials,D3021,22/09/2015,47981668_10,41.44,Revenue,20002444,UNIVERSAL TRUCK&TRAILER PARTS
Oxford City Council,Direct Services,Materials,D3021,22/09/2015,47981668_11,43.10,Revenue,20002444,UNIVERSAL TRUCK&TRAILER PARTS
Oxford City Council,Direct Services,Materials,D3021,22/09/2015,47981668_12,33.15,Revenue,20002444,UNIVERSAL TRUCK&TRAILER PARTS
Oxford City Council,Direct Services,Materials,D3021,22/09/2015,47981668_3,2.04,Revenue,20002444,UNIVERSAL TRUCK&TRAILER PARTS
Oxford City Council,Direct Services,Materials,D3021,22/09/2015,47981668_4,60.78,Revenue,20002444,UNIVERSAL TRUCK&TRAILER PARTS
Oxford City Council,Direct Services,Materials,D3021,22/09/2015,47981668_5,10.94,Revenue,20002444,UNIVERSAL TRUCK&TRAILER PARTS
Oxford City Council,Direct Services,Materials,D3021,22/09/2015,47981668_6,15.58,Revenue,20002444,UNIVERSAL TRUCK&TRAILER PARTS
Oxford City Council,Direct Services,Materials,D3021,22/09/2015,47981668_7,419.04,Revenue,20002444,UNIVERSAL TRUCK&TRAILER PARTS
Oxford City Council,Direct Services,Materials,D3021,22/09/2015,47981668_8,15.92,Revenue,20002444,UNIVERSAL TRUCK&TRAILER PARTS
Oxford City Council,Direct Services,Materials,D3021,22/09/2015,47981668_9,14.98,Revenue,20002444,UNIVERSAL TRUCK&TRAILER PARTS
Oxford City Council,Direct Services,Materials,D3021,22/09/2015,47981672_2,535.00,Revenue,20002444,UNIVERSAL TRUCK&TRAILER PARTS
Oxford City Council,Direct Services,Direct Services Supplies & Services,D3311   ,14/07/2015,60040368_0,717.18,Revenue,20002464,WOLSELEY UK LIMITED
Oxford City Council,Direct Services,Direct Services Supplies & Services,D3311   ,14/07/2015,60040370_0,717.18,Revenue,20002464,WOLSELEY UK LIMITED
Oxford City Council,Direct Services,Direct Services Supplies & Services,D3311   ,14/07/2015,60040371_1,717.18,Revenue,20002464,WOLSELEY UK LIMITED
Oxford City Council,Direct Services,Direct Services Supplies & Services,D3311   ,14/07/2015,60040373_1,717.18,Revenue,20002464,WOLSELEY UK LIMITED
Oxford City Council,Direct Services,Direct Services Supplies & Services,D3311   ,14/07/2015,60040374_0,717.18,Revenue,20002464,WOLSELEY UK LIMITED
Oxford City Council,Direct Services,Materials,D3021   ,07/07/2015,60040726_0,609.75,Revenue,20002464,WOLSELEY UK LIMITED
Oxford City Council,Direct Services,Materials,D3021   ,07/07/2015,60040729_1,1782.38,Revenue,20002464,WOLSELEY UK LIMITED
Oxford City Council,Direct Services,Materials,D3021   ,21/07/2015,60041064_0,767.39,Revenue,20002464,WOLSELEY UK LIMITED
Oxford City Council,Direct Services,Materials,D3021   ,21/07/2015,60041068_0,544.98,Revenue,20002464,WOLSELEY UK LIMITED
Oxford City Council,Direct Services,Materials,D3021   ,21/07/2015,60041083_1,557.23,Revenue,20002464,WOLSELEY UK LIMITED
Oxford City Council,Direct Services,Materials,D3021   ,28/07/2015,60041511_0,1629.69,Revenue,20002464,WOLSELEY UK LIMITED
Oxford City Council,Direct Services,Materials,D3021   ,28/07/2015,60041516_1,503.40,Revenue,20002464,WOLSELEY UK LIMITED
Oxford City Council,Direct Services,Materials,D3021   ,28/07/2015,60041519_0,1323.70,Revenue,20002464,WOLSELEY UK LIMITED
Oxford City Council,Direct Services,Materials,D3021,04/08/2015,60041662_1,1873.10,Revenue,20002464,WOLSELEY UK LIMITED
Oxford City Council,Direct Services,Direct Services Supplies & Services,D3311,04/08/2015,60041663_0,702.59,Revenue,20002464,WOLSELEY UK LIMITED
Oxford City Council,Direct Services,Materials,D3021   ,11/08/2015,60042064_0,984.24,Revenue,20002464,WOLSELEY UK LIMITED
Oxford City Council,Direct Services,Direct Services Supplies & Services,D3311   ,11/08/2015,60042067_1,702.59,Revenue,20002464,WOLSELEY UK LIMITED
Oxford City Council,Direct Services,Materials,D3021   ,11/08/2015,60042174_0,6062.73,Revenue,20002464,WOLSELEY UK LIMITED
Oxford City Council,Direct Services,Materials,D3021   ,11/08/2015,60042176_0,2121.03,Revenue,20002464,WOLSELEY UK LIMITED
Oxford City Council,Direct Services,Materials,D3021   ,11/08/2015,60042185_1,846.31,Revenue,20002464,WOLSELEY UK LIMITED
Oxford City Council,Direct Services,Materials,D3021,18/08/2015,60042500_0,616.10,Revenue,20002464,WOLSELEY UK LIMITED
Oxford City Council,Direct Services,Materials,D3021,18/08/2015,60042503_1,2251.81,Revenue,20002464,WOLSELEY UK LIMITED
Oxford City Council,Direct Services,Materials,D3021,25/08/2015,60042771_1,1779.96,Revenue,20002464,WOLSELEY UK LIMITED
Oxford City Council,Direct Services,Materials,D3021,25/08/2015,60042772_0,607.65,Revenue,20002464,WOLSELEY UK LIMITED
Oxford City Council,Direct Services,Direct Services Supplies & Services,D3311,25/08/2015,60042775_1,702.59,Revenue,20002464,WOLSELEY UK LIMITED
Oxford City Council,Direct Services,Direct Services Supplies & Services,D3311,25/08/2015,60042776_0,702.59,Revenue,20002464,WOLSELEY UK LIMITED
Oxford City Council,Direct Services,Direct Services Supplies & Services,D3311,25/08/2015,60042777_1,702.59,Revenue,20002464,WOLSELEY UK LIMITED
Oxford City Council,Direct Services,Direct Services Supplies & Services,D3311,25/08/2015,60043151_1,2979.15,Revenue,20002464,WOLSELEY UK LIMITED
Oxford City Council,Direct Services,Materials,D3021   ,02/09/2015,60043495_0,516.25,Revenue,20002464,WOLSELEY UK LIMITED
Oxford City Council,Direct Services,Materials,D3021   ,15/09/2015,60043739_0,1130.49,Revenue,20002464,WOLSELEY UK LIMITED
Oxford City Council,Direct Services,Materials,D3021   ,15/09/2015,60043742_1,820.07,Revenue,20002464,WOLSELEY UK LIMITED
Oxford City Council,Direct Services,Materials,D3021   ,15/09/2015,60043743_0,1286.30,Revenue,20002464,WOLSELEY UK LIMITED
Oxford City Council,Direct Services,Direct Services Supplies & Services,D3311   ,15/09/2015,60043824_1,839.45,Revenue,20002464,WOLSELEY UK LIMITED
Oxford City Council,Direct Services,Materials,D3021   ,15/09/2015,60043829_0,1139.69,Revenue,20002464,WOLSELEY UK LIMITED
Oxford City Council,Direct Services,Materials,D3021,29/09/2015,60044266_1,1692.63,Revenue,20002464,WOLSELEY UK LIMITED
Oxford City Council,Direct Services,Materials,D3021,29/09/2015,60044268_1,1561.37,Revenue,20002464,WOLSELEY UK LIMITED
Oxford City Council,Direct Services,Materials,D3021,29/09/2015,60044270_1,1485.28,Revenue,20002464,WOLSELEY UK LIMITED
Oxford City Council,Direct Services,Materials,D3021,29/09/2015,60044301_0,2967.73,Revenue,20002464,WOLSELEY UK LIMITED
Oxford City Council,Direct Services,Supply & Collection Of Litter Bins,B1171   ,14/07/2015,60040885_0,3273.75,Revenue,20002466,WYBONE LTD
Oxford City Council,Regeneration and Major Projects Team,Main Contractor,Y021,07/07/2015,48021257_1,405503.08,Capital,20002494,E W BEARD LTD
Oxford City Council,Regeneration and Major Projects Team,Main Contractor,Y021,18/08/2015,48021287_1,341098.52,Capital,20002494,E W BEARD LTD
Oxford City Council,Regeneration and Major Projects Team,Main Contractor,Y021,22/09/2015,48021294_1,363661.49,Capital,20002494,E W BEARD LTD
Oxford City Council,Direct Services,Direct Services Sub Contractors,B1111   ,07/07/2015,60040068_0,1232.96,Revenue,20002513,MARCUS COPELIN
Oxford City Council,Direct Services,Direct Services Sub Contractors,B1111   ,21/07/2015,60040427_1,1646.00,Revenue,20002513,MARCUS COPELIN
Oxford City Council,Direct Services,Direct Services Sub Contractors,B1111   ,21/07/2015,60040429_1,2680.00,Revenue,20002513,MARCUS COPELIN
Oxford City Council,Direct Services,Direct Services Sub Contractors,B1111   ,21/07/2015,60040431_1,920.00,Revenue,20002513,MARCUS COPELIN
Oxford City Council,Holding Accounts & Other Funds,C.I.T.Awaiting Payment,Z970590,18/08/2015,60042633_1,1265.92,Revenue,20002513,MARCUS COPELIN
Oxford City Council,Holding Accounts & Other Funds,C.I.T.Awaiting Payment,Z970590,18/08/2015,60042635_1,2310.00,Revenue,20002513,MARCUS COPELIN
Oxford City Council,Housing and Property,Services Maintenance (Planned),B1103,21/07/2015,46286593_1,732.00,Revenue,20002568,PYROTEC SERVICES LTD
Oxford City Council,HRA,Fire Alarms and Emergency Lighting,B1241,11/08/2015,46286728_1,2964.12,Revenue,20002568,PYROTEC SERVICES LTD
Oxford City Council,Housing and Property,Fire Alarms and Emergency Lighting,B1241,11/08/2015,46286728_2,50.00,Revenue,20002568,PYROTEC SERVICES LTD
Oxford City Council,Housing and Property,Fire Alarms and Emergency Lighting,B1241,11/08/2015,46286728_3,157.14,Revenue,20002568,PYROTEC SERVICES LTD
Oxford City Council,Housing and Property,Fire Alarms and Emergency Lighting,B1241,11/08/2015,46286728_4,144.95,Revenue,20002568,PYROTEC SERVICES LTD
Oxford City Council,Housing and Property,Fire Alarms and Emergency Lighting,B1241,11/08/2015,46286728_5,45.08,Revenue,20002568,PYROTEC SERVICES LTD
Oxford City Council,Housing and Property,Fire Alarms and Emergency Lighting,B1241,11/08/2015,46286728_6,2595.23,Revenue,20002568,PYROTEC SERVICES LTD
Oxford City Council,Housing and Property,Fire Alarms and Emergency Lighting,B1241,11/08/2015,46286728_7,1960.00,Revenue,20002568,PYROTEC SERVICES LTD
Oxford City Council,Housing and Property,Fire Alarms and Emergency Lighting,B1241,11/08/2015,46286728_8,1149.99,Revenue,20002568,PYROTEC SERVICES LTD
Oxford City Council,Housing and Property,Fire Alarms and Emergency Lighting,B1241,11/08/2015,46286728_9,19.65,Revenue,20002568,PYROTEC SERVICES LTD
Oxford City Council,HRA,Fire Alarms and Emergency Lighting,B1241,02/09/2015,46287004_1,10232.72,Revenue,20002568,PYROTEC SERVICES LTD
Oxford City Council,Housing and Property,Fire Alarms and Emergency Lighting,B1241,02/09/2015,46287004_2,2716.26,Revenue,20002568,PYROTEC SERVICES LTD
Oxford City Council,Housing and Property,Fire Alarms and Emergency Lighting,B1241,02/09/2015,46287004_3,272.49,Revenue,20002568,PYROTEC SERVICES LTD
Oxford City Council,Housing and Property,Fire Alarms and Emergency Lighting,B1241,02/09/2015,46287004_4,308.80,Revenue,20002568,PYROTEC SERVICES LTD
Oxford City Council,Housing and Property,Fire Alarms and Emergency Lighting,B1241,02/09/2015,46287004_5,629.00,Revenue,20002568,PYROTEC SERVICES LTD
Oxford City Council,Housing and Property,Fire Alarms and Emergency Lighting,B1241,02/09/2015,46287004_6,1194.00,Revenue,20002568,PYROTEC SERVICES LTD
Oxford City Council,HRA,Fire Alarms and Emergency Lighting,B1241,02/09/2015,46287004_7,380.00,Revenue,20002568,PYROTEC SERVICES LTD
Oxford City Council,Direct Services,Direct Services Sub Contractors,B1111,04/08/2015,60041549_0,4164.00,Revenue,20002568,PYROTEC SERVICES LTD
Oxford City Council,Direct Services,Materials,D3021,18/08/2015,47980943_0,944.24,Revenue,20002610,JOHNSTON SWEEPERS LTD
Oxford City Council,Direct Services,Materials,D3021,18/08/2015,47980945_0,912.30,Revenue,20002610,JOHNSTON SWEEPERS LTD
Oxford City Council,Direct Services,Materials,D3021,18/08/2015,47980945_1,36.53,Revenue,20002610,JOHNSTON SWEEPERS LTD
Oxford City Council,Direct Services,Materials,D3021,18/08/2015,47980945_2,3.27,Revenue,20002610,JOHNSTON SWEEPERS LTD
Oxford City Council,Direct Services,Materials,D3021,18/08/2015,47980945_3,6.66,Revenue,20002610,JOHNSTON SWEEPERS LTD
Oxford City Council,Direct Services,Materials,D3021,22/09/2015,47981689_1,656.52,Revenue,20002610,JOHNSTON SWEEPERS LTD
Oxford City Council,Direct Services,Materials,D3021,22/09/2015,47981689_2,50.60,Revenue,20002610,JOHNSTON SWEEPERS LTD
Oxford City Council,Direct Services,Materials,D3021,22/09/2015,47981689_3,419.52,Revenue,20002610,JOHNSTON SWEEPERS LTD
Oxford City Council,Direct Services,Materials,D3021,22/09/2015,47981689_4,19.16,Revenue,20002610,JOHNSTON SWEEPERS LTD
Oxford City Council,Suspense,Materials,D3021   ,28/07/2015,60041535_0,525.31,Revenue,20002653,H TUCKWELL & SONS LTD
Oxford City Council,Suspense,Materials,D3021   ,08/09/2015,60043594_1,510.69,Revenue,20002653,H TUCKWELL & SONS LTD
Oxford City Council,Suspense,Materials,D3021   ,08/09/2015,60043595_0,516.59,Revenue,20002653,H TUCKWELL & SONS LTD
Oxford City Council,Suspense,Materials,D3021   ,08/09/2015,60043596_1,504.28,Revenue,20002653,H TUCKWELL & SONS LTD
Oxford City Council,Direct Services,Materials,D3021,25/08/2015,60042887_1,694.40,Revenue,20002679,LOCKS & LATCHES (STAFFORD) LTD
Oxford City Council,Community Services,General Contracted Services,D3401,18/08/2015,1019808_1,1031.55,Revenue,20002680,OXFORD SAFETY SUPPLIES
Oxford City Council,Direct Services,Materials,D3021,25/08/2015,46286929_1,644.95,Revenue,20002680,OXFORD SAFETY SUPPLIES
Oxford City Council,Direct Services,Materials,D3021   ,21/07/2015,60041059_1,526.20,Revenue,20002680,OXFORD SAFETY SUPPLIES
Oxford City Council,Direct Services,Materials,D3021   ,21/07/2015,60041061_1,813.25,Revenue,20002680,OXFORD SAFETY SUPPLIES
Oxford City Council,Direct Services,Materials,D3021   ,21/07/2015,60041129_1,551.25,Revenue,20002680,OXFORD SAFETY SUPPLIES
Oxford City Council,Direct Services,Materials,D3021   ,21/07/2015,60041136_0,1744.15,Revenue,20002680,OXFORD SAFETY SUPPLIES
Oxford City Council,Direct Services,Materials,D3021,04/08/2015,60041647_0,807.60,Revenue,20002680,OXFORD SAFETY SUPPLIES
Oxford City Council,Direct Services,Materials,D3021   ,11/08/2015,60042303_1,527.60,Revenue,20002680,OXFORD SAFETY SUPPLIES
Oxford City Council,Direct Services,Materials,D3021,18/08/2015,60042602_0,1531.50,Revenue,20002680,OXFORD SAFETY SUPPLIES
Oxford City Council,Direct Services,Protective Clothing,D3201   ,02/09/2015,60043222_1,668.50,Revenue,20002680,OXFORD SAFETY SUPPLIES
Oxford City Council,Direct Services,Materials,D3021   ,02/09/2015,60043345_0,682.95,Revenue,20002680,OXFORD SAFETY SUPPLIES
Oxford City Council,Direct Services,Materials,D3021   ,15/09/2015,60043737_0,886.55,Revenue,20002680,OXFORD SAFETY SUPPLIES
Oxford City Council,Direct Services,Materials,D3021   ,22/09/2015,60044098_1,848.15,Revenue,20002680,OXFORD SAFETY SUPPLIES
Oxford City Council,Direct Services,Materials,D3021   ,22/09/2015,60044122_1,539.95,Revenue,20002680,OXFORD SAFETY SUPPLIES
Oxford City Council,Direct Services,Sign Shop Materials,D3018,29/09/2015,60044298_1,1028.16,Revenue,20002698,SPANDEX  LTD.  (UK)  COLLECTIONS
Oxford City Council,Direct Services,Materials,D3021,25/08/2015,60042802_0,6252.88,Revenue,20002710,SMITH & SONS(BLETCHINGTON)LTD
Oxford City Council,Direct Services,Materials,D3021,18/08/2015,60042405_1,735.00,Revenue,20002712,CLEANSING SERVICE GROUP LTD
Oxford City Council,Direct Services,Materials,D3021,18/08/2015,60042406_0,1280.00,Revenue,20002712,CLEANSING SERVICE GROUP LTD
Oxford City Council,HRA,Subscriptions,D3703,02/09/2015,1019913_1,720.00,Revenue,20002758,HQN LIMITED
Oxford City Council,Housing and Property,Temporary Bureau Staffing,A0108,07/07/2015,1018067_1,851.00,Revenue,20002820,BADENOCH & CLARK LTD
Oxford City Council,Financial Services,Temporary Bureau Staffing,A0108,07/07/2015,1018068_1,914.27,Revenue,20002820,BADENOCH & CLARK LTD
Oxford City Council,Financial Services,Temporary Bureau Staffing,A0108,07/07/2015,1018071_1,914.27,Revenue,20002820,BADENOCH & CLARK LTD
Oxford City Council,Financial Services,Temporary Bureau Staffing,A0108,07/07/2015,1018072_1,914.27,Revenue,20002820,BADENOCH & CLARK LTD
Oxford City Council,Financial Services,Temporary Bureau Staffing,A0108,07/07/2015,1018073_1,914.27,Revenue,20002820,BADENOCH & CLARK LTD
Oxford City Council,Financial Services,Temporary Bureau Staffing,A0108,07/07/2015,1018075_1,871.03,Revenue,20002820,BADENOCH & CLARK LTD
Oxford City Council,Financial Services,Temporary Bureau Staffing,A0108,07/07/2015,1018076_1,864.85,Revenue,20002820,BADENOCH & CLARK LTD
Oxford City Council,Financial Services,Temporary Bureau Staffing,A0108,07/07/2015,1018077_1,642.46,Revenue,20002820,BADENOCH & CLARK LTD
Oxford City Council,Financial Services,Temporary Bureau Staffing,A0108,07/07/2015,1018078_1,803.08,Revenue,20002820,BADENOCH & CLARK LTD
Oxford City Council,Financial Services,Temporary Bureau Staffing,A0108,07/07/2015,1018079_1,858.67,Revenue,20002820,BADENOCH & CLARK LTD
Oxford City Council,Housing and Property,Temporary Bureau Staffing,A0108,07/07/2015,1018080_1,851.00,Revenue,20002820,BADENOCH & CLARK LTD
Oxford City Council,Housing and Property,Temporary Bureau Staffing,A0108,07/07/2015,1018083_1,851.00,Revenue,20002820,BADENOCH & CLARK LTD
Oxford City Council,Housing and Property,Temporary Bureau Staffing,A0108,07/07/2015,1018084_1,598.00,Revenue,20002820,BADENOCH & CLARK LTD
Oxford City Council,Housing and Property,Temporary Bureau Staffing,A0108,28/07/2015,1019006_1,851.00,Revenue,20002820,BADENOCH & CLARK LTD
Oxford City Council,Financial Services,Temporary Bureau Staffing,A0108,28/07/2015,1019007_1,883.38,Revenue,20002820,BADENOCH & CLARK LTD
Oxford City Council,Housing and Property,Temporary Bureau Staffing,A0108,04/08/2015,1019009_1,851.00,Revenue,20002820,BADENOCH & CLARK LTD
Oxford City Council,Financial Services,Temporary Bureau Staffing,A0108,04/08/2015,1019010_1,914.27,Revenue,20002820,BADENOCH & CLARK LTD
Oxford City Council,Financial Services,Temporary Bureau Staffing,A0108,11/08/2015,1019012_1,901.92,Revenue,20002820,BADENOCH & CLARK LTD
Oxford City Council,Housing and Property,Temporary Bureau Staffing,A0108,04/08/2015,1019013_1,851.00,Revenue,20002820,BADENOCH & CLARK LTD
Oxford City Council,Financial Services,Temporary Bureau Staffing,A0108,28/07/2015,1019015_1,617.75,Revenue,20002820,BADENOCH & CLARK LTD
Oxford City Council,Financial Services,Temporary Bureau Staffing,A0108,28/07/2015,1019017_1,901.92,Revenue,20002820,BADENOCH & CLARK LTD
Oxford City Council,Housing and Property,Temporary Bureau Staffing,A0108,28/07/2015,1019018_1,851.00,Revenue,20002820,BADENOCH & CLARK LTD
Oxford City Council,Financial Services,Temporary Bureau Staffing,A0108,28/07/2015,1019019_1,914.27,Revenue,20002820,BADENOCH & CLARK LTD
Oxford City Council,Housing and Property,Temporary Bureau Staffing,A0108,28/07/2015,1019021_1,851.00,Revenue,20002820,BADENOCH & CLARK LTD
Oxford City Council,Housing and Property,Temporary Bureau Staffing,A0108,28/07/2015,1019023_1,851.00,Revenue,20002820,BADENOCH & CLARK LTD
Oxford City Council,Housing and Property,Temporary Bureau Staffing,A0108,28/07/2015,1019024_1,839.50,Revenue,20002820,BADENOCH & CLARK LTD
Oxford City Council,Financial Services,Temporary Bureau Staffing,A0108,28/07/2015,1019025_1,908.09,Revenue,20002820,BADENOCH & CLARK LTD
Oxford City Council,Financial Services,Temporary Bureau Staffing,A0108,28/07/2015,1019026_1,741.30,Revenue,20002820,BADENOCH & CLARK LTD
Oxford City Council,Housing and Property,Temporary Bureau Staffing,A0108,28/07/2015,1019027_1,724.50,Revenue,20002820,BADENOCH & CLARK LTD
Oxford City Council,Housing and Property,Temporary Bureau Staffing,A0108,28/07/2015,1019028_1,828.00,Revenue,20002820,BADENOCH & CLARK LTD
Oxford City Council,Housing and Property,Temporary Bureau Staffing,A0108,28/07/2015,1019030_1,851.00,Revenue,20002820,BADENOCH & CLARK LTD
Oxford City Council,Housing and Property,Temporary Bureau Staffing,A0108,28/07/2015,1019032_1,851.00,Revenue,20002820,BADENOCH & CLARK LTD
Oxford City Council,Housing and Property,Temporary Bureau Staffing,A0108,22/09/2015,1020683_1,851.00,Revenue,20002820,BADENOCH & CLARK LTD
Oxford City Council,Housing and Property,Temporary Bureau Staffing,A0108,15/09/2015,1020743_1,851.00,Revenue,20002820,BADENOCH & CLARK LTD
Oxford City Council,Financial Services,Temporary Bureau Staffing,A0108,22/09/2015,1020761_1,816.96,Revenue,20002820,BADENOCH & CLARK LTD
Oxford City Council,Direct Services,Reactive Maintenance & Minor Repairs,B1101,29/09/2015,60044246_1,1881.00,Revenue,20002929,ENVIRONMENT AGENCY
Oxford City Council,Financial Services,General Contracted Services,D3401,07/07/2015,1018271_1,806.25,Revenue,20002930,OXFORDSHIRE COUNTY COUNCIL
Oxford City Council,Law and Governance,Consultants Fees,D3411,18/08/2015,1019498_1,956.28,Revenue,20002930,OXFORDSHIRE COUNTY COUNCIL
Oxford City Council,Business Improvement,Contract Printing (External),D3303,18/08/2015,1019875_1,2946.00,Revenue,20002930,OXFORDSHIRE COUNTY COUNCIL
Oxford City Council,Community Services,General Contracted Services,D3401,08/09/2015,1020295_1,2592.30,Revenue,20002930,OXFORDSHIRE COUNTY COUNCIL
Oxford City Council,Business Improvement,Contract Printing (External),D3303,15/09/2015,1020559_1,8067.00,Revenue,20002930,OXFORDSHIRE COUNTY COUNCIL
Oxford City Council,Community Services,Electricity,B1501,15/09/2015,1020716_1,3589.00,Revenue,20002930,OXFORDSHIRE COUNTY COUNCIL
Oxford City Council,Business Improvement,Contract Printing (External),D3303,29/09/2015,1021134_1,4195.00,Revenue,20002930,OXFORDSHIRE COUNTY COUNCIL
Oxford City Council,Direct Services,Contract Parking Income,K9486,11/08/2015,46286737_1,3000.00,Revenue,20002930,OXFORDSHIRE COUNTY COUNCIL
Oxford City Council,Community Services,Licences (Non-Transport),D3804,11/08/2015,46286811_1,2050.00,Revenue,20002930,OXFORDSHIRE COUNTY COUNCIL
Oxford City Council,HRA,Miscellaneous Fees,Y173,28/07/2015,48021268_1,6251.79,Capital,20002930,OXFORDSHIRE COUNTY COUNCIL
Oxford City Council,Direct Services,Tipping Charges,D3421   ,15/09/2015,60043949_0,75454.87,Revenue,20002930,OXFORDSHIRE COUNTY COUNCIL
Oxford City Council,Direct Services,Tipping Charges,D3421   ,15/09/2015,60043950_1,516.69,Revenue,20002930,OXFORDSHIRE COUNTY COUNCIL
Oxford City Council,Direct Services,Tipping Charges,D3421   ,15/09/2015,60043951_0,58968.97,Revenue,20002930,OXFORDSHIRE COUNTY COUNCIL
Oxford City Council,Direct Services,Tipping Charges,D3421   ,15/09/2015,60043952_1,69846.88,Revenue,20002930,OXFORDSHIRE COUNTY COUNCIL
Oxford City Council,Regeneration and Major Projects Team,Direct Services,Y237,18/08/2015,60042545_1,978.70,Capital,20002955,PORTAKABIN LIMITED
Oxford City Council,Regeneration and Major Projects Team,Direct Services,Y237,18/08/2015,60042546_0,5845.66,Capital,20002955,PORTAKABIN LIMITED
Oxford City Council,Regeneration and Major Projects Team,Direct Services,Y237    ,02/09/2015,60043258_1,5845.66,Capital,20002955,PORTAKABIN LIMITED
Oxford City Council,HRA,Direct Services,Y237,25/08/2015,60043031_1,4809.34,Capital,20002957,BMA VARSITY LTD
Oxford City Council,Law and Governance,Subscriptions,D3703,18/08/2015,1019757_1,520.00,Revenue,20002981,THOMSON REUTERS
Oxford City Council,Law and Governance,Books & Publications,D3302,18/08/2015,1019805_1,701.99,Revenue,20002981,THOMSON REUTERS
Oxford City Council,Community Services,General Contracted Services,D3401,15/09/2015,1020695_1,1200.00,Revenue,20002984,CHARTERED INSTITUTE HOUSING
Oxford City Council,Community Services,Furniture & Equipment Purchase,D3001,25/08/2015,1020089_1,75.00,Revenue,20002998,JBL
Oxford City Council,Community Services,Furniture & Equipment Purchase,D3001,25/08/2015,1020089_2,1258.00,Revenue,20002998,JBL
Oxford City Council,Direct Services,Advertising & Publicity,D3802   ,14/07/2015,60040820_1,640.00,Revenue,20003025,PETE RUSSELL
Oxford City Council,Direct Services,Materials,D3021,28/07/2015,47980819_0,535.83,Revenue,20003127,AMLUC LTD T/AS PIRTEK OXFORD
Oxford City Council,Environmental Development,Grants-Private Persons,Y005,21/07/2015,1018669_1,2420.00,Capital,20003134,D J CULLEN LTD.
Oxford City Council,Environmental Development,Grants-Private Persons,Y005,15/09/2015,1020845_1,13040.00,Capital,20003134,D J CULLEN LTD.
Oxford City Council,Direct Services,Materials,D3021,14/07/2015,47980708_0,681.66,Revenue,20003145,RP CHERRY & SONS LTD
Oxford City Council,Community Services,Contract Cleaning,B1602,29/09/2015,1021239_1,714.23,Revenue,20003172,RENTOKIL INITIAL SERVICES NO1
Oxford City Council,Financial Services,Consultants Fees,D3411,14/07/2015,1018276_1,1926.60,Revenue,20003176,SLOUGH BOROUGH COUNCIL
Oxford City Council,Financial Services,Consultants Fees,D3411,14/07/2015,1018277_1,1358.70,Revenue,20003176,SLOUGH BOROUGH COUNCIL
Oxford City Council,Direct Services,General Contracted Services,D3401,02/09/2015,47981400_1,981.65,Revenue,20003218,BOC LTD
Oxford City Council,Direct Services,Materials,D3021   ,07/07/2015,60040492_0,2224.02,Revenue,20003233,AKW MEDICARE LIMITED
Oxford City Council,Direct Services,Materials,D3021   ,21/07/2015,60040990_0,1284.09,Revenue,20003233,AKW MEDICARE LIMITED
Oxford City Council,Direct Services,Materials,D3021   ,28/07/2015,60041217_0,1527.56,Revenue,20003233,AKW MEDICARE LIMITED
Oxford City Council,Direct Services,Direct Services Supplies & Services,D3311   ,28/07/2015,60041448_1,590.24,Revenue,20003233,AKW MEDICARE LIMITED
Oxford City Council,Direct Services,Materials,D3021,04/08/2015,60041553_0,793.35,Revenue,20003233,AKW MEDICARE LIMITED
Oxford City Council,Direct Services,Materials,D3021   ,11/08/2015,60041960_0,2203.38,Revenue,20003233,AKW MEDICARE LIMITED
Oxford City Council,Direct Services,Direct Services Supplies & Services,D3311   ,11/08/2015,60041962_0,594.92,Revenue,20003233,AKW MEDICARE LIMITED
Oxford City Council,Direct Services,Materials,D3021,18/08/2015,60042568_0,706.56,Revenue,20003233,AKW MEDICARE LIMITED
Oxford City Council,Direct Services,Materials,D3021,25/08/2015,60042847_1,971.61,Revenue,20003233,AKW MEDICARE LIMITED
Oxford City Council,Direct Services,Materials,D3021,29/09/2015,60044131_0,787.28,Revenue,20003233,AKW MEDICARE LIMITED
Oxford City Council,Housing and Property,Software Maintenance/Running Costs,D3513,25/08/2015,1018285_1,1655.00,Revenue,20003397,CITIZENS ADVICE BUREAU
Oxford City Council,Housing and Property,Consultants Fees,D3411,11/08/2015,1019219_1,1416.67,Revenue,20003549,BOSSOMS BOATYARD LTD
Oxford City Council,Housing and Property,Consultants Fees,D3411,04/08/2015,1019237_1,1416.67,Revenue,20003549,BOSSOMS BOATYARD LTD
Oxford City Council,Housing and Property,Consultants Fees,D3411,08/09/2015,1020509_1,1416.67,Revenue,20003549,BOSSOMS BOATYARD LTD
Oxford City Council,Law and Governance,Postage & Carriage,D3501,14/07/2015,1018293_1,554.84,Revenue,20003730,ROYAL MAIL
Oxford City Council,Business Improvement,Postage & Carriage,D3501,04/08/2015,1019170_1,3505.25,Revenue,20003730,ROYAL MAIL
Oxford City Council,Direct Services,Postage & Carriage,D3501,18/08/2015,1019631_1,787.00,Revenue,20003730,ROYAL MAIL
Oxford City Council,Law and Governance,Postage & Carriage,D3501,02/09/2015,1019948_1,613.00,Revenue,20003730,ROYAL MAIL
Oxford City Council,Business Improvement,Postage & Carriage,D3501,15/09/2015,1020417_1,2864.66,Revenue,20003730,ROYAL MAIL
Oxford City Council,Law and Governance,Postage & Carriage,D3501,29/09/2015,1021151_1,2100.25,Revenue,20003730,ROYAL MAIL
Oxford City Council,Community Services,General Contracted Services,D3401,18/08/2015,1019832_1,905.00,Revenue,20003842,LITTLEMORE COMMUNITY ASSOCIATION
Oxford City Council,Financial Services,Consultants Fees,D3411,22/09/2015,1020439_1,6363.00,Revenue,20003925,PRICEWATERHOUSECOOPERS LLP
Oxford City Council,Community Services,Grants,D3701,21/07/2015,46286584_1,8907.50,Revenue,20004323,ELMORE COMMUNITY SERVICES
Oxford City Council,Community Services,Grants,D3701,08/09/2015,46287062_1,1395.00,Revenue,20004324,THE GATEHOUSE
Oxford City Council,Community Services,Grants,D3701,21/07/2015,46286582_1,13750.00,Revenue,20004327,THE PORCH
Oxford City Council,HRA,Lift Maintenance / Servicing,B1203,11/08/2015,46286763_1,2138.23,Revenue,20004494,COTSWOLD LIFTS LTD
Oxford City Council,HRA,Lift Maintenance / Servicing,B1203,15/09/2015,46287094_1,19661.80,Revenue,20004494,COTSWOLD LIFTS LTD
Oxford City Council,HRA,Lift Maintenance / Servicing,B1203,15/09/2015,46287094_2,466.20,Revenue,20004494,COTSWOLD LIFTS LTD
Oxford City Council,Direct Services,Lift Maintenance / Servicing,B1203,15/09/2015,46287094_3,557.65,Revenue,20004494,COTSWOLD LIFTS LTD
Oxford City Council,Funding,Parishes,J8527,29/09/2015,46287280_1,31000.00,Revenue,20004730,LITTLEMORE PARISH COUNCIL
Oxford City Council,Funding,Parishes,J8527,29/09/2015,46287278_1,15000.00,Revenue,20004751,BLACKBIRD LEYS PARISH COUNCIL
Oxford City Council,Direct Services,Direct Services Supplies & Services,D3311   ,28/07/2015,60041299_0,836.29,Revenue,20004960,SI PUMPS LTD
Oxford City Council,Direct Services,Direct Services Supplies & Services,D3311   ,28/07/2015,60041503_0,960.00,Revenue,20004960,SI PUMPS LTD
Oxford City Council,Direct Services,Short Courses,A0622,07/07/2015,1017363_1,1050.40,Revenue,20005058,RADIODETECTION LTD
Oxford City Council,Planning & Regulatory,Staff Advertising,A0702,18/08/2015,1019428_1,750.00,Revenue,20005063,CHARTERED INSTITUTE OF ENVIRONMENTAL HEALTH
Oxford City Council,Direct Services,Postage & Carriage,D3501,07/07/2015,1018066_1,500.00,Revenue,20005077,FRANCOTYP POSTALIA LTD
Oxford City Council,Direct Services,Postage & Carriage,D3501,08/09/2015,1020427_1,500.00,Revenue,20005077,FRANCOTYP POSTALIA LTD
Oxford City Council,Community Services,Contributions,D3702,02/09/2015,46286991_1,4989.40,Revenue,20005129,BLACKBIRD LEYS CREDIT UNION
Oxford City Council,Direct Services,Reactive Maintenance & Minor Repairs,B1101,28/07/2015,46286624_1,514.61,Revenue,20005135,HSS HIRE SERVICE GROUP PLC
Oxford City Council,Housing and Property,Reactive Maintenance & Minor Repairs,B1101,22/09/2015,1020770_1,962.44,Revenue,20005595,EXECUTIVE SECURITY LOCKSMITHS LTD
Oxford City Council,Direct Services,Materials,D3021   ,14/07/2015,60040831_0,839.36,Revenue,20005595,EXECUTIVE SECURITY LOCKSMITHS LTD
Oxford City Council,Holding Accounts & Other Funds,C.I.T.Awaiting Payment,Z970590,25/08/2015,60043167_1,587.20,Revenue,20005595,EXECUTIVE SECURITY LOCKSMITHS LTD
Oxford City Council,Holding Accounts & Other Funds,C.I.T.Awaiting Payment,Z970590,25/08/2015,60043168_0,800.80,Revenue,20005595,EXECUTIVE SECURITY LOCKSMITHS LTD
Oxford City Council,Direct Services,Materials,D3021   ,07/07/2015,60040123_1,1779.21,Revenue,20005720,CAPITOL TILE SUPPLIES LTD
Oxford City Council,Direct Services,Materials,D3021   ,07/07/2015,60040465_1,956.88,Revenue,20005720,CAPITOL TILE SUPPLIES LTD
Oxford City Council,Direct Services,Materials,D3021   ,21/07/2015,60041108_0,871.20,Revenue,20005720,CAPITOL TILE SUPPLIES LTD
Oxford City Council,Direct Services,Materials,D3021   ,21/07/2015,60041109_1,1076.49,Revenue,20005720,CAPITOL TILE SUPPLIES LTD
Oxford City Council,Direct Services,Materials,D3021   ,11/08/2015,60042139_1,1838.80,Revenue,20005720,CAPITOL TILE SUPPLIES LTD
Oxford City Council,Direct Services,Materials,D3021   ,11/08/2015,60042141_1,1253.20,Revenue,20005720,CAPITOL TILE SUPPLIES LTD
Oxford City Council,Direct Services,Materials,D3021   ,11/08/2015,60042143_1,768.64,Revenue,20005720,CAPITOL TILE SUPPLIES LTD
Oxford City Council,Direct Services,Materials,D3021   ,11/08/2015,60042145_1,796.92,Revenue,20005720,CAPITOL TILE SUPPLIES LTD
Oxford City Council,Direct Services,Materials,D3021,25/08/2015,60042746_0,1020.80,Revenue,20005720,CAPITOL TILE SUPPLIES LTD
Oxford City Council,Direct Services,Materials,D3021   ,02/09/2015,60043307_0,1498.41,Revenue,20005720,CAPITOL TILE SUPPLIES LTD
Oxford City Council,Direct Services,Materials,D3021   ,02/09/2015,60043308_1,599.94,Revenue,20005720,CAPITOL TILE SUPPLIES LTD
Oxford City Council,Direct Services,Materials,D3021   ,15/09/2015,60043769_0,547.40,Revenue,20005720,CAPITOL TILE SUPPLIES LTD
Oxford City Council,Direct Services,Materials,D3021   ,15/09/2015,60043847_0,521.40,Revenue,20005720,CAPITOL TILE SUPPLIES LTD
Oxford City Council,Direct Services,Materials,D3021   ,15/09/2015,60043868_1,943.32,Revenue,20005720,CAPITOL TILE SUPPLIES LTD
Oxford City Council,Direct Services,Materials,D3021,29/09/2015,60044325_0,1188.00,Revenue,20005720,CAPITOL TILE SUPPLIES LTD
Oxford City Council,Direct Services,Materials,D3021,29/09/2015,60044326_1,956.88,Revenue,20005720,CAPITOL TILE SUPPLIES LTD
Oxford City Council,Regeneration and Major Projects Team,Main Contractor,Y021,18/08/2015,48021284_1,720.00,Capital,20005756,GLANVILLE CONSULTANTS LTD
Oxford City Council,Direct Services,Materials,D3021,18/08/2015,60042411_1,540.00,Revenue,20006027,ACE MINIMIX
Oxford City Council,Direct Services,Materials,D3021,18/08/2015,60042412_0,540.00,Revenue,20006027,ACE MINIMIX
Oxford City Council,Direct Services,Materials,D3021,25/08/2015,60042803_1,1080.00,Revenue,20006027,ACE MINIMIX
Oxford City Council,Direct Services,Materials,D3021,25/08/2015,60042912_0,540.00,Revenue,20006027,ACE MINIMIX
Oxford City Council,Community Services,Waste Disposal & Skip Hire,D3420,28/07/2015,1018471_1,75.00,Revenue,20006059,ENVIROGREEN LTD
Oxford City Council,Community Services,Waste Disposal & Skip Hire,D3420,28/07/2015,1018471_2,600.00,Revenue,20006059,ENVIROGREEN LTD
Oxford City Council,Community Services,Waste Disposal & Skip Hire,D3420,28/07/2015,1018471_3,45.00,Revenue,20006059,ENVIROGREEN LTD
Oxford City Council,Suspense,Other Insurances,D3801,21/07/2015,1018586_1,17744.00,Revenue,20006064,ZURICH MUNICIPAL
Oxford City Council,Direct Services,Materials,D3021   ,14/07/2015,60040783_0,968.67,Revenue,20006089,ICI CONTRACT DIRECT
Oxford City Council,Direct Services,Materials,D3021   ,11/08/2015,60042040_0,559.59,Revenue,20006089,ICI CONTRACT DIRECT
Oxford City Council,Direct Services,Materials,D3021   ,11/08/2015,60042046_0,717.75,Revenue,20006089,ICI CONTRACT DIRECT
Oxford City Council,Direct Services,Materials,D3021   ,11/08/2015,60042047_1,1444.57,Revenue,20006089,ICI CONTRACT DIRECT
Oxford City Council,Direct Services,Materials,D3021   ,11/08/2015,60042049_1,639.80,Revenue,20006089,ICI CONTRACT DIRECT
Oxford City Council,Direct Services,Materials,D3021   ,11/08/2015,60042166_0,1336.45,Revenue,20006089,ICI CONTRACT DIRECT
Oxford City Council,Direct Services,Materials,D3021   ,08/09/2015,60043677_0,1023.81,Revenue,20006089,ICI CONTRACT DIRECT
Oxford City Council,Housing and Property,Consultants Fees,D3411,21/07/2015,1018472_1,573.00,Revenue,20006254,OXFORD ARCHITECTS PARTNERSHIP
Oxford City Council,Housing and Property,Consultants Fees,D3411,18/08/2015,1019519_1,2793.25,Revenue,20006254,OXFORD ARCHITECTS PARTNERSHIP
Oxford City Council,Direct Services,Supply & Collection Of Litter Bins,B1171   ,11/08/2015,60041876_0,1691.00,Revenue,20006267,FURNITUBES INTERNATIONAL LTD
Oxford City Council,Direct Services,Materials,D3021   ,07/07/2015,60039982_0,847.50,Revenue,20006342,JEWSON LTD
Oxford City Council,Direct Services,Materials,D3021   ,07/07/2015,60039984_0,853.10,Revenue,20006342,JEWSON LTD
Oxford City Council,Direct Services,Materials,D3021   ,14/07/2015,60040775_0,1560.90,Revenue,20006342,JEWSON LTD
Oxford City Council,Direct Services,Materials,D3021   ,28/07/2015,60041379_0,508.10,Revenue,20006342,JEWSON LTD
Oxford City Council,Direct Services,Direct Services Supplies & Services,D3311,04/08/2015,60041789_0,629.82,Revenue,20006342,JEWSON LTD
Oxford City Council,Direct Services,Materials,D3021,18/08/2015,60042499_1,533.75,Revenue,20006342,JEWSON LTD
Oxford City Council,Direct Services,Materials,D3021,25/08/2015,60043006_0,568.39,Revenue,20006342,JEWSON LTD
Oxford City Council,Direct Services,Materials,D3021   ,02/09/2015,60043334_1,1409.27,Revenue,20006342,JEWSON LTD
Oxford City Council,Direct Services,Materials,D3021   ,02/09/2015,60043337_0,692.65,Revenue,20006342,JEWSON LTD
Oxford City Council,Direct Services,Materials,D3021   ,15/09/2015,60043735_0,800.30,Revenue,20006342,JEWSON LTD
Oxford City Council,Direct Services,Materials,D3021   ,07/07/2015,60040584_0,525.00,Revenue,20006398,STREET FURNISHING SERVICES
Oxford City Council,Direct Services,Materials,D3021   ,08/09/2015,60043592_1,676.00,Revenue,20006398,STREET FURNISHING SERVICES
Oxford City Council,Planning & Regulatory,Public Transport,C2501,28/07/2015,1018881_1,883.50,Revenue,20006596,OXFORD BUS COMPANY LTD
Oxford City Council,Business Improvement,Travel Scheme Discount,C2505,04/08/2015,1018958_1,1236.00,Revenue,20006596,OXFORD BUS COMPANY LTD
Oxford City Council,Business Improvement,Travel Scheme Discount,C2505,22/09/2015,1020750_1,1213.40,Revenue,20006596,OXFORD BUS COMPANY LTD
Oxford City Council,Business Improvement,Travel Scheme Discount,C2505,22/09/2015,1020751_1,1186.00,Revenue,20006596,OXFORD BUS COMPANY LTD
Oxford City Council,Housing and Property,Consultants Fees,D3411,02/09/2015,1020064_1,1445.00,Revenue,20006804,CIPFA BUSINESS LTD
Oxford City Council,Direct Services,Short Term Vehicle Hire,C2304   ,14/07/2015,47980738_0,612.00,Revenue,20006888,NORTHGATE VEHICLE HIRE LTD
Oxford City Council,Direct Services,Short Term Vehicle Hire,C2304   ,28/07/2015,47980840_0,612.00,Revenue,20006888,NORTHGATE VEHICLE HIRE LTD
Oxford City Council,Housing and Property,Reactive Maintenance & Minor Repairs,B1101,11/08/2015,46286701_1,950.00,Revenue,20006929,ISIS SCAFFOLDING LTD
Oxford City Council,Regeneration and Major Projects Team,Main Contractor,Y021,11/08/2015,48021271_1,950.00,Capital,20006929,ISIS SCAFFOLDING LTD
Oxford City Council,Business Improvement,External Telephone Charges,D3503,22/09/2015,1020961_1,2379.88,Revenue,20006940,BT GLOBAL SERVIES
Oxford City Council,HRA,Main Contractor,Y021,14/07/2015,1018322_1,19576.74,Capital,20007072,SERS LTD
Oxford City Council,HRA,Main Contractor,Y021,18/08/2015,1019866_1,3680.29,Capital,20007072,SERS LTD
Oxford City Council,HRA,Main Contractor,Y021,18/08/2015,1019867_1,29215.78,Capital,20007072,SERS LTD
Oxford City Council,HRA,Main Contractor,Y021,08/09/2015,1020292_1,13915.43,Capital,20007072,SERS LTD
Oxford City Council,HRA,Main Contractor,Y021,08/09/2015,1020293_1,25080.43,Capital,20007072,SERS LTD
Oxford City Council,HRA,Main Contractor,Y021,29/09/2015,1021119_1,6726.85,Capital,20007072,SERS LTD
Oxford City Council,HRA,Main Contractor,Y021,29/09/2015,1021175_1,13854.13,Capital,20007072,SERS LTD
Oxford City Council,Organisational Development,Short Courses,A0622,17/07/2015,1018524_1,1496.00,Revenue,20007221,BPP PROFESSIONAL EDUCATION LIMITED
Oxford City Council,Organisational Development,Short Courses,A0622,11/08/2015,46286718_1,1496.00,Revenue,20007221,BPP PROFESSIONAL EDUCATION LIMITED
Oxford City Council,Welfare Reform Team,Instructors & Coaching Fees,D3413,07/07/2015,1018255_1,8996.00,Revenue,20007299,RESTORE LTD
Oxford City Council,Community Services,Grants,D3701,29/09/2015,1020555_1,1250.00,Revenue,20007366,THE HENLEY COLLEGE
Oxford City Council,Direct Services,Subscriptions,D3703,11/08/2015,46286717_1,1565.00,Revenue,20007392,CONSTRUCTIONLINE
Oxford City Council,Direct Services,Services Maintenance (Planned),B1103,21/07/2015,1018562_1,1768.75,Revenue,20007602,TOTAL GAS & POWER LTD
Oxford City Council,Housing and Property,Reactive Maintenance & Minor Repairs,B1101,18/08/2015,60042315_1,650.00,Revenue,20007609,EXECUTIVE FIRE PROTECTION LTD
Oxford City Council,Direct Services,Reactive Maintenance & Minor Repairs,B1101,25/08/2015,60042787_1,1495.04,Revenue,20007609,EXECUTIVE FIRE PROTECTION LTD
Oxford City Council,Housing and Property,Reactive Maintenance & Minor Repairs,B1101   ,08/09/2015,60043567_0,630.00,Revenue,20007609,EXECUTIVE FIRE PROTECTION LTD
Oxford City Council,Direct Services,Materials,D3021,14/07/2015,47980709_1,1150.00,Revenue,20007833,GELPACK EXCELSIOR LTD
Oxford City Council,Direct Services,Materials,D3021,08/09/2015,47981437_0,2976.00,Revenue,20007833,GELPACK EXCELSIOR LTD
Oxford City Council,Direct Services,Materials,D3021,15/09/2015,47981605_1,1025.76,Revenue,20007833,GELPACK EXCELSIOR LTD
Oxford City Council,Direct Services,Cleaning Materials,B1601,25/08/2015,60042920_0,782.40,Revenue,20007833,GELPACK EXCELSIOR LTD
Oxford City Council,Direct Services,General Stationery Supplies,D3301,04/08/2015,1018951_1,621.62,Revenue,20007849,LYRECO UK LTD
Oxford City Council,Business Improvement,General Stationery Supplies,D3301,04/08/2015,1018954_1,2154.10,Revenue,20007849,LYRECO UK LTD
Oxford City Council,Direct Services,General Stationery Supplies,D3301,29/09/2015,1019700_1,548.54,Revenue,20007849,LYRECO UK LTD
Oxford City Council,Direct Services,General Stationery Supplies,D3301,25/08/2015,1019718_1,918.60,Revenue,20007849,LYRECO UK LTD
Oxford City Council,Direct Services,General Stationery Supplies,D3301,18/08/2015,1019824_1,602.93,Revenue,20007849,LYRECO UK LTD
Oxford City Council,Business Improvement,General Stationery Supplies,D3301,02/09/2015,1020136_1,1846.65,Revenue,20007849,LYRECO UK LTD
Oxford City Council,Business Improvement,General Stationery Supplies,D3301,29/09/2015,1020968_1,1552.08,Revenue,20007849,LYRECO UK LTD
Oxford City Council,Assistant Chief Executive,Advertising & Publicity,D3802,07/07/2015,1016107_1,875.00,Revenue,20007856,NEWSQUEST MIDLANDS  WALES & SOUTH WEST
Oxford City Council,Assistant Chief Executive,Advertising & Publicity,D3802,07/07/2015,1018270_1,875.00,Revenue,20007856,NEWSQUEST MIDLANDS  WALES & SOUTH WEST
Oxford City Council,Law and Governance,Advertising & Publicity,D3802,14/07/2015,1018383_1,917.56,Revenue,20007856,NEWSQUEST MIDLANDS  WALES & SOUTH WEST
Oxford City Council,Environmental Sustainability,Advertising & Publicity,D3802,04/08/2015,1019129_1,2000.01,Revenue,20007856,NEWSQUEST MIDLANDS  WALES & SOUTH WEST
Oxford City Council,Environmental Sustainability,Advertising & Publicity,D3802,04/08/2015,1019129_2,624.97,Revenue,20007856,NEWSQUEST MIDLANDS  WALES & SOUTH WEST
Oxford City Council,Direct Services,Staff Advertising,A0702,25/08/2015,1019873_1,504.00,Revenue,20007856,NEWSQUEST MIDLANDS  WALES & SOUTH WEST
Oxford City Council,Direct Services,Advertising & Publicity,D3802   ,14/07/2015,60040822_1,577.00,Revenue,20007856,NEWSQUEST MIDLANDS  WALES & SOUTH WEST
Oxford City Council,Business Improvement,Software Maintenance/Running Costs,D3513,07/07/2015,1018224_1,900.00,Revenue,20007875,MIDLAND HR
Oxford City Council,Business Improvement,Software Maintenance/Running Costs,D3513,29/09/2015,1021124_1,900.00,Revenue,20007875,MIDLAND HR
Oxford City Council,Business Improvement,Software Maintenance/Running Costs,D3513,29/09/2015,1021128_1,975.50,Revenue,20007875,MIDLAND HR
Oxford City Council,Business Improvement,Software Maintenance/Running Costs,D3513,29/09/2015,1021136_1,1433.66,Revenue,20007875,MIDLAND HR
Oxford City Council,Business Improvement,Software Maintenance/Running Costs,D3513,29/09/2015,1021136_2,5017.81,Revenue,20007875,MIDLAND HR
Oxford City Council,Business Improvement,Software Maintenance/Running Costs,D3513,29/09/2015,1021136_3,2036.40,Revenue,20007875,MIDLAND HR
Oxford City Council,Business Improvement,Software Maintenance/Running Costs,D3513,29/09/2015,1021136_4,227.35,Revenue,20007875,MIDLAND HR
Oxford City Council,Business Improvement,Software Maintenance/Running Costs,D3513,29/09/2015,1021136_5,500.00,Revenue,20007875,MIDLAND HR
Oxford City Council,Business Improvement,Software Maintenance/Running Costs,D3513,29/09/2015,1021136_6,5500.00,Revenue,20007875,MIDLAND HR
Oxford City Council,Business Improvement,Consultants Fees,D3411,29/09/2015,1021206_1,929.00,Revenue,20007875,MIDLAND HR
Oxford City Council,Direct Services,Photocopying/Paper Supplies,D3306,07/07/2015,1018140_1,612.58,Revenue,20007881,RICOH UK LTD
Oxford City Council,Direct Services,Photocopying/Paper Supplies,D3306,08/09/2015,1020419_1,969.24,Revenue,20007881,RICOH UK LTD
Oxford City Council,Direct Services,Direct Services Supplies & Services,D3311,29/09/2015,60044168_1,669.35,Revenue,20007900,ESSEX GARAGE DOORS
Oxford City Council,Direct Services,Reactive Maintenance & Minor Repairs,B1101   ,15/09/2015,60043953_0,524.86,Revenue,20007930,PROTEUS EQUIPMENT LTD
Oxford City Council,HRA,Furniture & Equipment Purchase,D3001,18/08/2015,1017344_1,2236.81,Revenue,20007932,FURNISHED HOMES (UNDERLEY FURNISHINGS) LTD
Oxford City Council,HRA,Furniture & Equipment Purchase,D3001,18/08/2015,1017653_1,1219.93,Revenue,20007932,FURNISHED HOMES (UNDERLEY FURNISHINGS) LTD
Oxford City Council,HRA,Furniture & Equipment Purchase,D3001,14/07/2015,1017716_1,654.99,Revenue,20007932,FURNISHED HOMES (UNDERLEY FURNISHINGS) LTD
Oxford City Council,HRA,Furniture & Equipment Purchase,D3001,14/07/2015,1018017_1,2062.23,Revenue,20007932,FURNISHED HOMES (UNDERLEY FURNISHINGS) LTD
Oxford City Council,HRA,Furniture & Equipment Purchase,D3001,18/08/2015,1018018_1,921.27,Revenue,20007932,FURNISHED HOMES (UNDERLEY FURNISHINGS) LTD
Oxford City Council,HRA,Replacement Furniture,D3003,07/07/2015,1018169_1,130.00,Revenue,20007932,FURNISHED HOMES (UNDERLEY FURNISHINGS) LTD
Oxford City Council,HRA,Replacement Furniture,D3003,07/07/2015,1018169_2,155.00,Revenue,20007932,FURNISHED HOMES (UNDERLEY FURNISHINGS) LTD
Oxford City Council,HRA,Replacement Furniture,D3003,07/07/2015,1018169_3,335.76,Revenue,20007932,FURNISHED HOMES (UNDERLEY FURNISHINGS) LTD
Oxford City Council,HRA,Replacement Furniture,D3003,07/07/2015,1018169_4,240.63,Revenue,20007932,FURNISHED HOMES (UNDERLEY FURNISHINGS) LTD
Oxford City Council,HRA,Replacement Furniture,D3003,07/07/2015,1018169_5,275.00,Revenue,20007932,FURNISHED HOMES (UNDERLEY FURNISHINGS) LTD
Oxford City Council,HRA,Replacement Furniture,D3003,07/07/2015,1018169_6,204.99,Revenue,20007932,FURNISHED HOMES (UNDERLEY FURNISHINGS) LTD
Oxford City Council,HRA,Furniture & Equipment Purchase,D3001,07/07/2015,1018171_1,151.09,Revenue,20007932,FURNISHED HOMES (UNDERLEY FURNISHINGS) LTD
Oxford City Council,HRA,Furniture & Equipment Purchase,D3001,07/07/2015,1018171_2,204.99,Revenue,20007932,FURNISHED HOMES (UNDERLEY FURNISHINGS) LTD
Oxford City Council,HRA,Furniture & Equipment Purchase,D3001,07/07/2015,1018171_3,275.00,Revenue,20007932,FURNISHED HOMES (UNDERLEY FURNISHINGS) LTD
Oxford City Council,HRA,Furniture & Equipment Purchase,D3001,07/07/2015,1018171_4,212.65,Revenue,20007932,FURNISHED HOMES (UNDERLEY FURNISHINGS) LTD
Oxford City Council,HRA,Furniture & Equipment Purchase,D3001,07/07/2015,1018171_5,123.11,Revenue,20007932,FURNISHED HOMES (UNDERLEY FURNISHINGS) LTD
Oxford City Council,HRA,Furniture & Equipment Purchase,D3001,14/07/2015,1018394_1,1250.42,Revenue,20007932,FURNISHED HOMES (UNDERLEY FURNISHINGS) LTD
Oxford City Council,HRA,Furniture & Equipment Purchase,D3001,18/08/2015,1018395_1,2423.34,Revenue,20007932,FURNISHED HOMES (UNDERLEY FURNISHINGS) LTD
Oxford City Council,HRA,Furniture & Equipment Purchase,D3001,18/08/2015,1018396_1,2242.51,Revenue,20007932,FURNISHED HOMES (UNDERLEY FURNISHINGS) LTD
Oxford City Council,HRA,Furniture & Equipment Purchase,D3001,18/08/2015,1018697_1,2189.42,Revenue,20007932,FURNISHED HOMES (UNDERLEY FURNISHINGS) LTD
Oxford City Council,HRA,Furniture & Equipment Purchase,D3001,28/07/2015,1018876_1,310.00,Revenue,20007932,FURNISHED HOMES (UNDERLEY FURNISHINGS) LTD
Oxford City Council,HRA,Furniture & Equipment Purchase,D3001,28/07/2015,1018876_10,275.00,Revenue,20007932,FURNISHED HOMES (UNDERLEY FURNISHINGS) LTD
Oxford City Council,HRA,Furniture & Equipment Purchase,D3001,28/07/2015,1018876_2,378.00,Revenue,20007932,FURNISHED HOMES (UNDERLEY FURNISHINGS) LTD
Oxford City Council,HRA,Furniture & Equipment Purchase,D3001,28/07/2015,1018876_3,5.98,Revenue,20007932,FURNISHED HOMES (UNDERLEY FURNISHINGS) LTD
Oxford City Council,HRA,Furniture & Equipment Purchase,D3001,28/07/2015,1018876_4,268.61,Revenue,20007932,FURNISHED HOMES (UNDERLEY FURNISHINGS) LTD
Oxford City Council,HRA,Furniture & Equipment Purchase,D3001,28/07/2015,1018876_5,55.96,Revenue,20007932,FURNISHED HOMES (UNDERLEY FURNISHINGS) LTD
Oxford City Council,HRA,Furniture & Equipment Purchase,D3001,28/07/2015,1018876_6,89.54,Revenue,20007932,FURNISHED HOMES (UNDERLEY FURNISHINGS) LTD
Oxford City Council,HRA,Furniture & Equipment Purchase,D3001,28/07/2015,1018876_7,201.46,Revenue,20007932,FURNISHED HOMES (UNDERLEY FURNISHINGS) LTD
Oxford City Council,HRA,Furniture & Equipment Purchase,D3001,28/07/2015,1018876_8,349.99,Revenue,20007932,FURNISHED HOMES (UNDERLEY FURNISHINGS) LTD
Oxford City Council,HRA,Furniture & Equipment Purchase,D3001,28/07/2015,1018876_9,275.00,Revenue,20007932,FURNISHED HOMES (UNDERLEY FURNISHINGS) LTD
Oxford City Council,HRA,Furniture & Equipment Purchase,D3001,28/07/2015,1018880_1,640.00,Revenue,20007932,FURNISHED HOMES (UNDERLEY FURNISHINGS) LTD
Oxford City Council,HRA,Furniture & Equipment Purchase,D3001,28/07/2015,1018880_10,257.42,Revenue,20007932,FURNISHED HOMES (UNDERLEY FURNISHINGS) LTD
Oxford City Council,HRA,Furniture & Equipment Purchase,D3001,28/07/2015,1018880_11,167.88,Revenue,20007932,FURNISHED HOMES (UNDERLEY FURNISHINGS) LTD
Oxford City Council,HRA,Furniture & Equipment Purchase,D3001,28/07/2015,1018880_12,128.71,Revenue,20007932,FURNISHED HOMES (UNDERLEY FURNISHINGS) LTD
Oxford City Council,HRA,Furniture & Equipment Purchase,D3001,28/07/2015,1018880_13,293.79,Revenue,20007932,FURNISHED HOMES (UNDERLEY FURNISHINGS) LTD
Oxford City Council,HRA,Furniture & Equipment Purchase,D3001,28/07/2015,1018880_2,380.00,Revenue,20007932,FURNISHED HOMES (UNDERLEY FURNISHINGS) LTD
Oxford City Council,HRA,Furniture & Equipment Purchase,D3001,28/07/2015,1018880_3,155.00,Revenue,20007932,FURNISHED HOMES (UNDERLEY FURNISHINGS) LTD
Oxford City Council,HRA,Furniture & Equipment Purchase,D3001,28/07/2015,1018880_4,235.00,Revenue,20007932,FURNISHED HOMES (UNDERLEY FURNISHINGS) LTD
Oxford City Council,HRA,Furniture & Equipment Purchase,D3001,28/07/2015,1018880_5,189.00,Revenue,20007932,FURNISHED HOMES (UNDERLEY FURNISHINGS) LTD
Oxford City Council,HRA,Furniture & Equipment Purchase,D3001,28/07/2015,1018880_6,29.90,Revenue,20007932,FURNISHED HOMES (UNDERLEY FURNISHINGS) LTD
Oxford City Council,HRA,Furniture & Equipment Purchase,D3001,28/07/2015,1018880_7,220.00,Revenue,20007932,FURNISHED HOMES (UNDERLEY FURNISHINGS) LTD
Oxford City Council,HRA,Furniture & Equipment Purchase,D3001,28/07/2015,1018880_8,275.00,Revenue,20007932,FURNISHED HOMES (UNDERLEY FURNISHINGS) LTD
Oxford City Council,HRA,Furniture & Equipment Purchase,D3001,28/07/2015,1018880_9,363.74,Revenue,20007932,FURNISHED HOMES (UNDERLEY FURNISHINGS) LTD
Oxford City Council,HRA,Furniture & Equipment Purchase,D3001,04/08/2015,1018940_1,1363.46,Revenue,20007932,FURNISHED HOMES (UNDERLEY FURNISHINGS) LTD
Oxford City Council,HRA,Furniture & Equipment Purchase,D3001,18/08/2015,1018946_1,3596.19,Revenue,20007932,FURNISHED HOMES (UNDERLEY FURNISHINGS) LTD
Oxford City Council,HRA,Furniture & Equipment Purchase,D3001,04/08/2015,1019078_1,349.75,Revenue,20007932,FURNISHED HOMES (UNDERLEY FURNISHINGS) LTD
Oxford City Council,HRA,Furniture & Equipment Purchase,D3001,04/08/2015,1019078_2,246.22,Revenue,20007932,FURNISHED HOMES (UNDERLEY FURNISHINGS) LTD
Oxford City Council,HRA,Furniture & Equipment Purchase,D3001,04/08/2015,1019078_3,285.40,Revenue,20007932,FURNISHED HOMES (UNDERLEY FURNISHINGS) LTD
Oxford City Council,HRA,Furniture & Equipment Purchase,D3001,04/08/2015,1019084_1,204.99,Revenue,20007932,FURNISHED HOMES (UNDERLEY FURNISHINGS) LTD
Oxford City Council,HRA,Furniture & Equipment Purchase,D3001,04/08/2015,1019084_10,179.07,Revenue,20007932,FURNISHED HOMES (UNDERLEY FURNISHINGS) LTD
Oxford City Council,HRA,Furniture & Equipment Purchase,D3001,04/08/2015,1019084_11,251.82,Revenue,20007932,FURNISHED HOMES (UNDERLEY FURNISHINGS) LTD
Oxford City Council,HRA,Furniture & Equipment Purchase,D3001,04/08/2015,1019084_2,44.99,Revenue,20007932,FURNISHED HOMES (UNDERLEY FURNISHINGS) LTD
Oxford City Council,HRA,Furniture & Equipment Purchase,D3001,04/08/2015,1019084_3,275.00,Revenue,20007932,FURNISHED HOMES (UNDERLEY FURNISHINGS) LTD
Oxford City Council,HRA,Furniture & Equipment Purchase,D3001,04/08/2015,1019084_4,210.00,Revenue,20007932,FURNISHED HOMES (UNDERLEY FURNISHINGS) LTD
Oxford City Council,HRA,Furniture & Equipment Purchase,D3001,04/08/2015,1019084_5,24.00,Revenue,20007932,FURNISHED HOMES (UNDERLEY FURNISHINGS) LTD
Oxford City Council,HRA,Furniture & Equipment Purchase,D3001,04/08/2015,1019084_6,290.00,Revenue,20007932,FURNISHED HOMES (UNDERLEY FURNISHINGS) LTD
Oxford City Council,HRA,Furniture & Equipment Purchase,D3001,04/08/2015,1019084_7,515.00,Revenue,20007932,FURNISHED HOMES (UNDERLEY FURNISHINGS) LTD
Oxford City Council,HRA,Furniture & Equipment Purchase,D3001,04/08/2015,1019084_8,313.38,Revenue,20007932,FURNISHED HOMES (UNDERLEY FURNISHINGS) LTD
Oxford City Council,HRA,Furniture & Equipment Purchase,D3001,04/08/2015,1019084_9,358.14,Revenue,20007932,FURNISHED HOMES (UNDERLEY FURNISHINGS) LTD
Oxford City Council,HRA,Furniture & Equipment Purchase,D3001,04/08/2015,1019085_1,279.80,Revenue,20007932,FURNISHED HOMES (UNDERLEY FURNISHINGS) LTD
Oxford City Council,HRA,Furniture & Equipment Purchase,D3001,04/08/2015,1019085_2,204.99,Revenue,20007932,FURNISHED HOMES (UNDERLEY FURNISHINGS) LTD
Oxford City Council,HRA,Furniture & Equipment Purchase,D3001,04/08/2015,1019085_3,275.00,Revenue,20007932,FURNISHED HOMES (UNDERLEY FURNISHINGS) LTD
Oxford City Council,HRA,Furniture & Equipment Purchase,D3001,04/08/2015,1019085_4,279.00,Revenue,20007932,FURNISHED HOMES (UNDERLEY FURNISHINGS) LTD
Oxford City Council,HRA,Furniture & Equipment Purchase,D3001,04/08/2015,1019085_5,189.00,Revenue,20007932,FURNISHED HOMES (UNDERLEY FURNISHINGS) LTD
Oxford City Council,HRA,Furniture & Equipment Purchase,D3001,04/08/2015,1019085_6,246.22,Revenue,20007932,FURNISHED HOMES (UNDERLEY FURNISHINGS) LTD
Oxford City Council,HRA,Furniture & Equipment Purchase,D3001,04/08/2015,1019087_1,558.00,Revenue,20007932,FURNISHED HOMES (UNDERLEY FURNISHINGS) LTD
Oxford City Council,HRA,Furniture & Equipment Purchase,D3001,04/08/2015,1019087_2,310.00,Revenue,20007932,FURNISHED HOMES (UNDERLEY FURNISHINGS) LTD
Oxford City Council,HRA,Furniture & Equipment Purchase,D3001,04/08/2015,1019087_3,378.00,Revenue,20007932,FURNISHED HOMES (UNDERLEY FURNISHINGS) LTD
Oxford City Council,HRA,Furniture & Equipment Purchase,D3001,04/08/2015,1019087_4,593.18,Revenue,20007932,FURNISHED HOMES (UNDERLEY FURNISHINGS) LTD
Oxford City Council,HRA,Furniture & Equipment Purchase,D3001,04/08/2015,1019087_5,246.22,Revenue,20007932,FURNISHED HOMES (UNDERLEY FURNISHINGS) LTD
Oxford City Council,HRA,Furniture & Equipment Purchase,D3001,04/08/2015,1019087_6,263.01,Revenue,20007932,FURNISHED HOMES (UNDERLEY FURNISHINGS) LTD
Oxford City Council,HRA,Furniture & Equipment Purchase,D3001,18/08/2015,1019127_1,3003.13,Revenue,20007932,FURNISHED HOMES (UNDERLEY FURNISHINGS) LTD
Oxford City Council,HRA,Furniture & Equipment Purchase,D3001,18/08/2015,1019128_1,1357.04,Revenue,20007932,FURNISHED HOMES (UNDERLEY FURNISHINGS) LTD
Oxford City Council,HRA,Furniture & Equipment Purchase,D3001,04/08/2015,1019224_1,309.99,Revenue,20007932,FURNISHED HOMES (UNDERLEY FURNISHINGS) LTD
Oxford City Council,HRA,Furniture & Equipment Purchase,D3001,04/08/2015,1019224_2,275.00,Revenue,20007932,FURNISHED HOMES (UNDERLEY FURNISHINGS) LTD
Oxford City Council,HRA,Furniture & Equipment Purchase,D3001,11/08/2015,1019234_1,1572.47,Revenue,20007932,FURNISHED HOMES (UNDERLEY FURNISHINGS) LTD
Oxford City Council,HRA,Furniture & Equipment Purchase,D3001,18/08/2015,1019235_1,705.09,Revenue,20007932,FURNISHED HOMES (UNDERLEY FURNISHINGS) LTD
Oxford City Council,HRA,Furniture & Equipment Purchase,D3001,11/08/2015,1019386_1,204.99,Revenue,20007932,FURNISHED HOMES (UNDERLEY FURNISHINGS) LTD
Oxford City Council,HRA,Furniture & Equipment Purchase,D3001,11/08/2015,1019386_2,275.00,Revenue,20007932,FURNISHED HOMES (UNDERLEY FURNISHINGS) LTD
Oxford City Council,HRA,Furniture & Equipment Purchase,D3001,11/08/2015,1019386_3,210.00,Revenue,20007932,FURNISHED HOMES (UNDERLEY FURNISHINGS) LTD
Oxford City Council,HRA,Furniture & Equipment Purchase,D3001,11/08/2015,1019386_4,130.00,Revenue,20007932,FURNISHED HOMES (UNDERLEY FURNISHINGS) LTD
Oxford City Council,HRA,Furniture & Equipment Purchase,D3001,11/08/2015,1019386_5,290.00,Revenue,20007932,FURNISHED HOMES (UNDERLEY FURNISHINGS) LTD
Oxford City Council,HRA,Furniture & Equipment Purchase,D3001,11/08/2015,1019386_6,410.00,Revenue,20007932,FURNISHED HOMES (UNDERLEY FURNISHINGS) LTD
Oxford City Council,HRA,Furniture & Equipment Purchase,D3001,11/08/2015,1019386_7,318.97,Revenue,20007932,FURNISHED HOMES (UNDERLEY FURNISHINGS) LTD
Oxford City Council,HRA,Furniture & Equipment Purchase,D3001,11/08/2015,1019386_8,139.90,Revenue,20007932,FURNISHED HOMES (UNDERLEY FURNISHINGS) LTD
Oxford City Council,HRA,Furniture & Equipment Purchase,D3001,11/08/2015,1019386_9,274.20,Revenue,20007932,FURNISHED HOMES (UNDERLEY FURNISHINGS) LTD
Oxford City Council,HRA,Furniture & Equipment Purchase,D3001,18/08/2015,1019405_1,1254.42,Revenue,20007932,FURNISHED HOMES (UNDERLEY FURNISHINGS) LTD
Oxford City Council,HRA,Furniture & Equipment Purchase,D3001,18/08/2015,1019485_1,749.86,Revenue,20007932,FURNISHED HOMES (UNDERLEY FURNISHINGS) LTD
Oxford City Council,HRA,Furniture & Equipment Purchase,D3001,18/08/2015,1019486_1,677.11,Revenue,20007932,FURNISHED HOMES (UNDERLEY FURNISHINGS) LTD
Oxford City Council,HRA,Furniture & Equipment Purchase,D3001,18/08/2015,1019487_1,878.58,Revenue,20007932,FURNISHED HOMES (UNDERLEY FURNISHINGS) LTD
Oxford City Council,HRA,Replacement Furniture,D3003,18/08/2015,1019501_1,575.99,Revenue,20007932,FURNISHED HOMES (UNDERLEY FURNISHINGS) LTD
Oxford City Council,HRA,Furniture & Equipment Purchase,D3001,18/08/2015,1019690_1,199.00,Revenue,20007932,FURNISHED HOMES (UNDERLEY FURNISHINGS) LTD
Oxford City Council,HRA,Furniture & Equipment Purchase,D3001,18/08/2015,1019690_10,9.99,Revenue,20007932,FURNISHED HOMES (UNDERLEY FURNISHINGS) LTD
Oxford City Council,HRA,Furniture & Equipment Purchase,D3001,18/08/2015,1019690_11,13.99,Revenue,20007932,FURNISHED HOMES (UNDERLEY FURNISHINGS) LTD
Oxford City Council,HRA,Furniture & Equipment Purchase,D3001,18/08/2015,1019690_12,201.46,Revenue,20007932,FURNISHED HOMES (UNDERLEY FURNISHINGS) LTD
